Workbook

Sheet INGRESO
A1: COD | B1: R.P | C1: NOMBRE | D1: FECHA | E1: BOLETA | F1: TN | G1: Nº | H1: Nº | I1: TURNO | J1: CARGO | K1: GRUPO | L1: AGRUP | M1: EDAD | N1: FERIADO | O1: COD. | P1: ABORDO / MURO | Q1: DNI | R1: DIGITAR DNI | S1: BUSCA CODIGO | T1: NRO ORDEN | U1: % DCTO JUD | V1: NRO CUENTA
A2: COD | B2: R.P | C2: NOMBRE | D2: FECHA | E2: BOLETA | F2: TN | G2: Nº | H2: Nº's | I2: TURNO | J2: CARGO | K2: GRUPO | L2: AGRUP | M2: EDAD | N2: FERIADO | O2: COD. | P2: ABORDO / MURO | Q2: DNI | R2: DIGITAR DNI | S2: BUSCA CODIGO | T2: NRO ORDEN | U2: % DCTO JUD | V2: NRO CUENTA
A3: =+S3 -> 131 | B3: =IFERROR(IF(A3="","",VLOOKUP(A3,[1]Hoja1!$B$2:$U$4999,9,FALSE)),0) -> 0 | C3: =IFERROR(IF(A3="","",VLOOKUP(A3,[1]Hoja1!$B$2:$U$4999,2,FALSE))," --- NO EXISTE TRABAJADOR --- ") -> VARGAS ROJAS REYNALDO CRISTOBAL | D3: 2018-06-05 | E3: 0 | F3: 116.3 | G3: 1 | H3: 1 | I3: =IFERROR(IF(G3="","",VLOOKUP(G3,JORNADA,2,FALSE)),0) -> 06.00 / 12.00 | J3: =IFERROR(IF(H3="","",VLOOKUP(H3,ACTIVIDAD,2,FALSE)),0) -> WE | K3: =CONCATENATE(J3,G3) -> WE1 | L3: =IFERROR(IF(A3="","",VLOOKUP(A3,[1]Hoja1!$B$2:$U$4999,18,FALSE)),0) -> 0 | M3: =IFERROR(IF(A3="","",VLOOKUP(A3,[1]Hoja1!$B$2:$U$4999,19,FALSE)),0) -> 69 | N3: =IFERROR(IF(W3="","",VLOOKUP(W3,LICENCIA,2,FALSE)),"") ->  | P3: =IFERROR(IF(O3="","",VLOOKUP(O3,JORNADA!$A$19:$B$20,2,FALSE)),"") ->  | Q3: =IFERROR(IF(A3="","",VLOOKUP(A3,[1]Hoja1!$B$2:$U$4999,3,FALSE)),0) -> 4626677 | R3: 4626677 | S3: =IFERROR(IF(R3="","",VLOOKUP(R3,DNI,2,FALSE)),0) -> 131 | T3: =IF(D3<>"",COUNTA(INDIRECT("D2:D"&ROW()-1)),"") -> 1 | U3: =IFERROR(IF(A3="","",VLOOKUP(A3,[1]Hoja1!$B$2:$U$4999,10,FALSE)),0) -> 0 | V3: =IFERROR(IF(Q3="","",VLOOKUP(Q3,[1]Hoja1!$D$2:$AF$4999,29,FALSE)),"NO EXISTE CUENTA") -> 00116104802100001006 | W3: 0 | Y3: =+C3 -> VARGAS ROJAS REYNALDO CRISTOBAL | AF3: 4623141 | AH3: BBC PEARL | IV3: =NOW() -> 2018-06-21T18:48:22.770
A4: 138 | B4: =IFERROR(IF(A4="","",VLOOKUP(A4,[1]Hoja1!$B$2:$U$4999,9,FALSE)),0) -> 0 | C4: =IFERROR(IF(A4="","",VLOOKUP(A4,[1]Hoja1!$B$2:$U$4999,2,FALSE))," --- NO EXISTE TRABAJADOR --- ") -> VALDIVIA PAZ MANUEL LEONCIO | D4: 2018-06-05 | E4: 0 | F4: 116.3 | G4: 1 | H4: 1 | I4: 06.00 / 12.00 | J4: WE | K4: WE1 | L4: =IFERROR(IF(A4="","",VLOOKUP(A4,[1]Hoja1!$B$2:$U$4999,18,FALSE)),0) -> 0 | M4: =IFERROR(IF(A4="","",VLOOKUP(A4,[1]Hoja1!$B$2:$U$4999,19,FALSE)),0) -> 58 | P4: =IFERROR(IF(O4="","",VLOOKUP(O4,JORNADA!$A$19:$B$20,2,FALSE)),"") ->  | Q4: =IFERROR(IF(A4="","",VLOOKUP(A4,[1]Hoja1!$B$2:$U$4999,3,FALSE)),0) -> 4631678 | R4: 4631678 | S4: 138 | T4: 2 | U4: =IFERROR(IF(A4="","",VLOOKUP(A4,[1]Hoja1!$B$2:$U$4999,10,FALSE)),0) -> 0 | V4: =IFERROR(IF(Q4="","",VLOOKUP(Q4,[1]Hoja1!$D$2:$AF$4999,29,FALSE)),"NO EXISTE CUENTA") -> 00116102702100001006 | W4: 0 | Y4: VALDIVIA PAZ MANUEL LEONCIO
A5: 141 | B5: =IFERROR(IF(A5="","",VLOOKUP(A5,[1]Hoja1!$B$2:$U$4999,9,FALSE)),0) -> 0 | C5: =IFERROR(IF(A5="","",VLOOKUP(A5,[1]Hoja1!$B$2:$U$4999,2,FALSE))," --- NO EXISTE TRABAJADOR --- ") -> VELASQUEZ VILDOSO CESAR ENRIQUE | D5: 2018-06-05 | E5: 0 | F5: 116.3 | G5: 1 | H5: 2 | I5: 06.00 / 12.00 | J5: PE | K5: PE1 | L5: =IFERROR(IF(A5="","",VLOOKUP(A5,[1]Hoja1!$B$2:$U$4999,18,FALSE)),0) -> 0 | M5: =IFERROR(IF(A5="","",VLOOKUP(A5,[1]Hoja1!$B$2:$U$4999,19,FALSE)),0) -> 46 | P5: =IFERROR(IF(O5="","",VLOOKUP(O5,JORNADA!$A$19:$B$20,2,FALSE)),"") ->  | Q5: =IFERROR(IF(A5="","",VLOOKUP(A5,[1]Hoja1!$B$2:$U$4999,3,FALSE)),0) -> 4646267 | R5: 4646267 | S5: 141 | T5: 3 | U5: =IFERROR(IF(A5="","",VLOOKUP(A5,[1]Hoja1!$B$2:$U$4999,10,FALSE)),0) -> 0 | V5: =IFERROR(IF(Q5="","",VLOOKUP(Q5,[1]Hoja1!$D$2:$AF$4999,29,FALSE)),"NO EXISTE CUENTA") -> 00208014202100001006 | W5: 0 | Y5: VELASQUEZ VILDOSO CESAR ENRIQUE
A6: 21 | B6: =IFERROR(IF(A6="","",VLOOKUP(A6,[1]Hoja1!$B$2:$U$4999,9,FALSE)),0) -> 0 | C6: =IFERROR(IF(A6="","",VLOOKUP(A6,[1]Hoja1!$B$2:$U$4999,2,FALSE))," --- NO EXISTE TRABAJADOR --- ") -> PINTO LINARES HELBERTH RAFAEL | D6: 2018-06-05 | E6: 0 | F6: 116.3 | G6: 1 | H6: 3 | I6: 06.00 / 12.00 | J6: TE | K6: TE1 | L6: =IFERROR(IF(A6="","",VLOOKUP(A6,[1]Hoja1!$B$2:$U$4999,18,FALSE)),0) -> 0 | M6: =IFERROR(IF(A6="","",VLOOKUP(A6,[1]Hoja1!$B$2:$U$4999,19,FALSE)),0) -> 57 | P6: =IFERROR(IF(O6="","",VLOOKUP(O6,JORNADA!$A$19:$B$20,2,FALSE)),"") ->  | Q6: =IFERROR(IF(A6="","",VLOOKUP(A6,[1]Hoja1!$B$2:$U$4999,3,FALSE)),0) -> 4437139 | R6: 4437139 | S6: 21 | T6: 4 | U6: =IFERROR(IF(A6="","",VLOOKUP(A6,[1]Hoja1!$B$2:$U$4999,10,FALSE)),0) -> 0 | V6: =IFERROR(IF(Q6="","",VLOOKUP(Q6,[1]Hoja1!$D$2:$AF$4999,29,FALSE)),"NO EXISTE CUENTA") -> 00115998202100001006 | W6: 0 | Y6: PINTO LINARES HELBERTH RAFAEL
A7: 238 | B7: =IFERROR(IF(A7="","",VLOOKUP(A7,[1]Hoja1!$B$2:$U$4999,9,FALSE)),0) -> 0 | C7: =IFERROR(IF(A7="","",VLOOKUP(A7,[1]Hoja1!$B$2:$U$4999,2,FALSE))," --- NO EXISTE TRABAJADOR --- ") -> FERNANDEZ TICONA JOSE ALBERTO | D7: 2018-06-05 | E7: 0 | F7: 116.3 | G7: 1 | H7: 4 | I7: 06.00 / 12.00 | J7: BE | K7: BE1 | L7: =IFERROR(IF(A7="","",VLOOKUP(A7,[1]Hoja1!$B$2:$U$4999,18,FALSE)),0) -> 0 | M7: =IFERROR(IF(A7="","",VLOOKUP(A7,[1]Hoja1!$B$2:$U$4999,19,FALSE)),0) -> 54 | P7: =IFERROR(IF(O7="","",VLOOKUP(O7,JORNADA!$A$19:$B$20,2,FALSE)),"") ->  | Q7: =IFERROR(IF(A7="","",VLOOKUP(A7,[1]Hoja1!$B$2:$U$4999,3,FALSE)),0) -> 4633135 | R7: 4633135 | S7: 238 | T7: 5 | U7: =IFERROR(IF(A7="","",VLOOKUP(A7,[1]Hoja1!$B$2:$U$4999,10,FALSE)),0) -> 0 | V7: =IFERROR(IF(Q7="","",VLOOKUP(Q7,[1]Hoja1!$D$2:$AF$4999,29,FALSE)),"NO EXISTE CUENTA") -> 00004365702100001006 | Y7: FERNANDEZ TICONA JOSE ALBERTO
A8: 255 | B8: =IFERROR(IF(A8="","",VLOOKUP(A8,[1]Hoja1!$B$2:$U$4999,9,FALSE)),0) -> 0 | C8: =IFERROR(IF(A8="","",VLOOKUP(A8,[1]Hoja1!$B$2:$U$4999,2,FALSE))," --- NO EXISTE TRABAJADOR --- ") -> VICENTE LUYO EVERTH EDWIN | D8: 2018-06-05 | E8: 0 | F8: 116.3 | G8: 1 | H8: 4 | I8: 06.00 / 12.00 | J8: BE | K8: BE1 | L8: =IFERROR(IF(A8="","",VLOOKUP(A8,[1]Hoja1!$B$2:$U$4999,18,FALSE)),0) -> 0 | M8: =IFERROR(IF(A8="","",VLOOKUP(A8,[1]Hoja1!$B$2:$U$4999,19,FALSE)),0) -> 42 | P8: =IFERROR(IF(O8="","",VLOOKUP(O8,JORNADA!$A$19:$B$20,2,FALSE)),"") ->  | Q8: =IFERROR(IF(A8="","",VLOOKUP(A8,[1]Hoja1!$B$2:$U$4999,3,FALSE)),0) -> 4652901 | R8: 4652901 | S8: 255 | T8: 6 | U8: =IFERROR(IF(A8="","",VLOOKUP(A8,[1]Hoja1!$B$2:$U$4999,10,FALSE)),0) -> 0 | V8: =IFERROR(IF(Q8="","",VLOOKUP(Q8,[1]Hoja1!$D$2:$AF$4999,29,FALSE)),"NO EXISTE CUENTA") -> 00118113202100001006 | Y8: VICENTE LUYO EVERTH EDWIN
A9: 266 | B9: =IFERROR(IF(A9="","",VLOOKUP(A9,[1]Hoja1!$B$2:$U$4999,9,FALSE)),0) -> 0 | C9: =IFERROR(IF(A9="","",VLOOKUP(A9,[1]Hoja1!$B$2:$U$4999,2,FALSE))," --- NO EXISTE TRABAJADOR --- ") -> TOALA TOALA CARLOS ELMER | D9: 2018-06-05 | E9: 0 | F9: 116.3 | G9: 1 | H9: 4 | I9: 06.00 / 12.00 | J9: BE | K9: BE1 | L9: =IFERROR(IF(A9="","",VLOOKUP(A9,[1]Hoja1!$B$2:$U$4999,18,FALSE)),0) -> 0 | M9: =IFERROR(IF(A9="","",VLOOKUP(A9,[1]Hoja1!$B$2:$U$4999,19,FALSE)),0) -> 47 | P9: =IFERROR(IF(O9="","",VLOOKUP(O9,JORNADA!$A$19:$B$20,2,FALSE)),"") ->  | Q9: =IFERROR(IF(A9="","",VLOOKUP(A9,[1]Hoja1!$B$2:$U$4999,3,FALSE)),0) -> 4646697 | R9: 4646697 | S9: 266 | T9: 7 | U9: =IFERROR(IF(A9="","",VLOOKUP(A9,[1]Hoja1!$B$2:$U$4999,10,FALSE)),0) -> 0 | V9: =IFERROR(IF(Q9="","",VLOOKUP(Q9,[1]Hoja1!$D$2:$AF$4999,29,FALSE)),"NO EXISTE CUENTA") -> 00051095102100003006 | Y9: TOALA TOALA CARLOS ELMER
A10: 273 | B10: =IFERROR(IF(A10="","",VLOOKUP(A10,[1]Hoja1!$B$2:$U$4999,9,FALSE)),0) -> 0 | C10: =IFERROR(IF(A10="","",VLOOKUP(A10,[1]Hoja1!$B$2:$U$4999,2,FALSE))," --- NO EXISTE TRABAJADOR --- ") -> MOSTAJO ARIAS GUILLERMO HENRY | D10: 2018-06-05 | E10: 0 | F10: 116.3 | G10: 1 | H10: 4 | I10: 06.00 / 12.00 | J10: BE | K10: BE1 | L10: =IFERROR(IF(A10="","",VLOOKUP(A10,[1]Hoja1!$B$2:$U$4999,18,FALSE)),0) -> 0 | M10: =IFERROR(IF(A10="","",VLOOKUP(A10,[1]Hoja1!$B$2:$U$4999,19,FALSE)),0) -> 40 | P10: =IFERROR(IF(O10="","",VLOOKUP(O10,JORNADA!$A$19:$B$20,2,FALSE)),"") ->  | Q10: =IFERROR(IF(A10="","",VLOOKUP(A10,[1]Hoja1!$B$2:$U$4999,3,FALSE)),0) -> 4749521 | R10: 4749521 | S10: 273 | T10: 8 | U10: =IFERROR(IF(A10="","",VLOOKUP(A10,[1]Hoja1!$B$2:$U$4999,10,FALSE)),0) -> 0 | V10: =IFERROR(IF(Q10="","",VLOOKUP(Q10,[1]Hoja1!$D$2:$AF$4999,29,FALSE)),"NO EXISTE CUENTA") -> 00047904702100002006 | Y10: MOSTAJO ARIAS GUILLERMO HENRY
A11: 331 | B11: =IFERROR(IF(A11="","",VLOOKUP(A11,[1]Hoja1!$B$2:$U$4999,9,FALSE)),0) -> 0 | C11: =IFERROR(IF(A11="","",VLOOKUP(A11,[1]Hoja1!$B$2:$U$4999,2,FALSE))," --- NO EXISTE TRABAJADOR --- ") -> TICONA MAMANI NELSON OSWALDO | D11: 2018-06-05 | E11: 0 | F11: 116.3 | G11: 1 | H11: 4 | I11: 06.00 / 12.00 | J11: BE | K11: BE1 | L11: =IFERROR(IF(A11="","",VLOOKUP(A11,[1]Hoja1!$B$2:$U$4999,18,FALSE)),0) -> 0 | M11: =IFERROR(IF(A11="","",VLOOKUP(A11,[1]Hoja1!$B$2:$U$4999,19,FALSE)),0) -> 43 | P11: =IFERROR(IF(O11="","",VLOOKUP(O11,JORNADA!$A$19:$B$20,2,FALSE)),"") ->  | Q11: =IFERROR(IF(A11="","",VLOOKUP(A11,[1]Hoja1!$B$2:$U$4999,3,FALSE)),0) -> 4748137 | R11: 4748137 | S11: 331 | T11: 9 | U11: =IFERROR(IF(A11="","",VLOOKUP(A11,[1]Hoja1!$B$2:$U$4999,10,FALSE)),0) -> 0 | V11: =IFERROR(IF(Q11="","",VLOOKUP(Q11,[1]Hoja1!$D$2:$AF$4999,29,FALSE)),"NO EXISTE CUENTA") -> 00059573602100002006 | Y11: TICONA MAMANI NELSON OSWALDO
A12: 338 | B12: =IFERROR(IF(A12="","",VLOOKUP(A12,[1]Hoja1!$B$2:$U$4999,9,FALSE)),0) -> 0 | C12: =IFERROR(IF(A12="","",VLOOKUP(A12,[1]Hoja1!$B$2:$U$4999,2,FALSE))," --- NO EXISTE TRABAJADOR --- ") -> GONGORA CONDORI JOSE WILBER | D12: 2018-06-05 | E12: 0 | F12: 116.3 | G12: 1 | H12: 4 | I12: 06.00 / 12.00 | J12: BE | K12: BE1 | L12: =IFERROR(IF(A12="","",VLOOKUP(A12,[1]Hoja1!$B$2:$U$4999,18,FALSE)),0) -> 0 | M12: =IFERROR(IF(A12="","",VLOOKUP(A12,[1]Hoja1!$B$2:$U$4999,19,FALSE)),0) -> 41 | P12: =IFERROR(IF(O12="","",VLOOKUP(O12,JORNADA!$A$19:$B$20,2,FALSE)),"") ->  | Q12: =IFERROR(IF(A12="","",VLOOKUP(A12,[1]Hoja1!$B$2:$U$4999,3,FALSE)),0) -> 40329928 | R12: 40329928 | S12: 338 | T12: 10 | U12: =IFERROR(IF(A12="","",VLOOKUP(A12,[1]Hoja1!$B$2:$U$4999,10,FALSE)),0) -> 0 | V12: =IFERROR(IF(Q12="","",VLOOKUP(Q12,[1]Hoja1!$D$2:$AF$4999,29,FALSE)),"NO EXISTE CUENTA") -> 00070782302100002006 | Y12: GONGORA CONDORI JOSE WILBER
A13: 339 | B13: =IFERROR(IF(A13="","",VLOOKUP(A13,[1]Hoja1!$B$2:$U$4999,9,FALSE)),0) -> 0 | C13: =IFERROR(IF(A13="","",VLOOKUP(A13,[1]Hoja1!$B$2:$U$4999,2,FALSE))," --- NO EXISTE TRABAJADOR --- ") -> RODRIGUEZ DELGADO MIGUEL ANGEL | D13: 2018-06-05 | E13: 0 | F13: 116.3 | G13: 1 | H13: 4 | I13: 06.00 / 12.00 | J13: BE | K13: BE1 | L13: =IFERROR(IF(A13="","",VLOOKUP(A13,[1]Hoja1!$B$2:$U$4999,18,FALSE)),0) -> 0 | M13: =IFERROR(IF(A13="","",VLOOKUP(A13,[1]Hoja1!$B$2:$U$4999,19,FALSE)),0) -> 35 | P13: =IFERROR(IF(O13="","",VLOOKUP(O13,JORNADA!$A$19:$B$20,2,FALSE)),"") ->  | Q13: =IFERROR(IF(A13="","",VLOOKUP(A13,[1]Hoja1!$B$2:$U$4999,3,FALSE)),0) -> 42461564 | R13: 42461564 | S13: 339 | T13: 11 | U13: =IFERROR(IF(A13="","",VLOOKUP(A13,[1]Hoja1!$B$2:$U$4999,10,FALSE)),0) -> 0 | V13: =IFERROR(IF(Q13="","",VLOOKUP(Q13,[1]Hoja1!$D$2:$AF$4999,29,FALSE)),"NO EXISTE CUENTA") -> 00116038602100003006 | Y13: RODRIGUEZ DELGADO MIGUEL ANGEL
A14: 341 | B14: =IFERROR(IF(A14="","",VLOOKUP(A14,[1]Hoja1!$B$2:$U$4999,9,FALSE)),0) -> 0 | C14: =IFERROR(IF(A14="","",VLOOKUP(A14,[1]Hoja1!$B$2:$U$4999,2,FALSE))," --- NO EXISTE TRABAJADOR --- ") -> RAMIREZ SANCHEZ JOSE MANUEL | D14: 2018-06-05 | E14: 0 | F14: 116.3 | G14: 1 | H14: 4 | I14: 06.00 / 12.00 | J14: BE | K14: BE1 | L14: =IFERROR(IF(A14="","",VLOOKUP(A14,[1]Hoja1!$B$2:$U$4999,18,FALSE)),0) -> 0 | M14: =IFERROR(IF(A14="","",VLOOKUP(A14,[1]Hoja1!$B$2:$U$4999,19,FALSE)),0) -> 42 | P14: =IFERROR(IF(O14="","",VLOOKUP(O14,JORNADA!$A$19:$B$20,2,FALSE)),"") ->  | Q14: =IFERROR(IF(A14="","",VLOOKUP(A14,[1]Hoja1!$B$2:$U$4999,3,FALSE)),0) -> 4651359 | R14: 4651359 | S14: 341 | T14: 12 | U14: =IFERROR(IF(A14="","",VLOOKUP(A14,[1]Hoja1!$B$2:$U$4999,10,FALSE)),0) -> 0 | V14: =IFERROR(IF(Q14="","",VLOOKUP(Q14,[1]Hoja1!$D$2:$AF$4999,29,FALSE)),"NO EXISTE CUENTA") -> 00116006002100001006 | Y14: RAMIREZ SANCHEZ JOSE MANUEL
A15: 342 | B15: =IFERROR(IF(A15="","",VLOOKUP(A15,[1]Hoja1!$B$2:$U$4999,9,FALSE)),0) -> 0 | C15: =IFERROR(IF(A15="","",VLOOKUP(A15,[1]Hoja1!$B$2:$U$4999,2,FALSE))," --- NO EXISTE TRABAJADOR --- ") -> REYNOSO CHOCANO JORGE VICTOR | D15: 2018-06-05 | E15: 0 | F15: 0 | G15: 1 | H15: 5 | I15: 06.00 / 12.00 | J15: ME | K15: ME1 | L15: =IFERROR(IF(A15="","",VLOOKUP(A15,[1]Hoja1!$B$2:$U$4999,18,FALSE)),0) -> 0 | M15: =IFERROR(IF(A15="","",VLOOKUP(A15,[1]Hoja1!$B$2:$U$4999,19,FALSE)),0) -> 62 | P15: =IFERROR(IF(O15="","",VLOOKUP(O15,JORNADA!$A$19:$B$20,2,FALSE)),"") ->  | Q15: =IFERROR(IF(A15="","",VLOOKUP(A15,[1]Hoja1!$B$2:$U$4999,3,FALSE)),0) -> 4622923 | R15: 4622923 | S15: 342 | T15: 13 | U15: =IFERROR(IF(A15="","",VLOOKUP(A15,[1]Hoja1!$B$2:$U$4999,10,FALSE)),0) -> 0 | V15: =IFERROR(IF(Q15="","",VLOOKUP(Q15,[1]Hoja1!$D$2:$AF$4999,29,FALSE)),"NO EXISTE CUENTA") -> 00116027302100001006 | Y15: REYNOSO CHOCANO JORGE VICTOR
A16: 346 | B16: =IFERROR(IF(A16="","",VLOOKUP(A16,[1]Hoja1!$B$2:$U$4999,9,FALSE)),0) -> 0 | C16: =IFERROR(IF(A16="","",VLOOKUP(A16,[1]Hoja1!$B$2:$U$4999,2,FALSE))," --- NO EXISTE TRABAJADOR --- ") -> SOTO SALAS JHONATAN GIANCARLO | D16: 2018-06-05 | E16: 0 | F16: 0 | G16: 1 | H16: 5 | I16: 06.00 / 12.00 | J16: ME | K16: ME1 | L16: =IFERROR(IF(A16="","",VLOOKUP(A16,[1]Hoja1!$B$2:$U$4999,18,FALSE)),0) -> 0 | M16: =IFERROR(IF(A16="","",VLOOKUP(A16,[1]Hoja1!$B$2:$U$4999,19,FALSE)),0) -> 30 | P16: =IFERROR(IF(O16="","",VLOOKUP(O16,JORNADA!$A$19:$B$20,2,FALSE)),"") ->  | Q16: =IFERROR(IF(A16="","",VLOOKUP(A16,[1]Hoja1!$B$2:$U$4999,3,FALSE)),0) -> 45077426 | R16: 45077426 | S16: 346 | T16: 14 | U16: =IFERROR(IF(A16="","",VLOOKUP(A16,[1]Hoja1!$B$2:$U$4999,10,FALSE)),0) -> 0 | V16: =IFERROR(IF(Q16="","",VLOOKUP(Q16,[1]Hoja1!$D$2:$AF$4999,29,FALSE)),"NO EXISTE CUENTA") -> 00116086302100001006 | Y16: SOTO SALAS JHONATAN GIANCARLO
A17: 347 | B17: =IFERROR(IF(A17="","",VLOOKUP(A17,[1]Hoja1!$B$2:$U$4999,9,FALSE)),0) -> 0 | C17: =IFERROR(IF(A17="","",VLOOKUP(A17,[1]Hoja1!$B$2:$U$4999,2,FALSE))," --- NO EXISTE TRABAJADOR --- ") -> RAMIREZ BEJARANO FERNANDO ENRIQUE | D17: 2018-06-05 | E17: 0 | F17: 0 | G17: 1 | H17: 5 | I17: 06.00 / 12.00 | J17: ME | K17: ME1 | L17: =IFERROR(IF(A17="","",VLOOKUP(A17,[1]Hoja1!$B$2:$U$4999,18,FALSE)),0) -> 0 | M17: =IFERROR(IF(A17="","",VLOOKUP(A17,[1]Hoja1!$B$2:$U$4999,19,FALSE)),0) -> 36 | P17: =IFERROR(IF(O17="","",VLOOKUP(O17,JORNADA!$A$19:$B$20,2,FALSE)),"") ->  | Q17: =IFERROR(IF(A17="","",VLOOKUP(A17,[1]Hoja1!$B$2:$U$4999,3,FALSE)),0) -> 40948134 | R17: 40948134 | S17: 347 | T17: 15 | U17: =IFERROR(IF(A17="","",VLOOKUP(A17,[1]Hoja1!$B$2:$U$4999,10,FALSE)),0) -> 0 | V17: =IFERROR(IF(Q17="","",VLOOKUP(Q17,[1]Hoja1!$D$2:$AF$4999,29,FALSE)),"NO EXISTE CUENTA") -> 00005310702100002006 | Y17: RAMIREZ BEJARANO FERNANDO ENRIQUE
A18: 352 | B18: =IFERROR(IF(A18="","",VLOOKUP(A18,[1]Hoja1!$B$2:$U$4999,9,FALSE)),0) -> 0 | C18: =IFERROR(IF(A18="","",VLOOKUP(A18,[1]Hoja1!$B$2:$U$4999,2,FALSE))," --- NO EXISTE TRABAJADOR --- ") -> ZAVALETA DE LA TORRE EDWUARDO HUGO | D18: 2018-06-05 | E18: 0 | F18: 0 | G18: 1 | H18: 5 | I18: 06.00 / 12.00 | J18: ME | K18: ME1 | L18: =IFERROR(IF(A18="","",VLOOKUP(A18,[1]Hoja1!$B$2:$U$4999,18,FALSE)),0) -> 0 | M18: =IFERROR(IF(A18="","",VLOOKUP(A18,[1]Hoja1!$B$2:$U$4999,19,FALSE)),0) -> 44 | P18: =IFERROR(IF(O18="","",VLOOKUP(O18,JORNADA!$A$19:$B$20,2,FALSE)),"") ->  | Q18: =IFERROR(IF(A18="","",VLOOKUP(A18,[1]Hoja1!$B$2:$U$4999,3,FALSE)),0) -> 22301110 | R18: 22301110 | S18: 352 | T18: 16 | U18: =IFERROR(IF(A18="","",VLOOKUP(A18,[1]Hoja1!$B$2:$U$4999,10,FALSE)),0) -> 0 | V18: =IFERROR(IF(Q18="","",VLOOKUP(Q18,[1]Hoja1!$D$2:$AF$4999,29,FALSE)),"NO EXISTE CUENTA") -> 00083653302100001006 | Y18: ZAVALETA DE LA TORRE EDWUARDO HUGO
A19: 80 | B19: =IFERROR(IF(A19="","",VLOOKUP(A19,[1]Hoja1!$B$2:$U$4999,9,FALSE)),0) -> 0 | C19: =IFERROR(IF(A19="","",VLOOKUP(A19,[1]Hoja1!$B$2:$U$4999,2,FALSE))," --- NO EXISTE TRABAJADOR --- ") -> CASTILLO PORTALES RENE BERNARDINO | D19: 2018-06-05 | E19: 0 | F19: 175.225 | G19: 2 | H19: 1 | I19: 12.00 / 18.00 | J19: WE | K19: WE2 | L19: =IFERROR(IF(A19="","",VLOOKUP(A19,[1]Hoja1!$B$2:$U$4999,18,FALSE)),0) -> 0 | M19: =IFERROR(IF(A19="","",VLOOKUP(A19,[1]Hoja1!$B$2:$U$4999,19,FALSE)),0) -> 62 | P19: =IFERROR(IF(O19="","",VLOOKUP(O19,JORNADA!$A$19:$B$20,2,FALSE)),"") ->  | Q19: =IFERROR(IF(A19="","",VLOOKUP(A19,[1]Hoja1!$B$2:$U$4999,3,FALSE)),0) -> 4623806 | R19: 4623806 | S19: 80 | T19: 17 | U19: =IFERROR(IF(A19="","",VLOOKUP(A19,[1]Hoja1!$B$2:$U$4999,10,FALSE)),0) -> 0 | V19: =IFERROR(IF(Q19="","",VLOOKUP(Q19,[1]Hoja1!$D$2:$AF$4999,29,FALSE)),"NO EXISTE CUENTA") -> 00116461602100001006 | Y19: CASTILLO PORTALES RENE BERNARDINO
A20: 83 | B20: =IFERROR(IF(A20="","",VLOOKUP(A20,[1]Hoja1!$B$2:$U$4999,9,FALSE)),0) -> 0 | C20: =IFERROR(IF(A20="","",VLOOKUP(A20,[1]Hoja1!$B$2:$U$4999,2,FALSE))," --- NO EXISTE TRABAJADOR --- ") -> MEZA VALDIVIA ANDRES ABELINO | D20: 2018-06-05 | E20: 0 | F20: 175.225 | G20: 2 | H20: 1 | I20: 12.00 / 18.00 | J20: WE | K20: WE2 | L20: =IFERROR(IF(A20="","",VLOOKUP(A20,[1]Hoja1!$B$2:$U$4999,18,FALSE)),0) -> 0 | M20: =IFERROR(IF(A20="","",VLOOKUP(A20,[1]Hoja1!$B$2:$U$4999,19,FALSE)),0) -> 66 | P20: =IFERROR(IF(O20="","",VLOOKUP(O20,JORNADA!$A$19:$B$20,2,FALSE)),"") ->  | Q20: =IFERROR(IF(A20="","",VLOOKUP(A20,[1]Hoja1!$B$2:$U$4999,3,FALSE)),0) -> 4635505 | R20: 4635505 | S20: 83 | T20: 18 | U20: =IFERROR(IF(A20="","",VLOOKUP(A20,[1]Hoja1!$B$2:$U$4999,10,FALSE)),0) -> 0 | V20: =IFERROR(IF(Q20="","",VLOOKUP(Q20,[1]Hoja1!$D$2:$AF$4999,29,FALSE)),"NO EXISTE CUENTA") -> 00076085102100003006 | Y20: MEZA VALDIVIA ANDRES ABELINO
A21: 167 | B21: =IFERROR(IF(A21="","",VLOOKUP(A21,[1]Hoja1!$B$2:$U$4999,9,FALSE)),0) -> 0 | C21: =IFERROR(IF(A21="","",VLOOKUP(A21,[1]Hoja1!$B$2:$U$4999,2,FALSE))," --- NO EXISTE TRABAJADOR --- ") -> UGARTE LEANDRO ROLANDO | D21: 2018-06-05 | E21: 0 | F21: 175.225 | G21: 2 | H21: 2 | I21: 12.00 / 18.00 | J21: PE | K21: PE2 | L21: =IFERROR(IF(A21="","",VLOOKUP(A21,[1]Hoja1!$B$2:$U$4999,18,FALSE)),0) -> 0 | M21: =IFERROR(IF(A21="","",VLOOKUP(A21,[1]Hoja1!$B$2:$U$4999,19,FALSE)),0) -> 59 | P21: =IFERROR(IF(O21="","",VLOOKUP(O21,JORNADA!$A$19:$B$20,2,FALSE)),"") ->  | Q21: =IFERROR(IF(A21="","",VLOOKUP(A21,[1]Hoja1!$B$2:$U$4999,3,FALSE)),0) -> 4629214 | R21: 4629214 | S21: 167 | T21: 19 | U21: =IFERROR(IF(A21="","",VLOOKUP(A21,[1]Hoja1!$B$2:$U$4999,10,FALSE)),0) -> 0 | V21: =IFERROR(IF(Q21="","",VLOOKUP(Q21,[1]Hoja1!$D$2:$AF$4999,29,FALSE)),"NO EXISTE CUENTA") -> 00076361802100002006 | Y21: UGARTE LEANDRO ROLANDO
A22: 41 | B22: =IFERROR(IF(A22="","",VLOOKUP(A22,[1]Hoja1!$B$2:$U$4999,9,FALSE)),0) -> 0 | C22: =IFERROR(IF(A22="","",VLOOKUP(A22,[1]Hoja1!$B$2:$U$4999,2,FALSE))," --- NO EXISTE TRABAJADOR --- ") -> VARGAS ALMESTAR VICTOR RAUL | D22: 2018-06-05 | E22: 0 | F22: 175.225 | G22: 2 | H22: 3 | I22: 12.00 / 18.00 | J22: TE | K22: TE2 | L22: =IFERROR(IF(A22="","",VLOOKUP(A22,[1]Hoja1!$B$2:$U$4999,18,FALSE)),0) -> 0 | M22: =IFERROR(IF(A22="","",VLOOKUP(A22,[1]Hoja1!$B$2:$U$4999,19,FALSE)),0) -> 69 | P22: =IFERROR(IF(O22="","",VLOOKUP(O22,JORNADA!$A$19:$B$20,2,FALSE)),"") ->  | Q22: =IFERROR(IF(A22="","",VLOOKUP(A22,[1]Hoja1!$B$2:$U$4999,3,FALSE)),0) -> 4622117 | R22: 4622117 | S22: 41 | T22: 20 | U22: =IFERROR(IF(A22="","",VLOOKUP(A22,[1]Hoja1!$B$2:$U$4999,10,FALSE)),0) -> 0 | V22: =IFERROR(IF(Q22="","",VLOOKUP(Q22,[1]Hoja1!$D$2:$AF$4999,29,FALSE)),"NO EXISTE CUENTA") -> 00084820902100001006 | Y22: VARGAS ALMESTAR VICTOR RAUL
A23: 42 | B23: =IFERROR(IF(A23="","",VLOOKUP(A23,[1]Hoja1!$B$2:$U$4999,9,FALSE)),0) -> 0 | C23: =IFERROR(IF(A23="","",VLOOKUP(A23,[1]Hoja1!$B$2:$U$4999,2,FALSE))," --- NO EXISTE TRABAJADOR --- ") -> MAMANI CHAMBI JESUS | D23: 2018-06-05 | E23: 0 | F23: 175.225 | G23: 2 | H23: 4 | I23: 12.00 / 18.00 | J23: BE | K23: BE2 | L23: =IFERROR(IF(A23="","",VLOOKUP(A23,[1]Hoja1!$B$2:$U$4999,18,FALSE)),0) -> 0 | M23: =IFERROR(IF(A23="","",VLOOKUP(A23,[1]Hoja1!$B$2:$U$4999,19,FALSE)),0) -> 62 | P23: =IFERROR(IF(O23="","",VLOOKUP(O23,JORNADA!$A$19:$B$20,2,FALSE)),"") ->  | Q23: =IFERROR(IF(A23="","",VLOOKUP(A23,[1]Hoja1!$B$2:$U$4999,3,FALSE)),0) -> 4625431 | R23: 4625431 | S23: 42 | T23: 21 | U23: =IFERROR(IF(A23="","",VLOOKUP(A23,[1]Hoja1!$B$2:$U$4999,10,FALSE)),0) -> 0 | V23: =IFERROR(IF(Q23="","",VLOOKUP(Q23,[1]Hoja1!$D$2:$AF$4999,29,FALSE)),"NO EXISTE CUENTA") -> 00007003702100001006 | Y23: MAMANI CHAMBI JESUS
A24: 43 | B24: =IFERROR(IF(A24="","",VLOOKUP(A24,[1]Hoja1!$B$2:$U$4999,9,FALSE)),0) -> 0 | C24: =IFERROR(IF(A24="","",VLOOKUP(A24,[1]Hoja1!$B$2:$U$4999,2,FALSE))," --- NO EXISTE TRABAJADOR --- ") -> ALFARO HUANACUNI PASCUAL | D24: 2018-06-05 | E24: 0 | F24: 175.225 | G24: 2 | H24: 4 | I24: 12.00 / 18.00 | J24: BE | K24: BE2 | L24: =IFERROR(IF(A24="","",VLOOKUP(A24,[1]Hoja1!$B$2:$U$4999,18,FALSE)),0) -> 0 | M24: =IFERROR(IF(A24="","",VLOOKUP(A24,[1]Hoja1!$B$2:$U$4999,19,FALSE)),0) -> 58 | P24: =IFERROR(IF(O24="","",VLOOKUP(O24,JORNADA!$A$19:$B$20,2,FALSE)),"") ->  | Q24: =IFERROR(IF(A24="","",VLOOKUP(A24,[1]Hoja1!$B$2:$U$4999,3,FALSE)),0) -> 4623352 | R24: 4623352 | S24: 43 | T24: 22 | U24: =IFERROR(IF(A24="","",VLOOKUP(A24,[1]Hoja1!$B$2:$U$4999,10,FALSE)),0) -> 0 | V24: =IFERROR(IF(Q24="","",VLOOKUP(Q24,[1]Hoja1!$D$2:$AF$4999,29,FALSE)),"NO EXISTE CUENTA") -> 00116233402100001006 | Y24: ALFARO HUANACUNI PASCUAL
A25: 47 | B25: =IFERROR(IF(A25="","",VLOOKUP(A25,[1]Hoja1!$B$2:$U$4999,9,FALSE)),0) -> 0 | C25: =IFERROR(IF(A25="","",VLOOKUP(A25,[1]Hoja1!$B$2:$U$4999,2,FALSE))," --- NO EXISTE TRABAJADOR --- ") -> PAREDES CHIPANA EDGAR DANIEL | D25: 2018-06-05 | E25: 0 | F25: 175.225 | G25: 2 | H25: 4 | I25: 12.00 / 18.00 | J25: BE | K25: BE2 | L25: =IFERROR(IF(A25="","",VLOOKUP(A25,[1]Hoja1!$B$2:$U$4999,18,FALSE)),0) -> 0 | M25: =IFERROR(IF(A25="","",VLOOKUP(A25,[1]Hoja1!$B$2:$U$4999,19,FALSE)),0) -> 42 | P25: =IFERROR(IF(O25="","",VLOOKUP(O25,JORNADA!$A$19:$B$20,2,FALSE)),"") ->  | Q25: =IFERROR(IF(A25="","",VLOOKUP(A25,[1]Hoja1!$B$2:$U$4999,3,FALSE)),0) -> 4748729 | R25: 4748729 | S25: 47 | T25: 23 | U25: =IFERROR(IF(A25="","",VLOOKUP(A25,[1]Hoja1!$B$2:$U$4999,10,FALSE)),0) -> 0 | V25: =IFERROR(IF(Q25="","",VLOOKUP(Q25,[1]Hoja1!$D$2:$AF$4999,29,FALSE)),"NO EXISTE CUENTA") -> 00058828302100002006 | Y25: PAREDES CHIPANA EDGAR DANIEL
A26: 51 | B26: =IFERROR(IF(A26="","",VLOOKUP(A26,[1]Hoja1!$B$2:$U$4999,9,FALSE)),0) -> 0 | C26: =IFERROR(IF(A26="","",VLOOKUP(A26,[1]Hoja1!$B$2:$U$4999,2,FALSE))," --- NO EXISTE TRABAJADOR --- ") -> APAZA SULCA VICTOR JOSE | D26: 2018-06-05 | E26: 0 | F26: 175.225 | G26: 2 | H26: 4 | I26: 12.00 / 18.00 | J26: BE | K26: BE2 | L26: =IFERROR(IF(A26="","",VLOOKUP(A26,[1]Hoja1!$B$2:$U$4999,18,FALSE)),0) -> 0 | M26: =IFERROR(IF(A26="","",VLOOKUP(A26,[1]Hoja1!$B$2:$U$4999,19,FALSE)),0) -> 48 | P26: =IFERROR(IF(O26="","",VLOOKUP(O26,JORNADA!$A$19:$B$20,2,FALSE)),"") ->  | Q26: =IFERROR(IF(A26="","",VLOOKUP(A26,[1]Hoja1!$B$2:$U$4999,3,FALSE)),0) -> 4645084 | R26: 4645084 | S26: 51 | T26: 24 | U26: =IFERROR(IF(A26="","",VLOOKUP(A26,[1]Hoja1!$B$2:$U$4999,10,FALSE)),0) -> 0 | V26: =IFERROR(IF(Q26="","",VLOOKUP(Q26,[1]Hoja1!$D$2:$AF$4999,29,FALSE)),"NO EXISTE CUENTA") -> 00116238402100001006 | Y26: APAZA SULCA VICTOR JOSE
A27: 52 | B27: =IFERROR(IF(A27="","",VLOOKUP(A27,[1]Hoja1!$B$2:$U$4999,9,FALSE)),0) -> 0 | C27: =IFERROR(IF(A27="","",VLOOKUP(A27,[1]Hoja1!$B$2:$U$4999,2,FALSE))," --- NO EXISTE TRABAJADOR --- ") -> RODRIGUEZ JUAREZ JORGE LUIS | D27: 2018-06-05 | E27: 0 | F27: 175.225 | G27: 2 | H27: 4 | I27: 12.00 / 18.00 | J27: BE | K27: BE2 | L27: =IFERROR(IF(A27="","",VLOOKUP(A27,[1]Hoja1!$B$2:$U$4999,18,FALSE)),0) -> 0 | M27: =IFERROR(IF(A27="","",VLOOKUP(A27,[1]Hoja1!$B$2:$U$4999,19,FALSE)),0) -> 53 | P27: =IFERROR(IF(O27="","",VLOOKUP(O27,JORNADA!$A$19:$B$20,2,FALSE)),"") ->  | Q27: =IFERROR(IF(A27="","",VLOOKUP(A27,[1]Hoja1!$B$2:$U$4999,3,FALSE)),0) -> 4627196 | R27: 4627196 | S27: 52 | T27: 25 | U27: =IFERROR(IF(A27="","",VLOOKUP(A27,[1]Hoja1!$B$2:$U$4999,10,FALSE)),0) -> 0 | V27: =IFERROR(IF(Q27="","",VLOOKUP(Q27,[1]Hoja1!$D$2:$AF$4999,29,FALSE)),"NO EXISTE CUENTA") -> 00116038802100001006 | Y27: RODRIGUEZ JUAREZ JORGE LUIS
A28: 53 | B28: =IFERROR(IF(A28="","",VLOOKUP(A28,[1]Hoja1!$B$2:$U$4999,9,FALSE)),0) -> 0 | C28: =IFERROR(IF(A28="","",VLOOKUP(A28,[1]Hoja1!$B$2:$U$4999,2,FALSE))," --- NO EXISTE TRABAJADOR --- ") -> LOPEZ FLORES MARIO LORENZO | D28: 2018-06-05 | E28: 0 | F28: 175.225 | G28: 2 | H28: 4 | I28: 12.00 / 18.00 | J28: BE | K28: BE2 | L28: =IFERROR(IF(A28="","",VLOOKUP(A28,[1]Hoja1!$B$2:$U$4999,18,FALSE)),0) -> 0 | M28: =IFERROR(IF(A28="","",VLOOKUP(A28,[1]Hoja1!$B$2:$U$4999,19,FALSE)),0) -> 58 | P28: =IFERROR(IF(O28="","",VLOOKUP(O28,JORNADA!$A$19:$B$20,2,FALSE)),"") ->  | Q28: =IFERROR(IF(A28="","",VLOOKUP(A28,[1]Hoja1!$B$2:$U$4999,3,FALSE)),0) -> 4632145 | R28: 4632145 | S28: 53 | T28: 26 | U28: =IFERROR(IF(A28="","",VLOOKUP(A28,[1]Hoja1!$B$2:$U$4999,10,FALSE)),0) -> 0 | V28: =IFERROR(IF(Q28="","",VLOOKUP(Q28,[1]Hoja1!$D$2:$AF$4999,29,FALSE)),"NO EXISTE CUENTA") -> 00211711402100001006 | Y28: LOPEZ FLORES MARIO LORENZO
A29: 57 | B29: =IFERROR(IF(A29="","",VLOOKUP(A29,[1]Hoja1!$B$2:$U$4999,9,FALSE)),0) -> 0 | C29: =IFERROR(IF(A29="","",VLOOKUP(A29,[1]Hoja1!$B$2:$U$4999,2,FALSE))," --- NO EXISTE TRABAJADOR --- ") -> ROQUE CHOCANO BENEDICTO DOMINGO | D29: 2018-06-05 | E29: 0 | F29: 175.225 | G29: 2 | H29: 4 | I29: 12.00 / 18.00 | J29: BE | K29: BE2 | L29: =IFERROR(IF(A29="","",VLOOKUP(A29,[1]Hoja1!$B$2:$U$4999,18,FALSE)),0) -> 0 | M29: =IFERROR(IF(A29="","",VLOOKUP(A29,[1]Hoja1!$B$2:$U$4999,19,FALSE)),0) -> 64 | P29: =IFERROR(IF(O29="","",VLOOKUP(O29,JORNADA!$A$19:$B$20,2,FALSE)),"") ->  | Q29: =IFERROR(IF(A29="","",VLOOKUP(A29,[1]Hoja1!$B$2:$U$4999,3,FALSE)),0) -> 4620974 | R29: 4620974 | S29: 57 | T29: 27 | U29: =IFERROR(IF(A29="","",VLOOKUP(A29,[1]Hoja1!$B$2:$U$4999,10,FALSE)),0) -> 0 | V29: =IFERROR(IF(Q29="","",VLOOKUP(Q29,[1]Hoja1!$D$2:$AF$4999,29,FALSE)),"NO EXISTE CUENTA") -> 00116330002100001006 | Y29: ROQUE CHOCANO BENEDICTO DOMINGO
A30: 62 | B30: =IFERROR(IF(A30="","",VLOOKUP(A30,[1]Hoja1!$B$2:$U$4999,9,FALSE)),0) -> 0 | C30: =IFERROR(IF(A30="","",VLOOKUP(A30,[1]Hoja1!$B$2:$U$4999,2,FALSE))," --- NO EXISTE TRABAJADOR --- ") -> RIVERA CARDENAS LUIS ALBERTO | D30: 2018-06-05 | E30: 0 | F30: 175.225 | G30: 2 | H30: 4 | I30: 12.00 / 18.00 | J30: BE | K30: BE2 | L30: =IFERROR(IF(A30="","",VLOOKUP(A30,[1]Hoja1!$B$2:$U$4999,18,FALSE)),0) -> 0 | M30: =IFERROR(IF(A30="","",VLOOKUP(A30,[1]Hoja1!$B$2:$U$4999,19,FALSE)),0) -> 61 | P30: =IFERROR(IF(O30="","",VLOOKUP(O30,JORNADA!$A$19:$B$20,2,FALSE)),"") ->  | Q30: =IFERROR(IF(A30="","",VLOOKUP(A30,[1]Hoja1!$B$2:$U$4999,3,FALSE)),0) -> 4622607 | R30: 4622607 | S30: 62 | T30: 28 | U30: =IFERROR(IF(A30="","",VLOOKUP(A30,[1]Hoja1!$B$2:$U$4999,10,FALSE)),0) -> 0 | V30: =IFERROR(IF(Q30="","",VLOOKUP(Q30,[1]Hoja1!$D$2:$AF$4999,29,FALSE)),"NO EXISTE CUENTA") -> 00116037202100001006 | Y30: RIVERA CARDENAS LUIS ALBERTO
A31: 64 | B31: =IFERROR(IF(A31="","",VLOOKUP(A31,[1]Hoja1!$B$2:$U$4999,9,FALSE)),0) -> 0 | C31: =IFERROR(IF(A31="","",VLOOKUP(A31,[1]Hoja1!$B$2:$U$4999,2,FALSE))," --- NO EXISTE TRABAJADOR --- ") -> COSSIO UTANI SALES FRANCISCO | D31: 2018-06-05 | E31: 0 | F31: 0 | G31: 2 | H31: 5 | I31: 12.00 / 18.00 | J31: ME | K31: ME2 | L31: =IFERROR(IF(A31="","",VLOOKUP(A31,[1]Hoja1!$B$2:$U$4999,18,FALSE)),0) -> 0 | M31: =IFERROR(IF(A31="","",VLOOKUP(A31,[1]Hoja1!$B$2:$U$4999,19,FALSE)),0) -> 60 | P31: =IFERROR(IF(O31="","",VLOOKUP(O31,JORNADA!$A$19:$B$20,2,FALSE)),"") ->  | Q31: =IFERROR(IF(A31="","",VLOOKUP(A31,[1]Hoja1!$B$2:$U$4999,3,FALSE)),0) -> 4625771 | R31: 4625771 | S31: 64 | T31: 29 | U31: =IFERROR(IF(A31="","",VLOOKUP(A31,[1]Hoja1!$B$2:$U$4999,10,FALSE)),0) -> 0 | V31: =IFERROR(IF(Q31="","",VLOOKUP(Q31,[1]Hoja1!$D$2:$AF$4999,29,FALSE)),"NO EXISTE CUENTA") -> 00099894402100001006 | Y31: COSSIO UTANI SALES FRANCISCO
A32: 66 | B32: =IFERROR(IF(A32="","",VLOOKUP(A32,[1]Hoja1!$B$2:$U$4999,9,FALSE)),0) -> 0 | C32: =IFERROR(IF(A32="","",VLOOKUP(A32,[1]Hoja1!$B$2:$U$4999,2,FALSE))," --- NO EXISTE TRABAJADOR --- ") -> MAMANI MAMANI PABLO | D32: 2018-06-05 | E32: 0 | F32: 0 | G32: 2 | H32: 5 | I32: 12.00 / 18.00 | J32: ME | K32: ME2 | L32: =IFERROR(IF(A32="","",VLOOKUP(A32,[1]Hoja1!$B$2:$U$4999,18,FALSE)),0) -> 0 | M32: =IFERROR(IF(A32="","",VLOOKUP(A32,[1]Hoja1!$B$2:$U$4999,19,FALSE)),0) -> 57 | P32: =IFERROR(IF(O32="","",VLOOKUP(O32,JORNADA!$A$19:$B$20,2,FALSE)),"") ->  | Q32: =IFERROR(IF(A32="","",VLOOKUP(A32,[1]Hoja1!$B$2:$U$4999,3,FALSE)),0) -> 4624886 | R32: 4624886 | S32: 66 | T32: 30 | U32: =IFERROR(IF(A32="","",VLOOKUP(A32,[1]Hoja1!$B$2:$U$4999,10,FALSE)),0) -> 0 | V32: =IFERROR(IF(Q32="","",VLOOKUP(Q32,[1]Hoja1!$D$2:$AF$4999,29,FALSE)),"NO EXISTE CUENTA") -> 00052170202100004006 | Y32: MAMANI MAMANI PABLO
A33: 70 | B33: =IFERROR(IF(A33="","",VLOOKUP(A33,[1]Hoja1!$B$2:$U$4999,9,FALSE)),0) -> 0 | C33: =IFERROR(IF(A33="","",VLOOKUP(A33,[1]Hoja1!$B$2:$U$4999,2,FALSE))," --- NO EXISTE TRABAJADOR --- ") -> TORRES CRUZ CARLOS ENRIQUE | D33: 2018-06-05 | E33: 0 | F33: 0 | G33: 2 | H33: 5 | I33: 12.00 / 18.00 | J33: ME | K33: ME2 | L33: =IFERROR(IF(A33="","",VLOOKUP(A33,[1]Hoja1!$B$2:$U$4999,18,FALSE)),0) -> 0 | M33: =IFERROR(IF(A33="","",VLOOKUP(A33,[1]Hoja1!$B$2:$U$4999,19,FALSE)),0) -> 61 | P33: =IFERROR(IF(O33="","",VLOOKUP(O33,JORNADA!$A$19:$B$20,2,FALSE)),"") ->  | Q33: =IFERROR(IF(A33="","",VLOOKUP(A33,[1]Hoja1!$B$2:$U$4999,3,FALSE)),0) -> 4649039 | R33: 4649039 | S33: 70 | T33: 31 | U33: =IFERROR(IF(A33="","",VLOOKUP(A33,[1]Hoja1!$B$2:$U$4999,10,FALSE)),0) -> 0 | V33: =IFERROR(IF(Q33="","",VLOOKUP(Q33,[1]Hoja1!$D$2:$AF$4999,29,FALSE)),"NO EXISTE CUENTA") -> 00048086402100003006 | Y33: TORRES CRUZ CARLOS ENRIQUE
A34: 73 | B34: =IFERROR(IF(A34="","",VLOOKUP(A34,[1]Hoja1!$B$2:$U$4999,9,FALSE)),0) -> 0 | C34: =IFERROR(IF(A34="","",VLOOKUP(A34,[1]Hoja1!$B$2:$U$4999,2,FALSE))," --- NO EXISTE TRABAJADOR --- ") -> MARTINEZ ZEVALLOS VIDAL | D34: 2018-06-05 | E34: 0 | F34: 0 | G34: 2 | H34: 5 | I34: 12.00 / 18.00 | J34: ME | K34: ME2 | L34: =IFERROR(IF(A34="","",VLOOKUP(A34,[1]Hoja1!$B$2:$U$4999,18,FALSE)),0) -> 0 | M34: =IFERROR(IF(A34="","",VLOOKUP(A34,[1]Hoja1!$B$2:$U$4999,19,FALSE)),0) -> 55 | P34: =IFERROR(IF(O34="","",VLOOKUP(O34,JORNADA!$A$19:$B$20,2,FALSE)),"") ->  | Q34: =IFERROR(IF(A34="","",VLOOKUP(A34,[1]Hoja1!$B$2:$U$4999,3,FALSE)),0) -> 4634102 | R34: 4634102 | S34: 73 | T34: 32 | U34: =IFERROR(IF(A34="","",VLOOKUP(A34,[1]Hoja1!$B$2:$U$4999,10,FALSE)),0) -> 0 | V34: =IFERROR(IF(Q34="","",VLOOKUP(Q34,[1]Hoja1!$D$2:$AF$4999,29,FALSE)),"NO EXISTE CUENTA") -> 00187158102100001006 | Y34: MARTINEZ ZEVALLOS VIDAL
A35: 130 | B35: =IFERROR(IF(A35="","",VLOOKUP(A35,[1]Hoja1!$B$2:$U$4999,9,FALSE)),0) -> 0 | C35: =IFERROR(IF(A35="","",VLOOKUP(A35,[1]Hoja1!$B$2:$U$4999,2,FALSE))," --- NO EXISTE TRABAJADOR --- ") -> TRAUCO MALDONADO EDGAR | D35: 2018-06-05 | E35: 0 | F35: 116.3 | G35: 1 | H35: 1 | I35: 06.00 / 12.00 | J35: WE | K35: WE1 | L35: =IFERROR(IF(A35="","",VLOOKUP(A35,[1]Hoja1!$B$2:$U$4999,18,FALSE)),0) -> 0 | M35: =IFERROR(IF(A35="","",VLOOKUP(A35,[1]Hoja1!$B$2:$U$4999,19,FALSE)),0) -> 59 | N35: LICENCIA SINDICAL | P35: =IFERROR(IF(O35="","",VLOOKUP(O35,JORNADA!$A$19:$B$20,2,FALSE)),"") ->  | Q35: =IFERROR(IF(A35="","",VLOOKUP(A35,[1]Hoja1!$B$2:$U$4999,3,FALSE)),0) -> 4629398 | R35: 4629398 | S35: 130 | T35: 33 | U35: =IFERROR(IF(A35="","",VLOOKUP(A35,[1]Hoja1!$B$2:$U$4999,10,FALSE)),0) -> 0.6 | V35: =IFERROR(IF(Q35="","",VLOOKUP(Q35,[1]Hoja1!$D$2:$AF$4999,29,FALSE)),"NO EXISTE CUENTA") -> 00101219902100001006 | W35: 1 | Y35: TRAUCO MALDONADO EDGAR
A36: AB1 | B36: =IFERROR(IF(A36="","",VLOOKUP(A36,[1]Hoja1!$B$2:$U$4999,9,FALSE)),0) -> 0 | C36: =IFERROR(IF(A36="","",VLOOKUP(A36,[1]Hoja1!$B$2:$U$4999,2,FALSE))," --- NO EXISTE TRABAJADOR --- ") -> CASTRO RAMIREZ FRANCISCO DANIEL | D36: 2018-06-05 | E36: 0 | F36: 175.225 | G36: 2 | H36: 4 | I36: 12.00 / 18.00 | J36: BE | K36: BE2 | L36: =IFERROR(IF(A36="","",VLOOKUP(A36,[1]Hoja1!$B$2:$U$4999,18,FALSE)),0) -> 0 | M36: =IFERROR(IF(A36="","",VLOOKUP(A36,[1]Hoja1!$B$2:$U$4999,19,FALSE)),0) -> 68 | N36: LICENCIA SINDICAL | P36: =IFERROR(IF(O36="","",VLOOKUP(O36,JORNADA!$A$19:$B$20,2,FALSE)),"") ->  | Q36: =IFERROR(IF(A36="","",VLOOKUP(A36,[1]Hoja1!$B$2:$U$4999,3,FALSE)),0) -> 4632634 | R36: 4632634 | S36: AB1 | T36: 34 | U36: =IFERROR(IF(A36="","",VLOOKUP(A36,[1]Hoja1!$B$2:$U$4999,10,FALSE)),0) -> 0 | V36: =IFERROR(IF(Q36="","",VLOOKUP(Q36,[1]Hoja1!$D$2:$AF$4999,29,FALSE)),"NO EXISTE CUENTA") -> 00052494202100002006 | W36: 1 | Y36: CASTRO RAMIREZ FRANCISCO DANIEL
A37: AB3 | B37: =IFERROR(IF(A37="","",VLOOKUP(A37,[1]Hoja1!$B$2:$U$4999,9,FALSE)),0) -> 0 | C37: =IFERROR(IF(A37="","",VLOOKUP(A37,[1]Hoja1!$B$2:$U$4999,2,FALSE))," --- NO EXISTE TRABAJADOR --- ") -> ZEVALLOS ESPINOZA RAUL ARCIBIADES | D37: 2018-06-05 | E37: 0 | F37: 175.225 | G37: 2 | H37: 4 | I37: 12.00 / 18.00 | J37: BE | K37: BE2 | L37: =IFERROR(IF(A37="","",VLOOKUP(A37,[1]Hoja1!$B$2:$U$4999,18,FALSE)),0) -> 0 | M37: =IFERROR(IF(A37="","",VLOOKUP(A37,[1]Hoja1!$B$2:$U$4999,19,FALSE)),0) -> 56 | N37: LICENCIA SINDICAL | P37: =IFERROR(IF(O37="","",VLOOKUP(O37,JORNADA!$A$19:$B$20,2,FALSE)),"") ->  | Q37: =IFERROR(IF(A37="","",VLOOKUP(A37,[1]Hoja1!$B$2:$U$4999,3,FALSE)),0) -> 4629488 | R37: 4629488 | S37: AB3 | T37: 35 | U37: =IFERROR(IF(A37="","",VLOOKUP(A37,[1]Hoja1!$B$2:$U$4999,10,FALSE)),0) -> 0 | V37: =IFERROR(IF(Q37="","",VLOOKUP(Q37,[1]Hoja1!$D$2:$AF$4999,29,FALSE)),"NO EXISTE CUENTA") -> 00116330902100001006 | W37: 1 | Y37: ZEVALLOS ESPINOZA RAUL ARCIBIADES
B38: =IFERROR(IF(A38="","",VLOOKUP(A38,[1]Hoja1!$B$2:$U$4999,9,FALSE)),0) ->  | C38: =IFERROR(IF(A38="","",VLOOKUP(A38,[1]Hoja1!$B$2:$U$4999,2,FALSE))," --- NO EXISTE TRABAJADOR --- ") ->  | L38: =IFERROR(IF(A38="","",VLOOKUP(A38,[1]Hoja1!$B$2:$U$4999,18,FALSE)),0) ->  | M38: =IFERROR(IF(A38="","",VLOOKUP(A38,[1]Hoja1!$B$2:$U$4999,19,FALSE)),0) ->  | P38: =IFERROR(IF(O38="","",VLOOKUP(O38,JORNADA!$A$19:$B$20,2,FALSE)),"") ->  | Q38: =IFERROR(IF(A38="","",VLOOKUP(A38,[1]Hoja1!$B$2:$U$4999,3,FALSE)),0) ->  | U38: =IFERROR(IF(A38="","",VLOOKUP(A38,[1]Hoja1!$B$2:$U$4999,10,FALSE)),0) ->  | V38: =IFERROR(IF(Q38="","",VLOOKUP(Q38,[1]Hoja1!$D$2:$AF$4999,29,FALSE)),"NO EXISTE CUENTA") -> 
B39: =IFERROR(IF(A39="","",VLOOKUP(A39,[1]Hoja1!$B$2:$U$4999,9,FALSE)),0) ->  | C39: =IFERROR(IF(A39="","",VLOOKUP(A39,[1]Hoja1!$B$2:$U$4999,2,FALSE))," --- NO EXISTE TRABAJADOR --- ") ->  | L39: =IFERROR(IF(A39="","",VLOOKUP(A39,[1]Hoja1!$B$2:$U$4999,18,FALSE)),0) ->  | M39: =IFERROR(IF(A39="","",VLOOKUP(A39,[1]Hoja1!$B$2:$U$4999,19,FALSE)),0) ->  | P39: =IFERROR(IF(O39="","",VLOOKUP(O39,JORNADA!$A$19:$B$20,2,FALSE)),"") ->  | Q39: =IFERROR(IF(A39="","",VLOOKUP(A39,[1]Hoja1!$B$2:$U$4999,3,FALSE)),0) ->  | U39: =IFERROR(IF(A39="","",VLOOKUP(A39,[1]Hoja1!$B$2:$U$4999,10,FALSE)),0) ->  | V39: =IFERROR(IF(Q39="","",VLOOKUP(Q39,[1]Hoja1!$D$2:$AF$4999,29,FALSE)),"NO EXISTE CUENTA") -> 
B40: =IFERROR(IF(A40="","",VLOOKUP(A40,[1]Hoja1!$B$2:$U$4999,9,FALSE)),0) ->  | C40: =IFERROR(IF(A40="","",VLOOKUP(A40,[1]Hoja1!$B$2:$U$4999,2,FALSE))," --- NO EXISTE TRABAJADOR --- ") ->  | L40: =IFERROR(IF(A40="","",VLOOKUP(A40,[1]Hoja1!$B$2:$U$4999,18,FALSE)),0) ->  | M40: =IFERROR(IF(A40="","",VLOOKUP(A40,[1]Hoja1!$B$2:$U$4999,19,FALSE)),0) ->  | P40: =IFERROR(IF(O40="","",VLOOKUP(O40,JORNADA!$A$19:$B$20,2,FALSE)),"") ->  | Q40: =IFERROR(IF(A40="","",VLOOKUP(A40,[1]Hoja1!$B$2:$U$4999,3,FALSE)),0) ->  | U40: =IFERROR(IF(A40="","",VLOOKUP(A40,[1]Hoja1!$B$2:$U$4999,10,FALSE)),0) ->  | V40: =IFERROR(IF(Q40="","",VLOOKUP(Q40,[1]Hoja1!$D$2:$AF$4999,29,FALSE)),"NO EXISTE CUENTA") -> 
B41: =IFERROR(IF(A41="","",VLOOKUP(A41,[1]Hoja1!$B$2:$U$4999,9,FALSE)),0) ->  | C41: =IFERROR(IF(A41="","",VLOOKUP(A41,[1]Hoja1!$B$2:$U$4999,2,FALSE))," --- NO EXISTE TRABAJADOR --- ") ->  | L41: =IFERROR(IF(A41="","",VLOOKUP(A41,[1]Hoja1!$B$2:$U$4999,18,FALSE)),0) ->  | M41: =IFERROR(IF(A41="","",VLOOKUP(A41,[1]Hoja1!$B$2:$U$4999,19,FALSE)),0) ->  | P41: =IFERROR(IF(O41="","",VLOOKUP(O41,JORNADA!$A$19:$B$20,2,FALSE)),"") ->  | Q41: =IFERROR(IF(A41="","",VLOOKUP(A41,[1]Hoja1!$B$2:$U$4999,3,FALSE)),0) ->  | U41: =IFERROR(IF(A41="","",VLOOKUP(A41,[1]Hoja1!$B$2:$U$4999,10,FALSE)),0) ->  | V41: =IFERROR(IF(Q41="","",VLOOKUP(Q41,[1]Hoja1!$D$2:$AF$4999,29,FALSE)),"NO EXISTE CUENTA") -> 
B42: =IFERROR(IF(A42="","",VLOOKUP(A42,[1]Hoja1!$B$2:$U$4999,9,FALSE)),0) ->  | C42: =IFERROR(IF(A42="","",VLOOKUP(A42,[1]Hoja1!$B$2:$U$4999,2,FALSE))," --- NO EXISTE TRABAJADOR --- ") ->  | L42: =IFERROR(IF(A42="","",VLOOKUP(A42,[1]Hoja1!$B$2:$U$4999,18,FALSE)),0) ->  | M42: =IFERROR(IF(A42="","",VLOOKUP(A42,[1]Hoja1!$B$2:$U$4999,19,FALSE)),0) ->  | P42: =IFERROR(IF(O42="","",VLOOKUP(O42,JORNADA!$A$19:$B$20,2,FALSE)),"") ->  | Q42: =IFERROR(IF(A42="","",VLOOKUP(A42,[1]Hoja1!$B$2:$U$4999,3,FALSE)),0) ->  | U42: =IFERROR(IF(A42="","",VLOOKUP(A42,[1]Hoja1!$B$2:$U$4999,10,FALSE)),0) ->  | V42: =IFERROR(IF(Q42="","",VLOOKUP(Q42,[1]Hoja1!$D$2:$AF$4999,29,FALSE)),"NO EXISTE CUENTA") -> 
B43: =IFERROR(IF(A43="","",VLOOKUP(A43,[1]Hoja1!$B$2:$U$4999,9,FALSE)),0) ->  | C43: =IFERROR(IF(A43="","",VLOOKUP(A43,[1]Hoja1!$B$2:$U$4999,2,FALSE))," --- NO EXISTE TRABAJADOR --- ") ->  | L43: =IFERROR(IF(A43="","",VLOOKUP(A43,[1]Hoja1!$B$2:$U$4999,18,FALSE)),0) ->  | M43: =IFERROR(IF(A43="","",VLOOKUP(A43,[1]Hoja1!$B$2:$U$4999,19,FALSE)),0) ->  | P43: =IFERROR(IF(O43="","",VLOOKUP(O43,JORNADA!$A$19:$B$20,2,FALSE)),"") ->  | Q43: =IFERROR(IF(A43="","",VLOOKUP(A43,[1]Hoja1!$B$2:$U$4999,3,FALSE)),0) ->  | U43: =IFERROR(IF(A43="","",VLOOKUP(A43,[1]Hoja1!$B$2:$U$4999,10,FALSE)),0) ->  | V43: =IFERROR(IF(Q43="","",VLOOKUP(Q43,[1]Hoja1!$D$2:$AF$4999,29,FALSE)),"NO EXISTE CUENTA") -> 
B44: =IFERROR(IF(A44="","",VLOOKUP(A44,[1]Hoja1!$B$2:$U$4999,9,FALSE)),0) ->  | C44: =IFERROR(IF(A44="","",VLOOKUP(A44,[1]Hoja1!$B$2:$U$4999,2,FALSE))," --- NO EXISTE TRABAJADOR --- ") ->  | L44: =IFERROR(IF(A44="","",VLOOKUP(A44,[1]Hoja1!$B$2:$U$4999,18,FALSE)),0) ->  | M44: =IFERROR(IF(A44="","",VLOOKUP(A44,[1]Hoja1!$B$2:$U$4999,19,FALSE)),0) ->  | P44: =IFERROR(IF(O44="","",VLOOKUP(O44,JORNADA!$A$19:$B$20,2,FALSE)),"") ->  | Q44: =IFERROR(IF(A44="","",VLOOKUP(A44,[1]Hoja1!$B$2:$U$4999,3,FALSE)),0) ->  | U44: =IFERROR(IF(A44="","",VLOOKUP(A44,[1]Hoja1!$B$2:$U$4999,10,FALSE)),0) ->  | V44: =IFERROR(IF(Q44="","",VLOOKUP(Q44,[1]Hoja1!$D$2:$AF$4999,29,FALSE)),"NO EXISTE CUENTA") -> 
B45: =IFERROR(IF(A45="","",VLOOKUP(A45,[1]Hoja1!$B$2:$U$4999,9,FALSE)),0) ->  | C45: =IFERROR(IF(A45="","",VLOOKUP(A45,[1]Hoja1!$B$2:$U$4999,2,FALSE))," --- NO EXISTE TRABAJADOR --- ") ->  | L45: =IFERROR(IF(A45="","",VLOOKUP(A45,[1]Hoja1!$B$2:$U$4999,18,FALSE)),0) ->  | M45: =IFERROR(IF(A45="","",VLOOKUP(A45,[1]Hoja1!$B$2:$U$4999,19,FALSE)),0) ->  | P45: =IFERROR(IF(O45="","",VLOOKUP(O45,JORNADA!$A$19:$B$20,2,FALSE)),"") ->  | Q45: =IFERROR(IF(A45="","",VLOOKUP(A45,[1]Hoja1!$B$2:$U$4999,3,FALSE)),0) ->  | U45: =IFERROR(IF(A45="","",VLOOKUP(A45,[1]Hoja1!$B$2:$U$4999,10,FALSE)),0) ->  | V45: =IFERROR(IF(Q45="","",VLOOKUP(Q45,[1]Hoja1!$D$2:$AF$4999,29,FALSE)),"NO EXISTE CUENTA") -> 
B46: =IFERROR(IF(A46="","",VLOOKUP(A46,[1]Hoja1!$B$2:$U$4999,9,FALSE)),0) ->  | C46: =IFERROR(IF(A46="","",VLOOKUP(A46,[1]Hoja1!$B$2:$U$4999,2,FALSE))," --- NO EXISTE TRABAJADOR --- ") ->  | L46: =IFERROR(IF(A46="","",VLOOKUP(A46,[1]Hoja1!$B$2:$U$4999,18,FALSE)),0) ->  | M46: =IFERROR(IF(A46="","",VLOOKUP(A46,[1]Hoja1!$B$2:$U$4999,19,FALSE)),0) ->  | P46: =IFERROR(IF(O46="","",VLOOKUP(O46,JORNADA!$A$19:$B$20,2,FALSE)),"") ->  | Q46: =IFERROR(IF(A46="","",VLOOKUP(A46,[1]Hoja1!$B$2:$U$4999,3,FALSE)),0) ->  | U46: =IFERROR(IF(A46="","",VLOOKUP(A46,[1]Hoja1!$B$2:$U$4999,10,FALSE)),0) ->  | V46: =IFERROR(IF(Q46="","",VLOOKUP(Q46,[1]Hoja1!$D$2:$AF$4999,29,FALSE)),"NO EXISTE CUENTA") -> 
B47: =IFERROR(IF(A47="","",VLOOKUP(A47,[1]Hoja1!$B$2:$U$4999,9,FALSE)),0) ->  | C47: =IFERROR(IF(A47="","",VLOOKUP(A47,[1]Hoja1!$B$2:$U$4999,2,FALSE))," --- NO EXISTE TRABAJADOR --- ") ->  | L47: =IFERROR(IF(A47="","",VLOOKUP(A47,[1]Hoja1!$B$2:$U$4999,18,FALSE)),0) ->  | M47: =IFERROR(IF(A47="","",VLOOKUP(A47,[1]Hoja1!$B$2:$U$4999,19,FALSE)),0) ->  | P47: =IFERROR(IF(O47="","",VLOOKUP(O47,JORNADA!$A$19:$B$20,2,FALSE)),"") ->  | Q47: =IFERROR(IF(A47="","",VLOOKUP(A47,[1]Hoja1!$B$2:$U$4999,3,FALSE)),0) ->  | U47: =IFERROR(IF(A47="","",VLOOKUP(A47,[1]Hoja1!$B$2:$U$4999,10,FALSE)),0) ->  | V47: =IFERROR(IF(Q47="","",VLOOKUP(Q47,[1]Hoja1!$D$2:$AF$4999,29,FALSE)),"NO EXISTE CUENTA") -> 
B48: =IFERROR(IF(A48="","",VLOOKUP(A48,[1]Hoja1!$B$2:$U$4999,9,FALSE)),0) ->  | C48: =IFERROR(IF(A48="","",VLOOKUP(A48,[1]Hoja1!$B$2:$U$4999,2,FALSE))," --- NO EXISTE TRABAJADOR --- ") ->  | L48: =IFERROR(IF(A48="","",VLOOKUP(A48,[1]Hoja1!$B$2:$U$4999,18,FALSE)),0) ->  | M48: =IFERROR(IF(A48="","",VLOOKUP(A48,[1]Hoja1!$B$2:$U$4999,19,FALSE)),0) ->  | P48: =IFERROR(IF(O48="","",VLOOKUP(O48,JORNADA!$A$19:$B$20,2,FALSE)),"") ->  | Q48: =IFERROR(IF(A48="","",VLOOKUP(A48,[1]Hoja1!$B$2:$U$4999,3,FALSE)),0) ->  | U48: =IFERROR(IF(A48="","",VLOOKUP(A48,[1]Hoja1!$B$2:$U$4999,10,FALSE)),0) ->  | V48: =IFERROR(IF(Q48="","",VLOOKUP(Q48,[1]Hoja1!$D$2:$AF$4999,29,FALSE)),"NO EXISTE CUENTA") -> 
B49: =IFERROR(IF(A49="","",VLOOKUP(A49,[1]Hoja1!$B$2:$U$4999,9,FALSE)),0) ->  | C49: =IFERROR(IF(A49="","",VLOOKUP(A49,[1]Hoja1!$B$2:$U$4999,2,FALSE))," --- NO EXISTE TRABAJADOR --- ") ->  | L49: =IFERROR(IF(A49="","",VLOOKUP(A49,[1]Hoja1!$B$2:$U$4999,18,FALSE)),0) ->  | M49: =IFERROR(IF(A49="","",VLOOKUP(A49,[1]Hoja1!$B$2:$U$4999,19,FALSE)),0) ->  | P49: =IFERROR(IF(O49="","",VLOOKUP(O49,JORNADA!$A$19:$B$20,2,FALSE)),"") ->  | Q49: =IFERROR(IF(A49="","",VLOOKUP(A49,[1]Hoja1!$B$2:$U$4999,3,FALSE)),0) ->  | U49: =IFERROR(IF(A49="","",VLOOKUP(A49,[1]Hoja1!$B$2:$U$4999,10,FALSE)),0) ->  | V49: =IFERROR(IF(Q49="","",VLOOKUP(Q49,[1]Hoja1!$D$2:$AF$4999,29,FALSE)),"NO EXISTE CUENTA") -> 
B50: =IFERROR(IF(A50="","",VLOOKUP(A50,[1]Hoja1!$B$2:$U$4999,9,FALSE)),0) ->  | C50: =IFERROR(IF(A50="","",VLOOKUP(A50,[1]Hoja1!$B$2:$U$4999,2,FALSE))," --- NO EXISTE TRABAJADOR --- ") ->  | L50: =IFERROR(IF(A50="","",VLOOKUP(A50,[1]Hoja1!$B$2:$U$4999,18,FALSE)),0) ->  | M50: =IFERROR(IF(A50="","",VLOOKUP(A50,[1]Hoja1!$B$2:$U$4999,19,FALSE)),0) ->  | P50: =IFERROR(IF(O50="","",VLOOKUP(O50,JORNADA!$A$19:$B$20,2,FALSE)),"") ->  | Q50: =IFERROR(IF(A50="","",VLOOKUP(A50,[1]Hoja1!$B$2:$U$4999,3,FALSE)),0) ->  | U50: =IFERROR(IF(A50="","",VLOOKUP(A50,[1]Hoja1!$B$2:$U$4999,10,FALSE)),0) ->  | V50: =IFERROR(IF(Q50="","",VLOOKUP(Q50,[1]Hoja1!$D$2:$AF$4999,29,FALSE)),"NO EXISTE CUENTA") -> 
B51: =IFERROR(IF(A51="","",VLOOKUP(A51,[1]Hoja1!$B$2:$U$4999,9,FALSE)),0) ->  | C51: =IFERROR(IF(A51="","",VLOOKUP(A51,[1]Hoja1!$B$2:$U$4999,2,FALSE))," --- NO EXISTE TRABAJADOR --- ") ->  | L51: =IFERROR(IF(A51="","",VLOOKUP(A51,[1]Hoja1!$B$2:$U$4999,18,FALSE)),0) ->  | M51: =IFERROR(IF(A51="","",VLOOKUP(A51,[1]Hoja1!$B$2:$U$4999,19,FALSE)),0) ->  | P51: =IFERROR(IF(O51="","",VLOOKUP(O51,JORNADA!$A$19:$B$20,2,FALSE)),"") ->  | Q51: =IFERROR(IF(A51="","",VLOOKUP(A51,[1]Hoja1!$B$2:$U$4999,3,FALSE)),0) ->  | U51: =IFERROR(IF(A51="","",VLOOKUP(A51,[1]Hoja1!$B$2:$U$4999,10,FALSE)),0) ->  | V51: =IFERROR(IF(Q51="","",VLOOKUP(Q51,[1]Hoja1!$D$2:$AF$4999,29,FALSE)),"NO EXISTE CUENTA") -> 
B52: =IFERROR(IF(A52="","",VLOOKUP(A52,[1]Hoja1!$B$2:$U$4999,9,FALSE)),0) ->  | C52: =IFERROR(IF(A52="","",VLOOKUP(A52,[1]Hoja1!$B$2:$U$4999,2,FALSE))," --- NO EXISTE TRABAJADOR --- ") ->  | L52: =IFERROR(IF(A52="","",VLOOKUP(A52,[1]Hoja1!$B$2:$U$4999,18,FALSE)),0) ->  | M52: =IFERROR(IF(A52="","",VLOOKUP(A52,[1]Hoja1!$B$2:$U$4999,19,FALSE)),0) ->  | P52: =IFERROR(IF(O52="","",VLOOKUP(O52,JORNADA!$A$19:$B$20,2,FALSE)),"") ->  | Q52: =IFERROR(IF(A52="","",VLOOKUP(A52,[1]Hoja1!$B$2:$U$4999,3,FALSE)),0) ->  | U52: =IFERROR(IF(A52="","",VLOOKUP(A52,[1]Hoja1!$B$2:$U$4999,10,FALSE)),0) ->  | V52: =IFERROR(IF(Q52="","",VLOOKUP(Q52,[1]Hoja1!$D$2:$AF$4999,29,FALSE)),"NO EXISTE CUENTA") -> 
B53: =IFERROR(IF(A53="","",VLOOKUP(A53,[1]Hoja1!$B$2:$U$4999,9,FALSE)),0) ->  | C53: =IFERROR(IF(A53="","",VLOOKUP(A53,[1]Hoja1!$B$2:$U$4999,2,FALSE))," --- NO EXISTE TRABAJADOR --- ") ->  | L53: =IFERROR(IF(A53="","",VLOOKUP(A53,[1]Hoja1!$B$2:$U$4999,18,FALSE)),0) ->  | M53: =IFERROR(IF(A53="","",VLOOKUP(A53,[1]Hoja1!$B$2:$U$4999,19,FALSE)),0) ->  | P53: =IFERROR(IF(O53="","",VLOOKUP(O53,JORNADA!$A$19:$B$20,2,FALSE)),"") ->  | Q53: =IFERROR(IF(A53="","",VLOOKUP(A53,[1]Hoja1!$B$2:$U$4999,3,FALSE)),0) ->  | U53: =IFERROR(IF(A53="","",VLOOKUP(A53,[1]Hoja1!$B$2:$U$4999,10,FALSE)),0) ->  | V53: =IFERROR(IF(Q53="","",VLOOKUP(Q53,[1]Hoja1!$D$2:$AF$4999,29,FALSE)),"NO EXISTE CUENTA") -> 
B54: =IFERROR(IF(A54="","",VLOOKUP(A54,[1]Hoja1!$B$2:$U$4999,9,FALSE)),0) ->  | C54: =IFERROR(IF(A54="","",VLOOKUP(A54,[1]Hoja1!$B$2:$U$4999,2,FALSE))," --- NO EXISTE TRABAJADOR --- ") ->  | L54: =IFERROR(IF(A54="","",VLOOKUP(A54,[1]Hoja1!$B$2:$U$4999,18,FALSE)),0) ->  | M54: =IFERROR(IF(A54="","",VLOOKUP(A54,[1]Hoja1!$B$2:$U$4999,19,FALSE)),0) ->  | P54: =IFERROR(IF(O54="","",VLOOKUP(O54,JORNADA!$A$19:$B$20,2,FALSE)),"") ->  | Q54: =IFERROR(IF(A54="","",VLOOKUP(A54,[1]Hoja1!$B$2:$U$4999,3,FALSE)),0) ->  | U54: =IFERROR(IF(A54="","",VLOOKUP(A54,[1]Hoja1!$B$2:$U$4999,10,FALSE)),0) ->  | V54: =IFERROR(IF(Q54="","",VLOOKUP(Q54,[1]Hoja1!$D$2:$AF$4999,29,FALSE)),"NO EXISTE CUENTA") -> 
B55: =IFERROR(IF(A55="","",VLOOKUP(A55,[1]Hoja1!$B$2:$U$4999,9,FALSE)),0) ->  | C55: =IFERROR(IF(A55="","",VLOOKUP(A55,[1]Hoja1!$B$2:$U$4999,2,FALSE))," --- NO EXISTE TRABAJADOR --- ") ->  | L55: =IFERROR(IF(A55="","",VLOOKUP(A55,[1]Hoja1!$B$2:$U$4999,18,FALSE)),0) ->  | M55: =IFERROR(IF(A55="","",VLOOKUP(A55,[1]Hoja1!$B$2:$U$4999,19,FALSE)),0) ->  | P55: =IFERROR(IF(O55="","",VLOOKUP(O55,JORNADA!$A$19:$B$20,2,FALSE)),"") ->  | Q55: =IFERROR(IF(A55="","",VLOOKUP(A55,[1]Hoja1!$B$2:$U$4999,3,FALSE)),0) ->  | U55: =IFERROR(IF(A55="","",VLOOKUP(A55,[1]Hoja1!$B$2:$U$4999,10,FALSE)),0) ->  | V55: =IFERROR(IF(Q55="","",VLOOKUP(Q55,[1]Hoja1!$D$2:$AF$4999,29,FALSE)),"NO EXISTE CUENTA") -> 
B56: =IFERROR(IF(A56="","",VLOOKUP(A56,[1]Hoja1!$B$2:$U$4999,9,FALSE)),0) ->  | C56: =IFERROR(IF(A56="","",VLOOKUP(A56,[1]Hoja1!$B$2:$U$4999,2,FALSE))," --- NO EXISTE TRABAJADOR --- ") ->  | L56: =IFERROR(IF(A56="","",VLOOKUP(A56,[1]Hoja1!$B$2:$U$4999,18,FALSE)),0) ->  | M56: =IFERROR(IF(A56="","",VLOOKUP(A56,[1]Hoja1!$B$2:$U$4999,19,FALSE)),0) ->  | P56: =IFERROR(IF(O56="","",VLOOKUP(O56,JORNADA!$A$19:$B$20,2,FALSE)),"") ->  | Q56: =IFERROR(IF(A56="","",VLOOKUP(A56,[1]Hoja1!$B$2:$U$4999,3,FALSE)),0) ->  | U56: =IFERROR(IF(A56="","",VLOOKUP(A56,[1]Hoja1!$B$2:$U$4999,10,FALSE)),0) ->  | V56: =IFERROR(IF(Q56="","",VLOOKUP(Q56,[1]Hoja1!$D$2:$AF$4999,29,FALSE)),"NO EXISTE CUENTA") -> 
B57: =IFERROR(IF(A57="","",VLOOKUP(A57,[1]Hoja1!$B$2:$U$4999,9,FALSE)),0) ->  | C57: =IFERROR(IF(A57="","",VLOOKUP(A57,[1]Hoja1!$B$2:$U$4999,2,FALSE))," --- NO EXISTE TRABAJADOR --- ") ->  | L57: =IFERROR(IF(A57="","",VLOOKUP(A57,[1]Hoja1!$B$2:$U$4999,18,FALSE)),0) ->  | M57: =IFERROR(IF(A57="","",VLOOKUP(A57,[1]Hoja1!$B$2:$U$4999,19,FALSE)),0) ->  | P57: =IFERROR(IF(O57="","",VLOOKUP(O57,JORNADA!$A$19:$B$20,2,FALSE)),"") ->  | Q57: =IFERROR(IF(A57="","",VLOOKUP(A57,[1]Hoja1!$B$2:$U$4999,3,FALSE)),0) ->  | U57: =IFERROR(IF(A57="","",VLOOKUP(A57,[1]Hoja1!$B$2:$U$4999,10,FALSE)),0) ->  | V57: =IFERROR(IF(Q57="","",VLOOKUP(Q57,[1]Hoja1!$D$2:$AF$4999,29,FALSE)),"NO EXISTE CUENTA") -> 
B58: =IFERROR(IF(A58="","",VLOOKUP(A58,[1]Hoja1!$B$2:$U$4999,9,FALSE)),0) ->  | C58: =IFERROR(IF(A58="","",VLOOKUP(A58,[1]Hoja1!$B$2:$U$4999,2,FALSE))," --- NO EXISTE TRABAJADOR --- ") ->  | L58: =IFERROR(IF(A58="","",VLOOKUP(A58,[1]Hoja1!$B$2:$U$4999,18,FALSE)),0) ->  | M58: =IFERROR(IF(A58="","",VLOOKUP(A58,[1]Hoja1!$B$2:$U$4999,19,FALSE)),0) ->  | P58: =IFERROR(IF(O58="","",VLOOKUP(O58,JORNADA!$A$19:$B$20,2,FALSE)),"") ->  | Q58: =IFERROR(IF(A58="","",VLOOKUP(A58,[1]Hoja1!$B$2:$U$4999,3,FALSE)),0) ->  | U58: =IFERROR(IF(A58="","",VLOOKUP(A58,[1]Hoja1!$B$2:$U$4999,10,FALSE)),0) ->  | V58: =IFERROR(IF(Q58="","",VLOOKUP(Q58,[1]Hoja1!$D$2:$AF$4999,29,FALSE)),"NO EXISTE CUENTA") -> 
B59: =IFERROR(IF(A59="","",VLOOKUP(A59,[1]Hoja1!$B$2:$U$4999,9,FALSE)),0) ->  | C59: =IFERROR(IF(A59="","",VLOOKUP(A59,[1]Hoja1!$B$2:$U$4999,2,FALSE))," --- NO EXISTE TRABAJADOR --- ") ->  | L59: =IFERROR(IF(A59="","",VLOOKUP(A59,[1]Hoja1!$B$2:$U$4999,18,FALSE)),0) ->  | M59: =IFERROR(IF(A59="","",VLOOKUP(A59,[1]Hoja1!$B$2:$U$4999,19,FALSE)),0) ->  | P59: =IFERROR(IF(O59="","",VLOOKUP(O59,JORNADA!$A$19:$B$20,2,FALSE)),"") ->  | Q59: =IFERROR(IF(A59="","",VLOOKUP(A59,[1]Hoja1!$B$2:$U$4999,3,FALSE)),0) ->  | U59: =IFERROR(IF(A59="","",VLOOKUP(A59,[1]Hoja1!$B$2:$U$4999,10,FALSE)),0) ->  | V59: =IFERROR(IF(Q59="","",VLOOKUP(Q59,[1]Hoja1!$D$2:$AF$4999,29,FALSE)),"NO EXISTE CUENTA") -> 
B60: =IFERROR(IF(A60="","",VLOOKUP(A60,[1]Hoja1!$B$2:$U$4999,9,FALSE)),0) ->  | C60: =IFERROR(IF(A60="","",VLOOKUP(A60,[1]Hoja1!$B$2:$U$4999,2,FALSE))," --- NO EXISTE TRABAJADOR --- ") ->  | L60: =IFERROR(IF(A60="","",VLOOKUP(A60,[1]Hoja1!$B$2:$U$4999,18,FALSE)),0) ->  | M60: =IFERROR(IF(A60="","",VLOOKUP(A60,[1]Hoja1!$B$2:$U$4999,19,FALSE)),0) ->  | P60: =IFERROR(IF(O60="","",VLOOKUP(O60,JORNADA!$A$19:$B$20,2,FALSE)),"") ->  | Q60: =IFERROR(IF(A60="","",VLOOKUP(A60,[1]Hoja1!$B$2:$U$4999,3,FALSE)),0) ->  | U60: =IFERROR(IF(A60="","",VLOOKUP(A60,[1]Hoja1!$B$2:$U$4999,10,FALSE)),0) ->  | V60: =IFERROR(IF(Q60="","",VLOOKUP(Q60,[1]Hoja1!$D$2:$AF$4999,29,FALSE)),"NO EXISTE CUENTA") -> 
B61: =IFERROR(IF(A61="","",VLOOKUP(A61,[1]Hoja1!$B$2:$U$4999,9,FALSE)),0) ->  | C61: =IFERROR(IF(A61="","",VLOOKUP(A61,[1]Hoja1!$B$2:$U$4999,2,FALSE))," --- NO EXISTE TRABAJADOR --- ") ->  | L61: =IFERROR(IF(A61="","",VLOOKUP(A61,[1]Hoja1!$B$2:$U$4999,18,FALSE)),0) ->  | M61: =IFERROR(IF(A61="","",VLOOKUP(A61,[1]Hoja1!$B$2:$U$4999,19,FALSE)),0) ->  | P61: =IFERROR(IF(O61="","",VLOOKUP(O61,JORNADA!$A$19:$B$20,2,FALSE)),"") ->  | Q61: =IFERROR(IF(A61="","",VLOOKUP(A61,[1]Hoja1!$B$2:$U$4999,3,FALSE)),0) ->  | U61: =IFERROR(IF(A61="","",VLOOKUP(A61,[1]Hoja1!$B$2:$U$4999,10,FALSE)),0) ->  | V61: =IFERROR(IF(Q61="","",VLOOKUP(Q61,[1]Hoja1!$D$2:$AF$4999,29,FALSE)),"NO EXISTE CUENTA") -> 
B62: =IFERROR(IF(A62="","",VLOOKUP(A62,[1]Hoja1!$B$2:$U$4999,9,FALSE)),0) ->  | C62: =IFERROR(IF(A62="","",VLOOKUP(A62,[1]Hoja1!$B$2:$U$4999,2,FALSE))," --- NO EXISTE TRABAJADOR --- ") ->  | L62: =IFERROR(IF(A62="","",VLOOKUP(A62,[1]Hoja1!$B$2:$U$4999,18,FALSE)),0) ->  | M62: =IFERROR(IF(A62="","",VLOOKUP(A62,[1]Hoja1!$B$2:$U$4999,19,FALSE)),0) ->  | P62: =IFERROR(IF(O62="","",VLOOKUP(O62,JORNADA!$A$19:$B$20,2,FALSE)),"") ->  | Q62: =IFERROR(IF(A62="","",VLOOKUP(A62,[1]Hoja1!$B$2:$U$4999,3,FALSE)),0) ->  | U62: =IFERROR(IF(A62="","",VLOOKUP(A62,[1]Hoja1!$B$2:$U$4999,10,FALSE)),0) ->  | V62: =IFERROR(IF(Q62="","",VLOOKUP(Q62,[1]Hoja1!$D$2:$AF$4999,29,FALSE)),"NO EXISTE CUENTA") -> 
B63: =IFERROR(IF(A63="","",VLOOKUP(A63,[1]Hoja1!$B$2:$U$4999,9,FALSE)),0) ->  | C63: =IFERROR(IF(A63="","",VLOOKUP(A63,[1]Hoja1!$B$2:$U$4999,2,FALSE))," --- NO EXISTE TRABAJADOR --- ") ->  | L63: =IFERROR(IF(A63="","",VLOOKUP(A63,[1]Hoja1!$B$2:$U$4999,18,FALSE)),0) ->  | M63: =IFERROR(IF(A63="","",VLOOKUP(A63,[1]Hoja1!$B$2:$U$4999,19,FALSE)),0) ->  | P63: =IFERROR(IF(O63="","",VLOOKUP(O63,JORNADA!$A$19:$B$20,2,FALSE)),"") ->  | Q63: =IFERROR(IF(A63="","",VLOOKUP(A63,[1]Hoja1!$B$2:$U$4999,3,FALSE)),0) ->  | U63: =IFERROR(IF(A63="","",VLOOKUP(A63,[1]Hoja1!$B$2:$U$4999,10,FALSE)),0) ->  | V63: =IFERROR(IF(Q63="","",VLOOKUP(Q63,[1]Hoja1!$D$2:$AF$4999,29,FALSE)),"NO EXISTE CUENTA") -> 
B64: =IFERROR(IF(A64="","",VLOOKUP(A64,[1]Hoja1!$B$2:$U$4999,9,FALSE)),0) ->  | C64: =IFERROR(IF(A64="","",VLOOKUP(A64,[1]Hoja1!$B$2:$U$4999,2,FALSE))," --- NO EXISTE TRABAJADOR --- ") ->  | L64: =IFERROR(IF(A64="","",VLOOKUP(A64,[1]Hoja1!$B$2:$U$4999,18,FALSE)),0) ->  | M64: =IFERROR(IF(A64="","",VLOOKUP(A64,[1]Hoja1!$B$2:$U$4999,19,FALSE)),0) ->  | P64: =IFERROR(IF(O64="","",VLOOKUP(O64,JORNADA!$A$19:$B$20,2,FALSE)),"") ->  | Q64: =IFERROR(IF(A64="","",VLOOKUP(A64,[1]Hoja1!$B$2:$U$4999,3,FALSE)),0) ->  | U64: =IFERROR(IF(A64="","",VLOOKUP(A64,[1]Hoja1!$B$2:$U$4999,10,FALSE)),0) ->  | V64: =IFERROR(IF(Q64="","",VLOOKUP(Q64,[1]Hoja1!$D$2:$AF$4999,29,FALSE)),"NO EXISTE CUENTA") -> 
B65: =IFERROR(IF(A65="","",VLOOKUP(A65,[1]Hoja1!$B$2:$U$4999,9,FALSE)),0) ->  | C65: =IFERROR(IF(A65="","",VLOOKUP(A65,[1]Hoja1!$B$2:$U$4999,2,FALSE))," --- NO EXISTE TRABAJADOR --- ") ->  | L65: =IFERROR(IF(A65="","",VLOOKUP(A65,[1]Hoja1!$B$2:$U$4999,18,FALSE)),0) ->  | M65: =IFERROR(IF(A65="","",VLOOKUP(A65,[1]Hoja1!$B$2:$U$4999,19,FALSE)),0) ->  | P65: =IFERROR(IF(O65="","",VLOOKUP(O65,JORNADA!$A$19:$B$20,2,FALSE)),"") ->  | Q65: =IFERROR(IF(A65="","",VLOOKUP(A65,[1]Hoja1!$B$2:$U$4999,3,FALSE)),0) ->  | U65: =IFERROR(IF(A65="","",VLOOKUP(A65,[1]Hoja1!$B$2:$U$4999,10,FALSE)),0) ->  | V65: =IFERROR(IF(Q65="","",VLOOKUP(Q65,[1]Hoja1!$D$2:$AF$4999,29,FALSE)),"NO EXISTE CUENTA") -> 
B66: =IFERROR(IF(A66="","",VLOOKUP(A66,[1]Hoja1!$B$2:$U$4999,9,FALSE)),0) ->  | C66: =IFERROR(IF(A66="","",VLOOKUP(A66,[1]Hoja1!$B$2:$U$4999,2,FALSE))," --- NO EXISTE TRABAJADOR --- ") ->  | L66: =IFERROR(IF(A66="","",VLOOKUP(A66,[1]Hoja1!$B$2:$U$4999,18,FALSE)),0) ->  | M66: =IFERROR(IF(A66="","",VLOOKUP(A66,[1]Hoja1!$B$2:$U$4999,19,FALSE)),0) ->  | P66: =IFERROR(IF(O66="","",VLOOKUP(O66,JORNADA!$A$19:$B$20,2,FALSE)),"") ->  | Q66: =IFERROR(IF(A66="","",VLOOKUP(A66,[1]Hoja1!$B$2:$U$4999,3,FALSE)),0) ->  | U66: =IFERROR(IF(A66="","",VLOOKUP(A66,[1]Hoja1!$B$2:$U$4999,10,FALSE)),0) ->  | V66: =IFERROR(IF(Q66="","",VLOOKUP(Q66,[1]Hoja1!$D$2:$AF$4999,29,FALSE)),"NO EXISTE CUENTA") -> 
A67: =+S67 ->  | B67: =IFERROR(IF(A67="","",VLOOKUP(A67,[1]Hoja1!$B$2:$U$4999,9,FALSE)),0) ->  | C67: =IFERROR(IF(A67="","",VLOOKUP(A67,[1]Hoja1!$B$2:$U$4999,2,FALSE))," --- NO EXISTE TRABAJADOR --- ") ->  | I67: =IFERROR(IF(G67="","",VLOOKUP(G67,JORNADA,2,FALSE)),0) ->  | J67: =IFERROR(IF(H67="","",VLOOKUP(H67,ACTIVIDAD,2,FALSE)),0) ->  | K67: =CONCATENATE(J67,G67) ->  | L67: =IFERROR(IF(A67="","",VLOOKUP(A67,[1]Hoja1!$B$2:$U$4999,18,FALSE)),0) ->  | M67: =IFERROR(IF(A67="","",VLOOKUP(A67,[1]Hoja1!$B$2:$U$4999,19,FALSE)),0) ->  | N67: =IFERROR(IF(W67="","",VLOOKUP(W67,LICENCIA,2,FALSE)),"") ->  | P67: =IFERROR(IF(O67="","",VLOOKUP(O67,JORNADA!$A$19:$B$20,2,FALSE)),"") ->  | Q67: =IFERROR(IF(A67="","",VLOOKUP(A67,[1]Hoja1!$B$2:$U$4999,3,FALSE)),0) ->  | S67: =IFERROR(IF(R67="","",VLOOKUP(R67,DNI,2,FALSE)),0) ->  | T67: =IF(D67<>"",COUNTA(INDIRECT("D2:D"&ROW()-1)),"") ->  | U67: =IFERROR(IF(A67="","",VLOOKUP(A67,[1]Hoja1!$B$2:$U$4999,10,FALSE)),0) ->  | V67: =IFERROR(IF(Q67="","",VLOOKUP(Q67,[1]Hoja1!$D$2:$AF$4999,29,FALSE)),"NO EXISTE CUENTA") ->  | Y67: =+C67 -> 
B68: =IFERROR(IF(A68="","",VLOOKUP(A68,[1]Hoja1!$B$2:$U$4999,9,FALSE)),0) ->  | C68: =IFERROR(IF(A68="","",VLOOKUP(A68,[1]Hoja1!$B$2:$U$4999,2,FALSE))," --- NO EXISTE TRABAJADOR --- ") ->  | L68: =IFERROR(IF(A68="","",VLOOKUP(A68,[1]Hoja1!$B$2:$U$4999,18,FALSE)),0) ->  | M68: =IFERROR(IF(A68="","",VLOOKUP(A68,[1]Hoja1!$B$2:$U$4999,19,FALSE)),0) ->  | P68: =IFERROR(IF(O68="","",VLOOKUP(O68,JORNADA!$A$19:$B$20,2,FALSE)),"") ->  | Q68: =IFERROR(IF(A68="","",VLOOKUP(A68,[1]Hoja1!$B$2:$U$4999,3,FALSE)),0) ->  | U68: =IFERROR(IF(A68="","",VLOOKUP(A68,[1]Hoja1!$B$2:$U$4999,10,FALSE)),0) ->  | V68: =IFERROR(IF(Q68="","",VLOOKUP(Q68,[1]Hoja1!$D$2:$AF$4999,29,FALSE)),"NO EXISTE CUENTA") -> 
B69: =IFERROR(IF(A69="","",VLOOKUP(A69,[1]Hoja1!$B$2:$U$4999,9,FALSE)),0) ->  | C69: =IFERROR(IF(A69="","",VLOOKUP(A69,[1]Hoja1!$B$2:$U$4999,2,FALSE))," --- NO EXISTE TRABAJADOR --- ") ->  | L69: =IFERROR(IF(A69="","",VLOOKUP(A69,[1]Hoja1!$B$2:$U$4999,18,FALSE)),0) ->  | M69: =IFERROR(IF(A69="","",VLOOKUP(A69,[1]Hoja1!$B$2:$U$4999,19,FALSE)),0) ->  | P69: =IFERROR(IF(O69="","",VLOOKUP(O69,JORNADA!$A$19:$B$20,2,FALSE)),"") ->  | Q69: =IFERROR(IF(A69="","",VLOOKUP(A69,[1]Hoja1!$B$2:$U$4999,3,FALSE)),0) ->  | U69: =IFERROR(IF(A69="","",VLOOKUP(A69,[1]Hoja1!$B$2:$U$4999,10,FALSE)),0) ->  | V69: =IFERROR(IF(Q69="","",VLOOKUP(Q69,[1]Hoja1!$D$2:$AF$4999,29,FALSE)),"NO EXISTE CUENTA") -> 
B70: =IFERROR(IF(A70="","",VLOOKUP(A70,[1]Hoja1!$B$2:$U$4999,9,FALSE)),0) ->  | C70: =IFERROR(IF(A70="","",VLOOKUP(A70,[1]Hoja1!$B$2:$U$4999,2,FALSE))," --- NO EXISTE TRABAJADOR --- ") ->  | L70: =IFERROR(IF(A70="","",VLOOKUP(A70,[1]Hoja1!$B$2:$U$4999,18,FALSE)),0) ->  | M70: =IFERROR(IF(A70="","",VLOOKUP(A70,[1]Hoja1!$B$2:$U$4999,19,FALSE)),0) ->  | P70: =IFERROR(IF(O70="","",VLOOKUP(O70,JORNADA!$A$19:$B$20,2,FALSE)),"") ->  | Q70: =IFERROR(IF(A70="","",VLOOKUP(A70,[1]Hoja1!$B$2:$U$4999,3,FALSE)),0) ->  | U70: =IFERROR(IF(A70="","",VLOOKUP(A70,[1]Hoja1!$B$2:$U$4999,10,FALSE)),0) ->  | V70: =IFERROR(IF(Q70="","",VLOOKUP(Q70,[1]Hoja1!$D$2:$AF$4999,29,FALSE)),"NO EXISTE CUENTA") -> 
B71: =IFERROR(IF(A71="","",VLOOKUP(A71,[1]Hoja1!$B$2:$U$4999,9,FALSE)),0) ->  | C71: =IFERROR(IF(A71="","",VLOOKUP(A71,[1]Hoja1!$B$2:$U$4999,2,FALSE))," --- NO EXISTE TRABAJADOR --- ") ->  | L71: =IFERROR(IF(A71="","",VLOOKUP(A71,[1]Hoja1!$B$2:$U$4999,18,FALSE)),0) ->  | M71: =IFERROR(IF(A71="","",VLOOKUP(A71,[1]Hoja1!$B$2:$U$4999,19,FALSE)),0) ->  | P71: =IFERROR(IF(O71="","",VLOOKUP(O71,JORNADA!$A$19:$B$20,2,FALSE)),"") ->  | Q71: =IFERROR(IF(A71="","",VLOOKUP(A71,[1]Hoja1!$B$2:$U$4999,3,FALSE)),0) ->  | U71: =IFERROR(IF(A71="","",VLOOKUP(A71,[1]Hoja1!$B$2:$U$4999,10,FALSE)),0) ->  | V71: =IFERROR(IF(Q71="","",VLOOKUP(Q71,[1]Hoja1!$D$2:$AF$4999,29,FALSE)),"NO EXISTE CUENTA") -> 
B72: =IFERROR(IF(A72="","",VLOOKUP(A72,[1]Hoja1!$B$2:$U$4999,9,FALSE)),0) ->  | C72: =IFERROR(IF(A72="","",VLOOKUP(A72,[1]Hoja1!$B$2:$U$4999,2,FALSE))," --- NO EXISTE TRABAJADOR --- ") ->  | L72: =IFERROR(IF(A72="","",VLOOKUP(A72,[1]Hoja1!$B$2:$U$4999,18,FALSE)),0) ->  | M72: =IFERROR(IF(A72="","",VLOOKUP(A72,[1]Hoja1!$B$2:$U$4999,19,FALSE)),0) ->  | P72: =IFERROR(IF(O72="","",VLOOKUP(O72,JORNADA!$A$19:$B$20,2,FALSE)),"") ->  | Q72: =IFERROR(IF(A72="","",VLOOKUP(A72,[1]Hoja1!$B$2:$U$4999,3,FALSE)),0) ->  | U72: =IFERROR(IF(A72="","",VLOOKUP(A72,[1]Hoja1!$B$2:$U$4999,10,FALSE)),0) ->  | V72: =IFERROR(IF(Q72="","",VLOOKUP(Q72,[1]Hoja1!$D$2:$AF$4999,29,FALSE)),"NO EXISTE CUENTA") -> 
B73: =IFERROR(IF(A73="","",VLOOKUP(A73,[1]Hoja1!$B$2:$U$4999,9,FALSE)),0) ->  | C73: =IFERROR(IF(A73="","",VLOOKUP(A73,[1]Hoja1!$B$2:$U$4999,2,FALSE))," --- NO EXISTE TRABAJADOR --- ") ->  | L73: =IFERROR(IF(A73="","",VLOOKUP(A73,[1]Hoja1!$B$2:$U$4999,18,FALSE)),0) ->  | M73: =IFERROR(IF(A73="","",VLOOKUP(A73,[1]Hoja1!$B$2:$U$4999,19,FALSE)),0) ->  | P73: =IFERROR(IF(O73="","",VLOOKUP(O73,JORNADA!$A$19:$B$20,2,FALSE)),"") ->  | Q73: =IFERROR(IF(A73="","",VLOOKUP(A73,[1]Hoja1!$B$2:$U$4999,3,FALSE)),0) ->  | U73: =IFERROR(IF(A73="","",VLOOKUP(A73,[1]Hoja1!$B$2:$U$4999,10,FALSE)),0) ->  | V73: =IFERROR(IF(Q73="","",VLOOKUP(Q73,[1]Hoja1!$D$2:$AF$4999,29,FALSE)),"NO EXISTE CUENTA") -> 
B74: =IFERROR(IF(A74="","",VLOOKUP(A74,[1]Hoja1!$B$2:$U$4999,9,FALSE)),0) ->  | C74: =IFERROR(IF(A74="","",VLOOKUP(A74,[1]Hoja1!$B$2:$U$4999,2,FALSE))," --- NO EXISTE TRABAJADOR --- ") ->  | L74: =IFERROR(IF(A74="","",VLOOKUP(A74,[1]Hoja1!$B$2:$U$4999,18,FALSE)),0) ->  | M74: =IFERROR(IF(A74="","",VLOOKUP(A74,[1]Hoja1!$B$2:$U$4999,19,FALSE)),0) ->  | P74: =IFERROR(IF(O74="","",VLOOKUP(O74,JORNADA!$A$19:$B$20,2,FALSE)),"") ->  | Q74: =IFERROR(IF(A74="","",VLOOKUP(A74,[1]Hoja1!$B$2:$U$4999,3,FALSE)),0) ->  | U74: =IFERROR(IF(A74="","",VLOOKUP(A74,[1]Hoja1!$B$2:$U$4999,10,FALSE)),0) ->  | V74: =IFERROR(IF(Q74="","",VLOOKUP(Q74,[1]Hoja1!$D$2:$AF$4999,29,FALSE)),"NO EXISTE CUENTA") -> 
B75: =IFERROR(IF(A75="","",VLOOKUP(A75,[1]Hoja1!$B$2:$U$4999,9,FALSE)),0) ->  | C75: =IFERROR(IF(A75="","",VLOOKUP(A75,[1]Hoja1!$B$2:$U$4999,2,FALSE))," --- NO EXISTE TRABAJADOR --- ") ->  | L75: =IFERROR(IF(A75="","",VLOOKUP(A75,[1]Hoja1!$B$2:$U$4999,18,FALSE)),0) ->  | M75: =IFERROR(IF(A75="","",VLOOKUP(A75,[1]Hoja1!$B$2:$U$4999,19,FALSE)),0) ->  | P75: =IFERROR(IF(O75="","",VLOOKUP(O75,JORNADA!$A$19:$B$20,2,FALSE)),"") ->  | Q75: =IFERROR(IF(A75="","",VLOOKUP(A75,[1]Hoja1!$B$2:$U$4999,3,FALSE)),0) ->  | U75: =IFERROR(IF(A75="","",VLOOKUP(A75,[1]Hoja1!$B$2:$U$4999,10,FALSE)),0) ->  | V75: =IFERROR(IF(Q75="","",VLOOKUP(Q75,[1]Hoja1!$D$2:$AF$4999,29,FALSE)),"NO EXISTE CUENTA") -> 
B76: =IFERROR(IF(A76="","",VLOOKUP(A76,[1]Hoja1!$B$2:$U$4999,9,FALSE)),0) ->  | C76: =IFERROR(IF(A76="","",VLOOKUP(A76,[1]Hoja1!$B$2:$U$4999,2,FALSE))," --- NO EXISTE TRABAJADOR --- ") ->  | L76: =IFERROR(IF(A76="","",VLOOKUP(A76,[1]Hoja1!$B$2:$U$4999,18,FALSE)),0) ->  | M76: =IFERROR(IF(A76="","",VLOOKUP(A76,[1]Hoja1!$B$2:$U$4999,19,FALSE)),0) ->  | P76: =IFERROR(IF(O76="","",VLOOKUP(O76,JORNADA!$A$19:$B$20,2,FALSE)),"") ->  | Q76: =IFERROR(IF(A76="","",VLOOKUP(A76,[1]Hoja1!$B$2:$U$4999,3,FALSE)),0) ->  | U76: =IFERROR(IF(A76="","",VLOOKUP(A76,[1]Hoja1!$B$2:$U$4999,10,FALSE)),0) ->  | V76: =IFERROR(IF(Q76="","",VLOOKUP(Q76,[1]Hoja1!$D$2:$AF$4999,29,FALSE)),"NO EXISTE CUENTA") -> 
B77: =IFERROR(IF(A77="","",VLOOKUP(A77,[1]Hoja1!$B$2:$U$4999,9,FALSE)),0) ->  | C77: =IFERROR(IF(A77="","",VLOOKUP(A77,[1]Hoja1!$B$2:$U$4999,2,FALSE))," --- NO EXISTE TRABAJADOR --- ") ->  | L77: =IFERROR(IF(A77="","",VLOOKUP(A77,[1]Hoja1!$B$2:$U$4999,18,FALSE)),0) ->  | M77: =IFERROR(IF(A77="","",VLOOKUP(A77,[1]Hoja1!$B$2:$U$4999,19,FALSE)),0) ->  | P77: =IFERROR(IF(O77="","",VLOOKUP(O77,JORNADA!$A$19:$B$20,2,FALSE)),"") ->  | Q77: =IFERROR(IF(A77="","",VLOOKUP(A77,[1]Hoja1!$B$2:$U$4999,3,FALSE)),0) ->  | U77: =IFERROR(IF(A77="","",VLOOKUP(A77,[1]Hoja1!$B$2:$U$4999,10,FALSE)),0) ->  | V77: =IFERROR(IF(Q77="","",VLOOKUP(Q77,[1]Hoja1!$D$2:$AF$4999,29,FALSE)),"NO EXISTE CUENTA") -> 
B78: =IFERROR(IF(A78="","",VLOOKUP(A78,[1]Hoja1!$B$2:$U$4999,9,FALSE)),0) ->  | C78: =IFERROR(IF(A78="","",VLOOKUP(A78,[1]Hoja1!$B$2:$U$4999,2,FALSE))," --- NO EXISTE TRABAJADOR --- ") ->  | L78: =IFERROR(IF(A78="","",VLOOKUP(A78,[1]Hoja1!$B$2:$U$4999,18,FALSE)),0) ->  | M78: =IFERROR(IF(A78="","",VLOOKUP(A78,[1]Hoja1!$B$2:$U$4999,19,FALSE)),0) ->  | P78: =IFERROR(IF(O78="","",VLOOKUP(O78,JORNADA!$A$19:$B$20,2,FALSE)),"") ->  | Q78: =IFERROR(IF(A78="","",VLOOKUP(A78,[1]Hoja1!$B$2:$U$4999,3,FALSE)),0) ->  | U78: =IFERROR(IF(A78="","",VLOOKUP(A78,[1]Hoja1!$B$2:$U$4999,10,FALSE)),0) ->  | V78: =IFERROR(IF(Q78="","",VLOOKUP(Q78,[1]Hoja1!$D$2:$AF$4999,29,FALSE)),"NO EXISTE CUENTA") -> 
B79: =IFERROR(IF(A79="","",VLOOKUP(A79,[1]Hoja1!$B$2:$U$4999,9,FALSE)),0) ->  | C79: =IFERROR(IF(A79="","",VLOOKUP(A79,[1]Hoja1!$B$2:$U$4999,2,FALSE))," --- NO EXISTE TRABAJADOR --- ") ->  | L79: =IFERROR(IF(A79="","",VLOOKUP(A79,[1]Hoja1!$B$2:$U$4999,18,FALSE)),0) ->  | M79: =IFERROR(IF(A79="","",VLOOKUP(A79,[1]Hoja1!$B$2:$U$4999,19,FALSE)),0) ->  | P79: =IFERROR(IF(O79="","",VLOOKUP(O79,JORNADA!$A$19:$B$20,2,FALSE)),"") ->  | Q79: =IFERROR(IF(A79="","",VLOOKUP(A79,[1]Hoja1!$B$2:$U$4999,3,FALSE)),0) ->  | U79: =IFERROR(IF(A79="","",VLOOKUP(A79,[1]Hoja1!$B$2:$U$4999,10,FALSE)),0) ->  | V79: =IFERROR(IF(Q79="","",VLOOKUP(Q79,[1]Hoja1!$D$2:$AF$4999,29,FALSE)),"NO EXISTE CUENTA") -> 
B80: =IFERROR(IF(A80="","",VLOOKUP(A80,[1]Hoja1!$B$2:$U$4999,9,FALSE)),0) ->  | C80: =IFERROR(IF(A80="","",VLOOKUP(A80,[1]Hoja1!$B$2:$U$4999,2,FALSE))," --- NO EXISTE TRABAJADOR --- ") ->  | L80: =IFERROR(IF(A80="","",VLOOKUP(A80,[1]Hoja1!$B$2:$U$4999,18,FALSE)),0) ->  | M80: =IFERROR(IF(A80="","",VLOOKUP(A80,[1]Hoja1!$B$2:$U$4999,19,FALSE)),0) ->  | P80: =IFERROR(IF(O80="","",VLOOKUP(O80,JORNADA!$A$19:$B$20,2,FALSE)),"") ->  | Q80: =IFERROR(IF(A80="","",VLOOKUP(A80,[1]Hoja1!$B$2:$U$4999,3,FALSE)),0) ->  | U80: =IFERROR(IF(A80="","",VLOOKUP(A80,[1]Hoja1!$B$2:$U$4999,10,FALSE)),0) ->  | V80: =IFERROR(IF(Q80="","",VLOOKUP(Q80,[1]Hoja1!$D$2:$AF$4999,29,FALSE)),"NO EXISTE CUENTA") -> 
B81: =IFERROR(IF(A81="","",VLOOKUP(A81,[1]Hoja1!$B$2:$U$4999,9,FALSE)),0) ->  | C81: =IFERROR(IF(A81="","",VLOOKUP(A81,[1]Hoja1!$B$2:$U$4999,2,FALSE))," --- NO EXISTE TRABAJADOR --- ") ->  | L81: =IFERROR(IF(A81="","",VLOOKUP(A81,[1]Hoja1!$B$2:$U$4999,18,FALSE)),0) ->  | M81: =IFERROR(IF(A81="","",VLOOKUP(A81,[1]Hoja1!$B$2:$U$4999,19,FALSE)),0) ->  | P81: =IFERROR(IF(O81="","",VLOOKUP(O81,JORNADA!$A$19:$B$20,2,FALSE)),"") ->  | Q81: =IFERROR(IF(A81="","",VLOOKUP(A81,[1]Hoja1!$B$2:$U$4999,3,FALSE)),0) ->  | U81: =IFERROR(IF(A81="","",VLOOKUP(A81,[1]Hoja1!$B$2:$U$4999,10,FALSE)),0) ->  | V81: =IFERROR(IF(Q81="","",VLOOKUP(Q81,[1]Hoja1!$D$2:$AF$4999,29,FALSE)),"NO EXISTE CUENTA") -> 
B82: =IFERROR(IF(A82="","",VLOOKUP(A82,[1]Hoja1!$B$2:$U$4999,9,FALSE)),0) ->  | C82: =IFERROR(IF(A82="","",VLOOKUP(A82,[1]Hoja1!$B$2:$U$4999,2,FALSE))," --- NO EXISTE TRABAJADOR --- ") ->  | L82: =IFERROR(IF(A82="","",VLOOKUP(A82,[1]Hoja1!$B$2:$U$4999,18,FALSE)),0) ->  | M82: =IFERROR(IF(A82="","",VLOOKUP(A82,[1]Hoja1!$B$2:$U$4999,19,FALSE)),0) ->  | P82: =IFERROR(IF(O82="","",VLOOKUP(O82,JORNADA!$A$19:$B$20,2,FALSE)),"") ->  | Q82: =IFERROR(IF(A82="","",VLOOKUP(A82,[1]Hoja1!$B$2:$U$4999,3,FALSE)),0) ->  | U82: =IFERROR(IF(A82="","",VLOOKUP(A82,[1]Hoja1!$B$2:$U$4999,10,FALSE)),0) ->  | V82: =IFERROR(IF(Q82="","",VLOOKUP(Q82,[1]Hoja1!$D$2:$AF$4999,29,FALSE)),"NO EXISTE CUENTA") -> 
B83: =IFERROR(IF(A83="","",VLOOKUP(A83,[1]Hoja1!$B$2:$U$4999,9,FALSE)),0) ->  | C83: =IFERROR(IF(A83="","",VLOOKUP(A83,[1]Hoja1!$B$2:$U$4999,2,FALSE))," --- NO EXISTE TRABAJADOR --- ") ->  | L83: =IFERROR(IF(A83="","",VLOOKUP(A83,[1]Hoja1!$B$2:$U$4999,18,FALSE)),0) ->  | M83: =IFERROR(IF(A83="","",VLOOKUP(A83,[1]Hoja1!$B$2:$U$4999,19,FALSE)),0) ->  | P83: =IFERROR(IF(O83="","",VLOOKUP(O83,JORNADA!$A$19:$B$20,2,FALSE)),"") ->  | Q83: =IFERROR(IF(A83="","",VLOOKUP(A83,[1]Hoja1!$B$2:$U$4999,3,FALSE)),0) ->  | U83: =IFERROR(IF(A83="","",VLOOKUP(A83,[1]Hoja1!$B$2:$U$4999,10,FALSE)),0) ->  | V83: =IFERROR(IF(Q83="","",VLOOKUP(Q83,[1]Hoja1!$D$2:$AF$4999,29,FALSE)),"NO EXISTE CUENTA") -> 
B84: =IFERROR(IF(A84="","",VLOOKUP(A84,[1]Hoja1!$B$2:$U$4999,9,FALSE)),0) ->  | C84: =IFERROR(IF(A84="","",VLOOKUP(A84,[1]Hoja1!$B$2:$U$4999,2,FALSE))," --- NO EXISTE TRABAJADOR --- ") ->  | L84: =IFERROR(IF(A84="","",VLOOKUP(A84,[1]Hoja1!$B$2:$U$4999,18,FALSE)),0) ->  | M84: =IFERROR(IF(A84="","",VLOOKUP(A84,[1]Hoja1!$B$2:$U$4999,19,FALSE)),0) ->  | P84: =IFERROR(IF(O84="","",VLOOKUP(O84,JORNADA!$A$19:$B$20,2,FALSE)),"") ->  | Q84: =IFERROR(IF(A84="","",VLOOKUP(A84,[1]Hoja1!$B$2:$U$4999,3,FALSE)),0) ->  | U84: =IFERROR(IF(A84="","",VLOOKUP(A84,[1]Hoja1!$B$2:$U$4999,10,FALSE)),0) ->  | V84: =IFERROR(IF(Q84="","",VLOOKUP(Q84,[1]Hoja1!$D$2:$AF$4999,29,FALSE)),"NO EXISTE CUENTA") -> 
B85: =IFERROR(IF(A85="","",VLOOKUP(A85,[1]Hoja1!$B$2:$U$4999,9,FALSE)),0) ->  | C85: =IFERROR(IF(A85="","",VLOOKUP(A85,[1]Hoja1!$B$2:$U$4999,2,FALSE))," --- NO EXISTE TRABAJADOR --- ") ->  | L85: =IFERROR(IF(A85="","",VLOOKUP(A85,[1]Hoja1!$B$2:$U$4999,18,FALSE)),0) ->  | M85: =IFERROR(IF(A85="","",VLOOKUP(A85,[1]Hoja1!$B$2:$U$4999,19,FALSE)),0) ->  | P85: =IFERROR(IF(O85="","",VLOOKUP(O85,JORNADA!$A$19:$B$20,2,FALSE)),"") ->  | Q85: =IFERROR(IF(A85="","",VLOOKUP(A85,[1]Hoja1!$B$2:$U$4999,3,FALSE)),0) ->  | U85: =IFERROR(IF(A85="","",VLOOKUP(A85,[1]Hoja1!$B$2:$U$4999,10,FALSE)),0) ->  | V85: =IFERROR(IF(Q85="","",VLOOKUP(Q85,[1]Hoja1!$D$2:$AF$4999,29,FALSE)),"NO EXISTE CUENTA") -> 
B86: =IFERROR(IF(A86="","",VLOOKUP(A86,[1]Hoja1!$B$2:$U$4999,9,FALSE)),0) ->  | C86: =IFERROR(IF(A86="","",VLOOKUP(A86,[1]Hoja1!$B$2:$U$4999,2,FALSE))," --- NO EXISTE TRABAJADOR --- ") ->  | L86: =IFERROR(IF(A86="","",VLOOKUP(A86,[1]Hoja1!$B$2:$U$4999,18,FALSE)),0) ->  | M86: =IFERROR(IF(A86="","",VLOOKUP(A86,[1]Hoja1!$B$2:$U$4999,19,FALSE)),0) ->  | P86: =IFERROR(IF(O86="","",VLOOKUP(O86,JORNADA!$A$19:$B$20,2,FALSE)),"") ->  | Q86: =IFERROR(IF(A86="","",VLOOKUP(A86,[1]Hoja1!$B$2:$U$4999,3,FALSE)),0) ->  | U86: =IFERROR(IF(A86="","",VLOOKUP(A86,[1]Hoja1!$B$2:$U$4999,10,FALSE)),0) ->  | V86: =IFERROR(IF(Q86="","",VLOOKUP(Q86,[1]Hoja1!$D$2:$AF$4999,29,FALSE)),"NO EXISTE CUENTA") -> 
B87: =IFERROR(IF(A87="","",VLOOKUP(A87,[1]Hoja1!$B$2:$U$4999,9,FALSE)),0) ->  | C87: =IFERROR(IF(A87="","",VLOOKUP(A87,[1]Hoja1!$B$2:$U$4999,2,FALSE))," --- NO EXISTE TRABAJADOR --- ") ->  | L87: =IFERROR(IF(A87="","",VLOOKUP(A87,[1]Hoja1!$B$2:$U$4999,18,FALSE)),0) ->  | M87: =IFERROR(IF(A87="","",VLOOKUP(A87,[1]Hoja1!$B$2:$U$4999,19,FALSE)),0) ->  | P87: =IFERROR(IF(O87="","",VLOOKUP(O87,JORNADA!$A$19:$B$20,2,FALSE)),"") ->  | Q87: =IFERROR(IF(A87="","",VLOOKUP(A87,[1]Hoja1!$B$2:$U$4999,3,FALSE)),0) ->  | U87: =IFERROR(IF(A87="","",VLOOKUP(A87,[1]Hoja1!$B$2:$U$4999,10,FALSE)),0) ->  | V87: =IFERROR(IF(Q87="","",VLOOKUP(Q87,[1]Hoja1!$D$2:$AF$4999,29,FALSE)),"NO EXISTE CUENTA") -> 
B88: =IFERROR(IF(A88="","",VLOOKUP(A88,[1]Hoja1!$B$2:$U$4999,9,FALSE)),0) ->  | C88: =IFERROR(IF(A88="","",VLOOKUP(A88,[1]Hoja1!$B$2:$U$4999,2,FALSE))," --- NO EXISTE TRABAJADOR --- ") ->  | L88: =IFERROR(IF(A88="","",VLOOKUP(A88,[1]Hoja1!$B$2:$U$4999,18,FALSE)),0) ->  | M88: =IFERROR(IF(A88="","",VLOOKUP(A88,[1]Hoja1!$B$2:$U$4999,19,FALSE)),0) ->  | P88: =IFERROR(IF(O88="","",VLOOKUP(O88,JORNADA!$A$19:$B$20,2,FALSE)),"") ->  | Q88: =IFERROR(IF(A88="","",VLOOKUP(A88,[1]Hoja1!$B$2:$U$4999,3,FALSE)),0) ->  | U88: =IFERROR(IF(A88="","",VLOOKUP(A88,[1]Hoja1!$B$2:$U$4999,10,FALSE)),0) ->  | V88: =IFERROR(IF(Q88="","",VLOOKUP(Q88,[1]Hoja1!$D$2:$AF$4999,29,FALSE)),"NO EXISTE CUENTA") -> 
B89: =IFERROR(IF(A89="","",VLOOKUP(A89,[1]Hoja1!$B$2:$U$4999,9,FALSE)),0) ->  | C89: =IFERROR(IF(A89="","",VLOOKUP(A89,[1]Hoja1!$B$2:$U$4999,2,FALSE))," --- NO EXISTE TRABAJADOR --- ") ->  | L89: =IFERROR(IF(A89="","",VLOOKUP(A89,[1]Hoja1!$B$2:$U$4999,18,FALSE)),0) ->  | M89: =IFERROR(IF(A89="","",VLOOKUP(A89,[1]Hoja1!$B$2:$U$4999,19,FALSE)),0) ->  | P89: =IFERROR(IF(O89="","",VLOOKUP(O89,JORNADA!$A$19:$B$20,2,FALSE)),"") ->  | Q89: =IFERROR(IF(A89="","",VLOOKUP(A89,[1]Hoja1!$B$2:$U$4999,3,FALSE)),0) ->  | U89: =IFERROR(IF(A89="","",VLOOKUP(A89,[1]Hoja1!$B$2:$U$4999,10,FALSE)),0) ->  | V89: =IFERROR(IF(Q89="","",VLOOKUP(Q89,[1]Hoja1!$D$2:$AF$4999,29,FALSE)),"NO EXISTE CUENTA") -> 
B90: =IFERROR(IF(A90="","",VLOOKUP(A90,[1]Hoja1!$B$2:$U$4999,9,FALSE)),0) ->  | C90: =IFERROR(IF(A90="","",VLOOKUP(A90,[1]Hoja1!$B$2:$U$4999,2,FALSE))," --- NO EXISTE TRABAJADOR --- ") ->  | L90: =IFERROR(IF(A90="","",VLOOKUP(A90,[1]Hoja1!$B$2:$U$4999,18,FALSE)),0) ->  | M90: =IFERROR(IF(A90="","",VLOOKUP(A90,[1]Hoja1!$B$2:$U$4999,19,FALSE)),0) ->  | P90: =IFERROR(IF(O90="","",VLOOKUP(O90,JORNADA!$A$19:$B$20,2,FALSE)),"") ->  | Q90: =IFERROR(IF(A90="","",VLOOKUP(A90,[1]Hoja1!$B$2:$U$4999,3,FALSE)),0) ->  | U90: =IFERROR(IF(A90="","",VLOOKUP(A90,[1]Hoja1!$B$2:$U$4999,10,FALSE)),0) ->  | V90: =IFERROR(IF(Q90="","",VLOOKUP(Q90,[1]Hoja1!$D$2:$AF$4999,29,FALSE)),"NO EXISTE CUENTA") -> 
B91: =IFERROR(IF(A91="","",VLOOKUP(A91,[1]Hoja1!$B$2:$U$4999,9,FALSE)),0) ->  | C91: =IFERROR(IF(A91="","",VLOOKUP(A91,[1]Hoja1!$B$2:$U$4999,2,FALSE))," --- NO EXISTE TRABAJADOR --- ") ->  | L91: =IFERROR(IF(A91="","",VLOOKUP(A91,[1]Hoja1!$B$2:$U$4999,18,FALSE)),0) ->  | M91: =IFERROR(IF(A91="","",VLOOKUP(A91,[1]Hoja1!$B$2:$U$4999,19,FALSE)),0) ->  | P91: =IFERROR(IF(O91="","",VLOOKUP(O91,JORNADA!$A$19:$B$20,2,FALSE)),"") ->  | Q91: =IFERROR(IF(A91="","",VLOOKUP(A91,[1]Hoja1!$B$2:$U$4999,3,FALSE)),0) ->  | U91: =IFERROR(IF(A91="","",VLOOKUP(A91,[1]Hoja1!$B$2:$U$4999,10,FALSE)),0) ->  | V91: =IFERROR(IF(Q91="","",VLOOKUP(Q91,[1]Hoja1!$D$2:$AF$4999,29,FALSE)),"NO EXISTE CUENTA") -> 
B92: =IFERROR(IF(A92="","",VLOOKUP(A92,[1]Hoja1!$B$2:$U$4999,9,FALSE)),0) ->  | C92: =IFERROR(IF(A92="","",VLOOKUP(A92,[1]Hoja1!$B$2:$U$4999,2,FALSE))," --- NO EXISTE TRABAJADOR --- ") ->  | L92: =IFERROR(IF(A92="","",VLOOKUP(A92,[1]Hoja1!$B$2:$U$4999,18,FALSE)),0) ->  | M92: =IFERROR(IF(A92="","",VLOOKUP(A92,[1]Hoja1!$B$2:$U$4999,19,FALSE)),0) ->  | P92: =IFERROR(IF(O92="","",VLOOKUP(O92,JORNADA!$A$19:$B$20,2,FALSE)),"") ->  | Q92: =IFERROR(IF(A92="","",VLOOKUP(A92,[1]Hoja1!$B$2:$U$4999,3,FALSE)),0) ->  | U92: =IFERROR(IF(A92="","",VLOOKUP(A92,[1]Hoja1!$B$2:$U$4999,10,FALSE)),0) ->  | V92: =IFERROR(IF(Q92="","",VLOOKUP(Q92,[1]Hoja1!$D$2:$AF$4999,29,FALSE)),"NO EXISTE CUENTA") -> 
B93: =IFERROR(IF(A93="","",VLOOKUP(A93,[1]Hoja1!$B$2:$U$4999,9,FALSE)),0) ->  | C93: =IFERROR(IF(A93="","",VLOOKUP(A93,[1]Hoja1!$B$2:$U$4999,2,FALSE))," --- NO EXISTE TRABAJADOR --- ") ->  | L93: =IFERROR(IF(A93="","",VLOOKUP(A93,[1]Hoja1!$B$2:$U$4999,18,FALSE)),0) ->  | M93: =IFERROR(IF(A93="","",VLOOKUP(A93,[1]Hoja1!$B$2:$U$4999,19,FALSE)),0) ->  | P93: =IFERROR(IF(O93="","",VLOOKUP(O93,JORNADA!$A$19:$B$20,2,FALSE)),"") ->  | Q93: =IFERROR(IF(A93="","",VLOOKUP(A93,[1]Hoja1!$B$2:$U$4999,3,FALSE)),0) ->  | U93: =IFERROR(IF(A93="","",VLOOKUP(A93,[1]Hoja1!$B$2:$U$4999,10,FALSE)),0) ->  | V93: =IFERROR(IF(Q93="","",VLOOKUP(Q93,[1]Hoja1!$D$2:$AF$4999,29,FALSE)),"NO EXISTE CUENTA") -> 
B94: =IFERROR(IF(A94="","",VLOOKUP(A94,[1]Hoja1!$B$2:$U$4999,9,FALSE)),0) ->  | C94: =IFERROR(IF(A94="","",VLOOKUP(A94,[1]Hoja1!$B$2:$U$4999,2,FALSE))," --- NO EXISTE TRABAJADOR --- ") ->  | L94: =IFERROR(IF(A94="","",VLOOKUP(A94,[1]Hoja1!$B$2:$U$4999,18,FALSE)),0) ->  | M94: =IFERROR(IF(A94="","",VLOOKUP(A94,[1]Hoja1!$B$2:$U$4999,19,FALSE)),0) ->  | P94: =IFERROR(IF(O94="","",VLOOKUP(O94,JORNADA!$A$19:$B$20,2,FALSE)),"") ->  | Q94: =IFERROR(IF(A94="","",VLOOKUP(A94,[1]Hoja1!$B$2:$U$4999,3,FALSE)),0) ->  | U94: =IFERROR(IF(A94="","",VLOOKUP(A94,[1]Hoja1!$B$2:$U$4999,10,FALSE)),0) ->  | V94: =IFERROR(IF(Q94="","",VLOOKUP(Q94,[1]Hoja1!$D$2:$AF$4999,29,FALSE)),"NO EXISTE CUENTA") -> 
B95: =IFERROR(IF(A95="","",VLOOKUP(A95,[1]Hoja1!$B$2:$U$4999,9,FALSE)),0) ->  | C95: =IFERROR(IF(A95="","",VLOOKUP(A95,[1]Hoja1!$B$2:$U$4999,2,FALSE))," --- NO EXISTE TRABAJADOR --- ") ->  | L95: =IFERROR(IF(A95="","",VLOOKUP(A95,[1]Hoja1!$B$2:$U$4999,18,FALSE)),0) ->  | M95: =IFERROR(IF(A95="","",VLOOKUP(A95,[1]Hoja1!$B$2:$U$4999,19,FALSE)),0) ->  | P95: =IFERROR(IF(O95="","",VLOOKUP(O95,JORNADA!$A$19:$B$20,2,FALSE)),"") ->  | Q95: =IFERROR(IF(A95="","",VLOOKUP(A95,[1]Hoja1!$B$2:$U$4999,3,FALSE)),0) ->  | U95: =IFERROR(IF(A95="","",VLOOKUP(A95,[1]Hoja1!$B$2:$U$4999,10,FALSE)),0) ->  | V95: =IFERROR(IF(Q95="","",VLOOKUP(Q95,[1]Hoja1!$D$2:$AF$4999,29,FALSE)),"NO EXISTE CUENTA") -> 
B96: =IFERROR(IF(A96="","",VLOOKUP(A96,[1]Hoja1!$B$2:$U$4999,9,FALSE)),0) ->  | C96: =IFERROR(IF(A96="","",VLOOKUP(A96,[1]Hoja1!$B$2:$U$4999,2,FALSE))," --- NO EXISTE TRABAJADOR --- ") ->  | L96: =IFERROR(IF(A96="","",VLOOKUP(A96,[1]Hoja1!$B$2:$U$4999,18,FALSE)),0) ->  | M96: =IFERROR(IF(A96="","",VLOOKUP(A96,[1]Hoja1!$B$2:$U$4999,19,FALSE)),0) ->  | P96: =IFERROR(IF(O96="","",VLOOKUP(O96,JORNADA!$A$19:$B$20,2,FALSE)),"") ->  | Q96: =IFERROR(IF(A96="","",VLOOKUP(A96,[1]Hoja1!$B$2:$U$4999,3,FALSE)),0) ->  | U96: =IFERROR(IF(A96="","",VLOOKUP(A96,[1]Hoja1!$B$2:$U$4999,10,FALSE)),0) ->  | V96: =IFERROR(IF(Q96="","",VLOOKUP(Q96,[1]Hoja1!$D$2:$AF$4999,29,FALSE)),"NO EXISTE CUENTA") -> 
B97: =IFERROR(IF(A97="","",VLOOKUP(A97,[1]Hoja1!$B$2:$U$4999,9,FALSE)),0) ->  | C97: =IFERROR(IF(A97="","",VLOOKUP(A97,[1]Hoja1!$B$2:$U$4999,2,FALSE))," --- NO EXISTE TRABAJADOR --- ") ->  | L97: =IFERROR(IF(A97="","",VLOOKUP(A97,[1]Hoja1!$B$2:$U$4999,18,FALSE)),0) ->  | M97: =IFERROR(IF(A97="","",VLOOKUP(A97,[1]Hoja1!$B$2:$U$4999,19,FALSE)),0) ->  | P97: =IFERROR(IF(O97="","",VLOOKUP(O97,JORNADA!$A$19:$B$20,2,FALSE)),"") ->  | Q97: =IFERROR(IF(A97="","",VLOOKUP(A97,[1]Hoja1!$B$2:$U$4999,3,FALSE)),0) ->  | U97: =IFERROR(IF(A97="","",VLOOKUP(A97,[1]Hoja1!$B$2:$U$4999,10,FALSE)),0) ->  | V97: =IFERROR(IF(Q97="","",VLOOKUP(Q97,[1]Hoja1!$D$2:$AF$4999,29,FALSE)),"NO EXISTE CUENTA") -> 
B98: =IFERROR(IF(A98="","",VLOOKUP(A98,[1]Hoja1!$B$2:$U$4999,9,FALSE)),0) ->  | C98: =IFERROR(IF(A98="","",VLOOKUP(A98,[1]Hoja1!$B$2:$U$4999,2,FALSE))," --- NO EXISTE TRABAJADOR --- ") ->  | L98: =IFERROR(IF(A98="","",VLOOKUP(A98,[1]Hoja1!$B$2:$U$4999,18,FALSE)),0) ->  | M98: =IFERROR(IF(A98="","",VLOOKUP(A98,[1]Hoja1!$B$2:$U$4999,19,FALSE)),0) ->  | P98: =IFERROR(IF(O98="","",VLOOKUP(O98,JORNADA!$A$19:$B$20,2,FALSE)),"") ->  | Q98: =IFERROR(IF(A98="","",VLOOKUP(A98,[1]Hoja1!$B$2:$U$4999,3,FALSE)),0) ->  | U98: =IFERROR(IF(A98="","",VLOOKUP(A98,[1]Hoja1!$B$2:$U$4999,10,FALSE)),0) ->  | V98: =IFERROR(IF(Q98="","",VLOOKUP(Q98,[1]Hoja1!$D$2:$AF$4999,29,FALSE)),"NO EXISTE CUENTA") -> 
B99: =IFERROR(IF(A99="","",VLOOKUP(A99,[1]Hoja1!$B$2:$U$4999,9,FALSE)),0) ->  | C99: =IFERROR(IF(A99="","",VLOOKUP(A99,[1]Hoja1!$B$2:$U$4999,2,FALSE))," --- NO EXISTE TRABAJADOR --- ") ->  | L99: =IFERROR(IF(A99="","",VLOOKUP(A99,[1]Hoja1!$B$2:$U$4999,18,FALSE)),0) ->  | M99: =IFERROR(IF(A99="","",VLOOKUP(A99,[1]Hoja1!$B$2:$U$4999,19,FALSE)),0) ->  | P99: =IFERROR(IF(O99="","",VLOOKUP(O99,JORNADA!$A$19:$B$20,2,FALSE)),"") ->  | Q99: =IFERROR(IF(A99="","",VLOOKUP(A99,[1]Hoja1!$B$2:$U$4999,3,FALSE)),0) ->  | U99: =IFERROR(IF(A99="","",VLOOKUP(A99,[1]Hoja1!$B$2:$U$4999,10,FALSE)),0) ->  | V99: =IFERROR(IF(Q99="","",VLOOKUP(Q99,[1]Hoja1!$D$2:$AF$4999,29,FALSE)),"NO EXISTE CUENTA") -> 
B100: =IFERROR(IF(A100="","",VLOOKUP(A100,[1]Hoja1!$B$2:$U$4999,9,FALSE)),0) ->  | C100: =IFERROR(IF(A100="","",VLOOKUP(A100,[1]Hoja1!$B$2:$U$4999,2,FALSE))," --- NO EXISTE TRABAJADOR --- ") ->  | L100: =IFERROR(IF(A100="","",VLOOKUP(A100,[1]Hoja1!$B$2:$U$4999,18,FALSE)),0) ->  | M100: =IFERROR(IF(A100="","",VLOOKUP(A100,[1]Hoja1!$B$2:$U$4999,19,FALSE)),0) ->  | P100: =IFERROR(IF(O100="","",VLOOKUP(O100,JORNADA!$A$19:$B$20,2,FALSE)),"") ->  | Q100: =IFERROR(IF(A100="","",VLOOKUP(A100,[1]Hoja1!$B$2:$U$4999,3,FALSE)),0) ->  | U100: =IFERROR(IF(A100="","",VLOOKUP(A100,[1]Hoja1!$B$2:$U$4999,10,FALSE)),0) ->  | V100: =IFERROR(IF(Q100="","",VLOOKUP(Q100,[1]Hoja1!$D$2:$AF$4999,29,FALSE)),"NO EXISTE CUENTA") -> 
B101: =IFERROR(IF(A101="","",VLOOKUP(A101,[1]Hoja1!$B$2:$U$4999,9,FALSE)),0) ->  | C101: =IFERROR(IF(A101="","",VLOOKUP(A101,[1]Hoja1!$B$2:$U$4999,2,FALSE))," --- NO EXISTE TRABAJADOR --- ") ->  | L101: =IFERROR(IF(A101="","",VLOOKUP(A101,[1]Hoja1!$B$2:$U$4999,18,FALSE)),0) ->  | M101: =IFERROR(IF(A101="","",VLOOKUP(A101,[1]Hoja1!$B$2:$U$4999,19,FALSE)),0) ->  | P101: =IFERROR(IF(O101="","",VLOOKUP(O101,JORNADA!$A$19:$B$20,2,FALSE)),"") ->  | Q101: =IFERROR(IF(A101="","",VLOOKUP(A101,[1]Hoja1!$B$2:$U$4999,3,FALSE)),0) ->  | U101: =IFERROR(IF(A101="","",VLOOKUP(A101,[1]Hoja1!$B$2:$U$4999,10,FALSE)),0) ->  | V101: =IFERROR(IF(Q101="","",VLOOKUP(Q101,[1]Hoja1!$D$2:$AF$4999,29,FALSE)),"NO EXISTE CUENTA") -> 
B102: =IFERROR(IF(A102="","",VLOOKUP(A102,[1]Hoja1!$B$2:$U$4999,9,FALSE)),0) ->  | C102: =IFERROR(IF(A102="","",VLOOKUP(A102,[1]Hoja1!$B$2:$U$4999,2,FALSE))," --- NO EXISTE TRABAJADOR --- ") ->  | L102: =IFERROR(IF(A102="","",VLOOKUP(A102,[1]Hoja1!$B$2:$U$4999,18,FALSE)),0) ->  | M102: =IFERROR(IF(A102="","",VLOOKUP(A102,[1]Hoja1!$B$2:$U$4999,19,FALSE)),0) ->  | P102: =IFERROR(IF(O102="","",VLOOKUP(O102,JORNADA!$A$19:$B$20,2,FALSE)),"") ->  | Q102: =IFERROR(IF(A102="","",VLOOKUP(A102,[1]Hoja1!$B$2:$U$4999,3,FALSE)),0) ->  | U102: =IFERROR(IF(A102="","",VLOOKUP(A102,[1]Hoja1!$B$2:$U$4999,10,FALSE)),0) ->  | V102: =IFERROR(IF(Q102="","",VLOOKUP(Q102,[1]Hoja1!$D$2:$AF$4999,29,FALSE)),"NO EXISTE CUENTA") -> 
B103: =IFERROR(IF(A103="","",VLOOKUP(A103,[1]Hoja1!$B$2:$U$4999,9,FALSE)),0) ->  | C103: =IFERROR(IF(A103="","",VLOOKUP(A103,[1]Hoja1!$B$2:$U$4999,2,FALSE))," --- NO EXISTE TRABAJADOR --- ") ->  | L103: =IFERROR(IF(A103="","",VLOOKUP(A103,[1]Hoja1!$B$2:$U$4999,18,FALSE)),0) ->  | M103: =IFERROR(IF(A103="","",VLOOKUP(A103,[1]Hoja1!$B$2:$U$4999,19,FALSE)),0) ->  | P103: =IFERROR(IF(O103="","",VLOOKUP(O103,JORNADA!$A$19:$B$20,2,FALSE)),"") ->  | Q103: =IFERROR(IF(A103="","",VLOOKUP(A103,[1]Hoja1!$B$2:$U$4999,3,FALSE)),0) ->  | U103: =IFERROR(IF(A103="","",VLOOKUP(A103,[1]Hoja1!$B$2:$U$4999,10,FALSE)),0) ->  | V103: =IFERROR(IF(Q103="","",VLOOKUP(Q103,[1]Hoja1!$D$2:$AF$4999,29,FALSE)),"NO EXISTE CUENTA") -> 
B104: =IFERROR(IF(A104="","",VLOOKUP(A104,[1]Hoja1!$B$2:$U$4999,9,FALSE)),0) ->  | C104: =IFERROR(IF(A104="","",VLOOKUP(A104,[1]Hoja1!$B$2:$U$4999,2,FALSE))," --- NO EXISTE TRABAJADOR --- ") ->  | L104: =IFERROR(IF(A104="","",VLOOKUP(A104,[1]Hoja1!$B$2:$U$4999,18,FALSE)),0) ->  | M104: =IFERROR(IF(A104="","",VLOOKUP(A104,[1]Hoja1!$B$2:$U$4999,19,FALSE)),0) ->  | P104: =IFERROR(IF(O104="","",VLOOKUP(O104,JORNADA!$A$19:$B$20,2,FALSE)),"") ->  | Q104: =IFERROR(IF(A104="","",VLOOKUP(A104,[1]Hoja1!$B$2:$U$4999,3,FALSE)),0) ->  | U104: =IFERROR(IF(A104="","",VLOOKUP(A104,[1]Hoja1!$B$2:$U$4999,10,FALSE)),0) ->  | V104: =IFERROR(IF(Q104="","",VLOOKUP(Q104,[1]Hoja1!$D$2:$AF$4999,29,FALSE)),"NO EXISTE CUENTA") -> 
B105: =IFERROR(IF(A105="","",VLOOKUP(A105,[1]Hoja1!$B$2:$U$4999,9,FALSE)),0) ->  | C105: =IFERROR(IF(A105="","",VLOOKUP(A105,[1]Hoja1!$B$2:$U$4999,2,FALSE))," --- NO EXISTE TRABAJADOR --- ") ->  | L105: =IFERROR(IF(A105="","",VLOOKUP(A105,[1]Hoja1!$B$2:$U$4999,18,FALSE)),0) ->  | M105: =IFERROR(IF(A105="","",VLOOKUP(A105,[1]Hoja1!$B$2:$U$4999,19,FALSE)),0) ->  | P105: =IFERROR(IF(O105="","",VLOOKUP(O105,JORNADA!$A$19:$B$20,2,FALSE)),"") ->  | Q105: =IFERROR(IF(A105="","",VLOOKUP(A105,[1]Hoja1!$B$2:$U$4999,3,FALSE)),0) ->  | U105: =IFERROR(IF(A105="","",VLOOKUP(A105,[1]Hoja1!$B$2:$U$4999,10,FALSE)),0) ->  | V105: =IFERROR(IF(Q105="","",VLOOKUP(Q105,[1]Hoja1!$D$2:$AF$4999,29,FALSE)),"NO EXISTE CUENTA") -> 
B106: =IFERROR(IF(A106="","",VLOOKUP(A106,[1]Hoja1!$B$2:$U$4999,9,FALSE)),0) ->  | C106: =IFERROR(IF(A106="","",VLOOKUP(A106,[1]Hoja1!$B$2:$U$4999,2,FALSE))," --- NO EXISTE TRABAJADOR --- ") ->  | L106: =IFERROR(IF(A106="","",VLOOKUP(A106,[1]Hoja1!$B$2:$U$4999,18,FALSE)),0) ->  | M106: =IFERROR(IF(A106="","",VLOOKUP(A106,[1]Hoja1!$B$2:$U$4999,19,FALSE)),0) ->  | P106: =IFERROR(IF(O106="","",VLOOKUP(O106,JORNADA!$A$19:$B$20,2,FALSE)),"") ->  | Q106: =IFERROR(IF(A106="","",VLOOKUP(A106,[1]Hoja1!$B$2:$U$4999,3,FALSE)),0) ->  | U106: =IFERROR(IF(A106="","",VLOOKUP(A106,[1]Hoja1!$B$2:$U$4999,10,FALSE)),0) ->  | V106: =IFERROR(IF(Q106="","",VLOOKUP(Q106,[1]Hoja1!$D$2:$AF$4999,29,FALSE)),"NO EXISTE CUENTA") -> 
B107: =IFERROR(IF(A107="","",VLOOKUP(A107,[1]Hoja1!$B$2:$U$4999,9,FALSE)),0) ->  | C107: =IFERROR(IF(A107="","",VLOOKUP(A107,[1]Hoja1!$B$2:$U$4999,2,FALSE))," --- NO EXISTE TRABAJADOR --- ") ->  | L107: =IFERROR(IF(A107="","",VLOOKUP(A107,[1]Hoja1!$B$2:$U$4999,18,FALSE)),0) ->  | M107: =IFERROR(IF(A107="","",VLOOKUP(A107,[1]Hoja1!$B$2:$U$4999,19,FALSE)),0) ->  | P107: =IFERROR(IF(O107="","",VLOOKUP(O107,JORNADA!$A$19:$B$20,2,FALSE)),"") ->  | Q107: =IFERROR(IF(A107="","",VLOOKUP(A107,[1]Hoja1!$B$2:$U$4999,3,FALSE)),0) ->  | U107: =IFERROR(IF(A107="","",VLOOKUP(A107,[1]Hoja1!$B$2:$U$4999,10,FALSE)),0) ->  | V107: =IFERROR(IF(Q107="","",VLOOKUP(Q107,[1]Hoja1!$D$2:$AF$4999,29,FALSE)),"NO EXISTE CUENTA") -> 
B108: =IFERROR(IF(A108="","",VLOOKUP(A108,[1]Hoja1!$B$2:$U$4999,9,FALSE)),0) ->  | C108: =IFERROR(IF(A108="","",VLOOKUP(A108,[1]Hoja1!$B$2:$U$4999,2,FALSE))," --- NO EXISTE TRABAJADOR --- ") ->  | L108: =IFERROR(IF(A108="","",VLOOKUP(A108,[1]Hoja1!$B$2:$U$4999,18,FALSE)),0) ->  | M108: =IFERROR(IF(A108="","",VLOOKUP(A108,[1]Hoja1!$B$2:$U$4999,19,FALSE)),0) ->  | P108: =IFERROR(IF(O108="","",VLOOKUP(O108,JORNADA!$A$19:$B$20,2,FALSE)),"") ->  | Q108: =IFERROR(IF(A108="","",VLOOKUP(A108,[1]Hoja1!$B$2:$U$4999,3,FALSE)),0) ->  | U108: =IFERROR(IF(A108="","",VLOOKUP(A108,[1]Hoja1!$B$2:$U$4999,10,FALSE)),0) ->  | V108: =IFERROR(IF(Q108="","",VLOOKUP(Q108,[1]Hoja1!$D$2:$AF$4999,29,FALSE)),"NO EXISTE CUENTA") -> 
B109: =IFERROR(IF(A109="","",VLOOKUP(A109,[1]Hoja1!$B$2:$U$4999,9,FALSE)),0) ->  | C109: =IFERROR(IF(A109="","",VLOOKUP(A109,[1]Hoja1!$B$2:$U$4999,2,FALSE))," --- NO EXISTE TRABAJADOR --- ") ->  | L109: =IFERROR(IF(A109="","",VLOOKUP(A109,[1]Hoja1!$B$2:$U$4999,18,FALSE)),0) ->  | M109: =IFERROR(IF(A109="","",VLOOKUP(A109,[1]Hoja1!$B$2:$U$4999,19,FALSE)),0) ->  | P109: =IFERROR(IF(O109="","",VLOOKUP(O109,JORNADA!$A$19:$B$20,2,FALSE)),"") ->  | Q109: =IFERROR(IF(A109="","",VLOOKUP(A109,[1]Hoja1!$B$2:$U$4999,3,FALSE)),0) ->  | U109: =IFERROR(IF(A109="","",VLOOKUP(A109,[1]Hoja1!$B$2:$U$4999,10,FALSE)),0) ->  | V109: =IFERROR(IF(Q109="","",VLOOKUP(Q109,[1]Hoja1!$D$2:$AF$4999,29,FALSE)),"NO EXISTE CUENTA") -> 
B110: =IFERROR(IF(A110="","",VLOOKUP(A110,[1]Hoja1!$B$2:$U$4999,9,FALSE)),0) ->  | C110: =IFERROR(IF(A110="","",VLOOKUP(A110,[1]Hoja1!$B$2:$U$4999,2,FALSE))," --- NO EXISTE TRABAJADOR --- ") ->  | L110: =IFERROR(IF(A110="","",VLOOKUP(A110,[1]Hoja1!$B$2:$U$4999,18,FALSE)),0) ->  | M110: =IFERROR(IF(A110="","",VLOOKUP(A110,[1]Hoja1!$B$2:$U$4999,19,FALSE)),0) ->  | P110: =IFERROR(IF(O110="","",VLOOKUP(O110,JORNADA!$A$19:$B$20,2,FALSE)),"") ->  | Q110: =IFERROR(IF(A110="","",VLOOKUP(A110,[1]Hoja1!$B$2:$U$4999,3,FALSE)),0) ->  | U110: =IFERROR(IF(A110="","",VLOOKUP(A110,[1]Hoja1!$B$2:$U$4999,10,FALSE)),0) ->  | V110: =IFERROR(IF(Q110="","",VLOOKUP(Q110,[1]Hoja1!$D$2:$AF$4999,29,FALSE)),"NO EXISTE CUENTA") -> 
B111: =IFERROR(IF(A111="","",VLOOKUP(A111,[1]Hoja1!$B$2:$U$4999,9,FALSE)),0) ->  | C111: =IFERROR(IF(A111="","",VLOOKUP(A111,[1]Hoja1!$B$2:$U$4999,2,FALSE))," --- NO EXISTE TRABAJADOR --- ") ->  | L111: =IFERROR(IF(A111="","",VLOOKUP(A111,[1]Hoja1!$B$2:$U$4999,18,FALSE)),0) ->  | M111: =IFERROR(IF(A111="","",VLOOKUP(A111,[1]Hoja1!$B$2:$U$4999,19,FALSE)),0) ->  | P111: =IFERROR(IF(O111="","",VLOOKUP(O111,JORNADA!$A$19:$B$20,2,FALSE)),"") ->  | Q111: =IFERROR(IF(A111="","",VLOOKUP(A111,[1]Hoja1!$B$2:$U$4999,3,FALSE)),0) ->  | U111: =IFERROR(IF(A111="","",VLOOKUP(A111,[1]Hoja1!$B$2:$U$4999,10,FALSE)),0) ->  | V111: =IFERROR(IF(Q111="","",VLOOKUP(Q111,[1]Hoja1!$D$2:$AF$4999,29,FALSE)),"NO EXISTE CUENTA") -> 
B112: =IFERROR(IF(A112="","",VLOOKUP(A112,[1]Hoja1!$B$2:$U$4999,9,FALSE)),0) ->  | C112: =IFERROR(IF(A112="","",VLOOKUP(A112,[1]Hoja1!$B$2:$U$4999,2,FALSE))," --- NO EXISTE TRABAJADOR --- ") ->  | L112: =IFERROR(IF(A112="","",VLOOKUP(A112,[1]Hoja1!$B$2:$U$4999,18,FALSE)),0) ->  | M112: =IFERROR(IF(A112="","",VLOOKUP(A112,[1]Hoja1!$B$2:$U$4999,19,FALSE)),0) ->  | P112: =IFERROR(IF(O112="","",VLOOKUP(O112,JORNADA!$A$19:$B$20,2,FALSE)),"") ->  | Q112: =IFERROR(IF(A112="","",VLOOKUP(A112,[1]Hoja1!$B$2:$U$4999,3,FALSE)),0) ->  | U112: =IFERROR(IF(A112="","",VLOOKUP(A112,[1]Hoja1!$B$2:$U$4999,10,FALSE)),0) ->  | V112: =IFERROR(IF(Q112="","",VLOOKUP(Q112,[1]Hoja1!$D$2:$AF$4999,29,FALSE)),"NO EXISTE CUENTA") -> 
B113: =IFERROR(IF(A113="","",VLOOKUP(A113,[1]Hoja1!$B$2:$U$4999,9,FALSE)),0) ->  | C113: =IFERROR(IF(A113="","",VLOOKUP(A113,[1]Hoja1!$B$2:$U$4999,2,FALSE))," --- NO EXISTE TRABAJADOR --- ") ->  | L113: =IFERROR(IF(A113="","",VLOOKUP(A113,[1]Hoja1!$B$2:$U$4999,18,FALSE)),0) ->  | M113: =IFERROR(IF(A113="","",VLOOKUP(A113,[1]Hoja1!$B$2:$U$4999,19,FALSE)),0) ->  | P113: =IFERROR(IF(O113="","",VLOOKUP(O113,JORNADA!$A$19:$B$20,2,FALSE)),"") ->  | Q113: =IFERROR(IF(A113="","",VLOOKUP(A113,[1]Hoja1!$B$2:$U$4999,3,FALSE)),0) ->  | U113: =IFERROR(IF(A113="","",VLOOKUP(A113,[1]Hoja1!$B$2:$U$4999,10,FALSE)),0) ->  | V113: =IFERROR(IF(Q113="","",VLOOKUP(Q113,[1]Hoja1!$D$2:$AF$4999,29,FALSE)),"NO EXISTE CUENTA") -> 
B114: =IFERROR(IF(A114="","",VLOOKUP(A114,[1]Hoja1!$B$2:$U$4999,9,FALSE)),0) ->  | C114: =IFERROR(IF(A114="","",VLOOKUP(A114,[1]Hoja1!$B$2:$U$4999,2,FALSE))," --- NO EXISTE TRABAJADOR --- ") ->  | L114: =IFERROR(IF(A114="","",VLOOKUP(A114,[1]Hoja1!$B$2:$U$4999,18,FALSE)),0) ->  | M114: =IFERROR(IF(A114="","",VLOOKUP(A114,[1]Hoja1!$B$2:$U$4999,19,FALSE)),0) ->  | P114: =IFERROR(IF(O114="","",VLOOKUP(O114,JORNADA!$A$19:$B$20,2,FALSE)),"") ->  | Q114: =IFERROR(IF(A114="","",VLOOKUP(A114,[1]Hoja1!$B$2:$U$4999,3,FALSE)),0) ->  | U114: =IFERROR(IF(A114="","",VLOOKUP(A114,[1]Hoja1!$B$2:$U$4999,10,FALSE)),0) ->  | V114: =IFERROR(IF(Q114="","",VLOOKUP(Q114,[1]Hoja1!$D$2:$AF$4999,29,FALSE)),"NO EXISTE CUENTA") -> 
B115: =IFERROR(IF(A115="","",VLOOKUP(A115,[1]Hoja1!$B$2:$U$4999,9,FALSE)),0) ->  | C115: =IFERROR(IF(A115="","",VLOOKUP(A115,[1]Hoja1!$B$2:$U$4999,2,FALSE))," --- NO EXISTE TRABAJADOR --- ") ->  | L115: =IFERROR(IF(A115="","",VLOOKUP(A115,[1]Hoja1!$B$2:$U$4999,18,FALSE)),0) ->  | M115: =IFERROR(IF(A115="","",VLOOKUP(A115,[1]Hoja1!$B$2:$U$4999,19,FALSE)),0) ->  | P115: =IFERROR(IF(O115="","",VLOOKUP(O115,JORNADA!$A$19:$B$20,2,FALSE)),"") ->  | Q115: =IFERROR(IF(A115="","",VLOOKUP(A115,[1]Hoja1!$B$2:$U$4999,3,FALSE)),0) ->  | U115: =IFERROR(IF(A115="","",VLOOKUP(A115,[1]Hoja1!$B$2:$U$4999,10,FALSE)),0) ->  | V115: =IFERROR(IF(Q115="","",VLOOKUP(Q115,[1]Hoja1!$D$2:$AF$4999,29,FALSE)),"NO EXISTE CUENTA") -> 
B116: =IFERROR(IF(A116="","",VLOOKUP(A116,[1]Hoja1!$B$2:$U$4999,9,FALSE)),0) ->  | C116: =IFERROR(IF(A116="","",VLOOKUP(A116,[1]Hoja1!$B$2:$U$4999,2,FALSE))," --- NO EXISTE TRABAJADOR --- ") ->  | L116: =IFERROR(IF(A116="","",VLOOKUP(A116,[1]Hoja1!$B$2:$U$4999,18,FALSE)),0) ->  | M116: =IFERROR(IF(A116="","",VLOOKUP(A116,[1]Hoja1!$B$2:$U$4999,19,FALSE)),0) ->  | P116: =IFERROR(IF(O116="","",VLOOKUP(O116,JORNADA!$A$19:$B$20,2,FALSE)),"") ->  | Q116: =IFERROR(IF(A116="","",VLOOKUP(A116,[1]Hoja1!$B$2:$U$4999,3,FALSE)),0) ->  | U116: =IFERROR(IF(A116="","",VLOOKUP(A116,[1]Hoja1!$B$2:$U$4999,10,FALSE)),0) ->  | V116: =IFERROR(IF(Q116="","",VLOOKUP(Q116,[1]Hoja1!$D$2:$AF$4999,29,FALSE)),"NO EXISTE CUENTA") -> 
B117: =IFERROR(IF(A117="","",VLOOKUP(A117,[1]Hoja1!$B$2:$U$4999,9,FALSE)),0) ->  | C117: =IFERROR(IF(A117="","",VLOOKUP(A117,[1]Hoja1!$B$2:$U$4999,2,FALSE))," --- NO EXISTE TRABAJADOR --- ") ->  | L117: =IFERROR(IF(A117="","",VLOOKUP(A117,[1]Hoja1!$B$2:$U$4999,18,FALSE)),0) ->  | M117: =IFERROR(IF(A117="","",VLOOKUP(A117,[1]Hoja1!$B$2:$U$4999,19,FALSE)),0) ->  | P117: =IFERROR(IF(O117="","",VLOOKUP(O117,JORNADA!$A$19:$B$20,2,FALSE)),"") ->  | Q117: =IFERROR(IF(A117="","",VLOOKUP(A117,[1]Hoja1!$B$2:$U$4999,3,FALSE)),0) ->  | U117: =IFERROR(IF(A117="","",VLOOKUP(A117,[1]Hoja1!$B$2:$U$4999,10,FALSE)),0) ->  | V117: =IFERROR(IF(Q117="","",VLOOKUP(Q117,[1]Hoja1!$D$2:$AF$4999,29,FALSE)),"NO EXISTE CUENTA") -> 
B118: =IFERROR(IF(A118="","",VLOOKUP(A118,[1]Hoja1!$B$2:$U$4999,9,FALSE)),0) ->  | C118: =IFERROR(IF(A118="","",VLOOKUP(A118,[1]Hoja1!$B$2:$U$4999,2,FALSE))," --- NO EXISTE TRABAJADOR --- ") ->  | L118: =IFERROR(IF(A118="","",VLOOKUP(A118,[1]Hoja1!$B$2:$U$4999,18,FALSE)),0) ->  | M118: =IFERROR(IF(A118="","",VLOOKUP(A118,[1]Hoja1!$B$2:$U$4999,19,FALSE)),0) ->  | P118: =IFERROR(IF(O118="","",VLOOKUP(O118,JORNADA!$A$19:$B$20,2,FALSE)),"") ->  | Q118: =IFERROR(IF(A118="","",VLOOKUP(A118,[1]Hoja1!$B$2:$U$4999,3,FALSE)),0) ->  | U118: =IFERROR(IF(A118="","",VLOOKUP(A118,[1]Hoja1!$B$2:$U$4999,10,FALSE)),0) ->  | V118: =IFERROR(IF(Q118="","",VLOOKUP(Q118,[1]Hoja1!$D$2:$AF$4999,29,FALSE)),"NO EXISTE CUENTA") -> 
B119: =IFERROR(IF(A119="","",VLOOKUP(A119,[1]Hoja1!$B$2:$U$4999,9,FALSE)),0) ->  | C119: =IFERROR(IF(A119="","",VLOOKUP(A119,[1]Hoja1!$B$2:$U$4999,2,FALSE))," --- NO EXISTE TRABAJADOR --- ") ->  | L119: =IFERROR(IF(A119="","",VLOOKUP(A119,[1]Hoja1!$B$2:$U$4999,18,FALSE)),0) ->  | M119: =IFERROR(IF(A119="","",VLOOKUP(A119,[1]Hoja1!$B$2:$U$4999,19,FALSE)),0) ->  | P119: =IFERROR(IF(O119="","",VLOOKUP(O119,JORNADA!$A$19:$B$20,2,FALSE)),"") ->  | Q119: =IFERROR(IF(A119="","",VLOOKUP(A119,[1]Hoja1!$B$2:$U$4999,3,FALSE)),0) ->  | U119: =IFERROR(IF(A119="","",VLOOKUP(A119,[1]Hoja1!$B$2:$U$4999,10,FALSE)),0) ->  | V119: =IFERROR(IF(Q119="","",VLOOKUP(Q119,[1]Hoja1!$D$2:$AF$4999,29,FALSE)),"NO EXISTE CUENTA") -> 
B120: =IFERROR(IF(A120="","",VLOOKUP(A120,[1]Hoja1!$B$2:$U$4999,9,FALSE)),0) ->  | C120: =IFERROR(IF(A120="","",VLOOKUP(A120,[1]Hoja1!$B$2:$U$4999,2,FALSE))," --- NO EXISTE TRABAJADOR --- ") ->  | L120: =IFERROR(IF(A120="","",VLOOKUP(A120,[1]Hoja1!$B$2:$U$4999,18,FALSE)),0) ->  | M120: =IFERROR(IF(A120="","",VLOOKUP(A120,[1]Hoja1!$B$2:$U$4999,19,FALSE)),0) ->  | P120: =IFERROR(IF(O120="","",VLOOKUP(O120,JORNADA!$A$19:$B$20,2,FALSE)),"") ->  | Q120: =IFERROR(IF(A120="","",VLOOKUP(A120,[1]Hoja1!$B$2:$U$4999,3,FALSE)),0) ->  | U120: =IFERROR(IF(A120="","",VLOOKUP(A120,[1]Hoja1!$B$2:$U$4999,10,FALSE)),0) ->  | V120: =IFERROR(IF(Q120="","",VLOOKUP(Q120,[1]Hoja1!$D$2:$AF$4999,29,FALSE)),"NO EXISTE CUENTA") -> 
B121: =IFERROR(IF(A121="","",VLOOKUP(A121,[1]Hoja1!$B$2:$U$4999,9,FALSE)),0) ->  | C121: =IFERROR(IF(A121="","",VLOOKUP(A121,[1]Hoja1!$B$2:$U$4999,2,FALSE))," --- NO EXISTE TRABAJADOR --- ") ->  | L121: =IFERROR(IF(A121="","",VLOOKUP(A121,[1]Hoja1!$B$2:$U$4999,18,FALSE)),0) ->  | M121: =IFERROR(IF(A121="","",VLOOKUP(A121,[1]Hoja1!$B$2:$U$4999,19,FALSE)),0) ->  | P121: =IFERROR(IF(O121="","",VLOOKUP(O121,JORNADA!$A$19:$B$20,2,FALSE)),"") ->  | Q121: =IFERROR(IF(A121="","",VLOOKUP(A121,[1]Hoja1!$B$2:$U$4999,3,FALSE)),0) ->  | U121: =IFERROR(IF(A121="","",VLOOKUP(A121,[1]Hoja1!$B$2:$U$4999,10,FALSE)),0) ->  | V121: =IFERROR(IF(Q121="","",VLOOKUP(Q121,[1]Hoja1!$D$2:$AF$4999,29,FALSE)),"NO EXISTE CUENTA") -> 
B122: =IFERROR(IF(A122="","",VLOOKUP(A122,[1]Hoja1!$B$2:$U$4999,9,FALSE)),0) ->  | C122: =IFERROR(IF(A122="","",VLOOKUP(A122,[1]Hoja1!$B$2:$U$4999,2,FALSE))," --- NO EXISTE TRABAJADOR --- ") ->  | L122: =IFERROR(IF(A122="","",VLOOKUP(A122,[1]Hoja1!$B$2:$U$4999,18,FALSE)),0) ->  | M122: =IFERROR(IF(A122="","",VLOOKUP(A122,[1]Hoja1!$B$2:$U$4999,19,FALSE)),0) ->  | P122: =IFERROR(IF(O122="","",VLOOKUP(O122,JORNADA!$A$19:$B$20,2,FALSE)),"") ->  | Q122: =IFERROR(IF(A122="","",VLOOKUP(A122,[1]Hoja1!$B$2:$U$4999,3,FALSE)),0) ->  | U122: =IFERROR(IF(A122="","",VLOOKUP(A122,[1]Hoja1!$B$2:$U$4999,10,FALSE)),0) ->  | V122: =IFERROR(IF(Q122="","",VLOOKUP(Q122,[1]Hoja1!$D$2:$AF$4999,29,FALSE)),"NO EXISTE CUENTA") -> 
B123: =IFERROR(IF(A123="","",VLOOKUP(A123,[1]Hoja1!$B$2:$U$4999,9,FALSE)),0) ->  | C123: =IFERROR(IF(A123="","",VLOOKUP(A123,[1]Hoja1!$B$2:$U$4999,2,FALSE))," --- NO EXISTE TRABAJADOR --- ") ->  | L123: =IFERROR(IF(A123="","",VLOOKUP(A123,[1]Hoja1!$B$2:$U$4999,18,FALSE)),0) ->  | M123: =IFERROR(IF(A123="","",VLOOKUP(A123,[1]Hoja1!$B$2:$U$4999,19,FALSE)),0) ->  | P123: =IFERROR(IF(O123="","",VLOOKUP(O123,JORNADA!$A$19:$B$20,2,FALSE)),"") ->  | Q123: =IFERROR(IF(A123="","",VLOOKUP(A123,[1]Hoja1!$B$2:$U$4999,3,FALSE)),0) ->  | U123: =IFERROR(IF(A123="","",VLOOKUP(A123,[1]Hoja1!$B$2:$U$4999,10,FALSE)),0) ->  | V123: =IFERROR(IF(Q123="","",VLOOKUP(Q123,[1]Hoja1!$D$2:$AF$4999,29,FALSE)),"NO EXISTE CUENTA") -> 
B124: =IFERROR(IF(A124="","",VLOOKUP(A124,[1]Hoja1!$B$2:$U$4999,9,FALSE)),0) ->  | C124: =IFERROR(IF(A124="","",VLOOKUP(A124,[1]Hoja1!$B$2:$U$4999,2,FALSE))," --- NO EXISTE TRABAJADOR --- ") ->  | L124: =IFERROR(IF(A124="","",VLOOKUP(A124,[1]Hoja1!$B$2:$U$4999,18,FALSE)),0) ->  | M124: =IFERROR(IF(A124="","",VLOOKUP(A124,[1]Hoja1!$B$2:$U$4999,19,FALSE)),0) ->  | P124: =IFERROR(IF(O124="","",VLOOKUP(O124,JORNADA!$A$19:$B$20,2,FALSE)),"") ->  | Q124: =IFERROR(IF(A124="","",VLOOKUP(A124,[1]Hoja1!$B$2:$U$4999,3,FALSE)),0) ->  | U124: =IFERROR(IF(A124="","",VLOOKUP(A124,[1]Hoja1!$B$2:$U$4999,10,FALSE)),0) ->  | V124: =IFERROR(IF(Q124="","",VLOOKUP(Q124,[1]Hoja1!$D$2:$AF$4999,29,FALSE)),"NO EXISTE CUENTA") -> 
B125: =IFERROR(IF(A125="","",VLOOKUP(A125,[1]Hoja1!$B$2:$U$4999,9,FALSE)),0) ->  | C125: =IFERROR(IF(A125="","",VLOOKUP(A125,[1]Hoja1!$B$2:$U$4999,2,FALSE))," --- NO EXISTE TRABAJADOR --- ") ->  | L125: =IFERROR(IF(A125="","",VLOOKUP(A125,[1]Hoja1!$B$2:$U$4999,18,FALSE)),0) ->  | M125: =IFERROR(IF(A125="","",VLOOKUP(A125,[1]Hoja1!$B$2:$U$4999,19,FALSE)),0) ->  | P125: =IFERROR(IF(O125="","",VLOOKUP(O125,JORNADA!$A$19:$B$20,2,FALSE)),"") ->  | Q125: =IFERROR(IF(A125="","",VLOOKUP(A125,[1]Hoja1!$B$2:$U$4999,3,FALSE)),0) ->  | U125: =IFERROR(IF(A125="","",VLOOKUP(A125,[1]Hoja1!$B$2:$U$4999,10,FALSE)),0) ->  | V125: =IFERROR(IF(Q125="","",VLOOKUP(Q125,[1]Hoja1!$D$2:$AF$4999,29,FALSE)),"NO EXISTE CUENTA") -> 
B126: =IFERROR(IF(A126="","",VLOOKUP(A126,[1]Hoja1!$B$2:$U$4999,9,FALSE)),0) ->  | C126: =IFERROR(IF(A126="","",VLOOKUP(A126,[1]Hoja1!$B$2:$U$4999,2,FALSE))," --- NO EXISTE TRABAJADOR --- ") ->  | L126: =IFERROR(IF(A126="","",VLOOKUP(A126,[1]Hoja1!$B$2:$U$4999,18,FALSE)),0) ->  | M126: =IFERROR(IF(A126="","",VLOOKUP(A126,[1]Hoja1!$B$2:$U$4999,19,FALSE)),0) ->  | P126: =IFERROR(IF(O126="","",VLOOKUP(O126,JORNADA!$A$19:$B$20,2,FALSE)),"") ->  | Q126: =IFERROR(IF(A126="","",VLOOKUP(A126,[1]Hoja1!$B$2:$U$4999,3,FALSE)),0) ->  | U126: =IFERROR(IF(A126="","",VLOOKUP(A126,[1]Hoja1!$B$2:$U$4999,10,FALSE)),0) ->  | V126: =IFERROR(IF(Q126="","",VLOOKUP(Q126,[1]Hoja1!$D$2:$AF$4999,29,FALSE)),"NO EXISTE CUENTA") -> 
B127: =IFERROR(IF(A127="","",VLOOKUP(A127,[1]Hoja1!$B$2:$U$4999,9,FALSE)),0) ->  | C127: =IFERROR(IF(A127="","",VLOOKUP(A127,[1]Hoja1!$B$2:$U$4999,2,FALSE))," --- NO EXISTE TRABAJADOR --- ") ->  | L127: =IFERROR(IF(A127="","",VLOOKUP(A127,[1]Hoja1!$B$2:$U$4999,18,FALSE)),0) ->  | M127: =IFERROR(IF(A127="","",VLOOKUP(A127,[1]Hoja1!$B$2:$U$4999,19,FALSE)),0) ->  | P127: =IFERROR(IF(O127="","",VLOOKUP(O127,JORNADA!$A$19:$B$20,2,FALSE)),"") ->  | Q127: =IFERROR(IF(A127="","",VLOOKUP(A127,[1]Hoja1!$B$2:$U$4999,3,FALSE)),0) ->  | U127: =IFERROR(IF(A127="","",VLOOKUP(A127,[1]Hoja1!$B$2:$U$4999,10,FALSE)),0) ->  | V127: =IFERROR(IF(Q127="","",VLOOKUP(Q127,[1]Hoja1!$D$2:$AF$4999,29,FALSE)),"NO EXISTE CUENTA") -> 
B128: =IFERROR(IF(A128="","",VLOOKUP(A128,[1]Hoja1!$B$2:$U$4999,9,FALSE)),0) ->  | C128: =IFERROR(IF(A128="","",VLOOKUP(A128,[1]Hoja1!$B$2:$U$4999,2,FALSE))," --- NO EXISTE TRABAJADOR --- ") ->  | L128: =IFERROR(IF(A128="","",VLOOKUP(A128,[1]Hoja1!$B$2:$U$4999,18,FALSE)),0) ->  | M128: =IFERROR(IF(A128="","",VLOOKUP(A128,[1]Hoja1!$B$2:$U$4999,19,FALSE)),0) ->  | P128: =IFERROR(IF(O128="","",VLOOKUP(O128,JORNADA!$A$19:$B$20,2,FALSE)),"") ->  | Q128: =IFERROR(IF(A128="","",VLOOKUP(A128,[1]Hoja1!$B$2:$U$4999,3,FALSE)),0) ->  | U128: =IFERROR(IF(A128="","",VLOOKUP(A128,[1]Hoja1!$B$2:$U$4999,10,FALSE)),0) ->  | V128: =IFERROR(IF(Q128="","",VLOOKUP(Q128,[1]Hoja1!$D$2:$AF$4999,29,FALSE)),"NO EXISTE CUENTA") -> 
B129: =IFERROR(IF(A129="","",VLOOKUP(A129,[1]Hoja1!$B$2:$U$4999,9,FALSE)),0) ->  | C129: =IFERROR(IF(A129="","",VLOOKUP(A129,[1]Hoja1!$B$2:$U$4999,2,FALSE))," --- NO EXISTE TRABAJADOR --- ") ->  | L129: =IFERROR(IF(A129="","",VLOOKUP(A129,[1]Hoja1!$B$2:$U$4999,18,FALSE)),0) ->  | M129: =IFERROR(IF(A129="","",VLOOKUP(A129,[1]Hoja1!$B$2:$U$4999,19,FALSE)),0) ->  | P129: =IFERROR(IF(O129="","",VLOOKUP(O129,JORNADA!$A$19:$B$20,2,FALSE)),"") ->  | Q129: =IFERROR(IF(A129="","",VLOOKUP(A129,[1]Hoja1!$B$2:$U$4999,3,FALSE)),0) ->  | U129: =IFERROR(IF(A129="","",VLOOKUP(A129,[1]Hoja1!$B$2:$U$4999,10,FALSE)),0) ->  | V129: =IFERROR(IF(Q129="","",VLOOKUP(Q129,[1]Hoja1!$D$2:$AF$4999,29,FALSE)),"NO EXISTE CUENTA") -> 
B130: =IFERROR(IF(A130="","",VLOOKUP(A130,[1]Hoja1!$B$2:$U$4999,9,FALSE)),0) ->  | C130: =IFERROR(IF(A130="","",VLOOKUP(A130,[1]Hoja1!$B$2:$U$4999,2,FALSE))," --- NO EXISTE TRABAJADOR --- ") ->  | L130: =IFERROR(IF(A130="","",VLOOKUP(A130,[1]Hoja1!$B$2:$U$4999,18,FALSE)),0) ->  | M130: =IFERROR(IF(A130="","",VLOOKUP(A130,[1]Hoja1!$B$2:$U$4999,19,FALSE)),0) ->  | P130: =IFERROR(IF(O130="","",VLOOKUP(O130,JORNADA!$A$19:$B$20,2,FALSE)),"") ->  | Q130: =IFERROR(IF(A130="","",VLOOKUP(A130,[1]Hoja1!$B$2:$U$4999,3,FALSE)),0) ->  | U130: =IFERROR(IF(A130="","",VLOOKUP(A130,[1]Hoja1!$B$2:$U$4999,10,FALSE)),0) ->  | V130: =IFERROR(IF(Q130="","",VLOOKUP(Q130,[1]Hoja1!$D$2:$AF$4999,29,FALSE)),"NO EXISTE CUENTA") -> 
A131: =+S131 ->  | B131: =IFERROR(IF(A131="","",VLOOKUP(A131,[1]Hoja1!$B$2:$U$4999,9,FALSE)),0) ->  | C131: =IFERROR(IF(A131="","",VLOOKUP(A131,[1]Hoja1!$B$2:$U$4999,2,FALSE))," --- NO EXISTE TRABAJADOR --- ") ->  | I131: =IFERROR(IF(G131="","",VLOOKUP(G131,JORNADA,2,FALSE)),0) ->  | J131: =IFERROR(IF(H131="","",VLOOKUP(H131,ACTIVIDAD,2,FALSE)),0) ->  | K131: =CONCATENATE(J131,G131) ->  | L131: =IFERROR(IF(A131="","",VLOOKUP(A131,[1]Hoja1!$B$2:$U$4999,18,FALSE)),0) ->  | M131: =IFERROR(IF(A131="","",VLOOKUP(A131,[1]Hoja1!$B$2:$U$4999,19,FALSE)),0) ->  | N131: =IFERROR(IF(W131="","",VLOOKUP(W131,LICENCIA,2,FALSE)),"") ->  | P131: =IFERROR(IF(O131="","",VLOOKUP(O131,JORNADA!$A$19:$B$20,2,FALSE)),"") ->  | Q131: =IFERROR(IF(A131="","",VLOOKUP(A131,[1]Hoja1!$B$2:$U$4999,3,FALSE)),0) ->  | S131: =IFERROR(IF(R131="","",VLOOKUP(R131,DNI,2,FALSE)),0) ->  | T131: =IF(D131<>"",COUNTA(INDIRECT("D2:D"&ROW()-1)),"") ->  | U131: =IFERROR(IF(A131="","",VLOOKUP(A131,[1]Hoja1!$B$2:$U$4999,10,FALSE)),0) ->  | V131: =IFERROR(IF(Q131="","",VLOOKUP(Q131,[1]Hoja1!$D$2:$AF$4999,29,FALSE)),"NO EXISTE CUENTA") ->  | Y131: =+C131 -> 
B132: =IFERROR(IF(A132="","",VLOOKUP(A132,[1]Hoja1!$B$2:$U$4999,9,FALSE)),0) ->  | C132: =IFERROR(IF(A132="","",VLOOKUP(A132,[1]Hoja1!$B$2:$U$4999,2,FALSE))," --- NO EXISTE TRABAJADOR --- ") ->  | L132: =IFERROR(IF(A132="","",VLOOKUP(A132,[1]Hoja1!$B$2:$U$4999,18,FALSE)),0) ->  | M132: =IFERROR(IF(A132="","",VLOOKUP(A132,[1]Hoja1!$B$2:$U$4999,19,FALSE)),0) ->  | P132: =IFERROR(IF(O132="","",VLOOKUP(O132,JORNADA!$A$19:$B$20,2,FALSE)),"") ->  | Q132: =IFERROR(IF(A132="","",VLOOKUP(A132,[1]Hoja1!$B$2:$U$4999,3,FALSE)),0) ->  | U132: =IFERROR(IF(A132="","",VLOOKUP(A132,[1]Hoja1!$B$2:$U$4999,10,FALSE)),0) ->  | V132: =IFERROR(IF(Q132="","",VLOOKUP(Q132,[1]Hoja1!$D$2:$AF$4999,29,FALSE)),"NO EXISTE CUENTA") -> 
B133: =IFERROR(IF(A133="","",VLOOKUP(A133,[1]Hoja1!$B$2:$U$4999,9,FALSE)),0) ->  | C133: =IFERROR(IF(A133="","",VLOOKUP(A133,[1]Hoja1!$B$2:$U$4999,2,FALSE))," --- NO EXISTE TRABAJADOR --- ") ->  | L133: =IFERROR(IF(A133="","",VLOOKUP(A133,[1]Hoja1!$B$2:$U$4999,18,FALSE)),0) ->  | M133: =IFERROR(IF(A133="","",VLOOKUP(A133,[1]Hoja1!$B$2:$U$4999,19,FALSE)),0) ->  | P133: =IFERROR(IF(O133="","",VLOOKUP(O133,JORNADA!$A$19:$B$20,2,FALSE)),"") ->  | Q133: =IFERROR(IF(A133="","",VLOOKUP(A133,[1]Hoja1!$B$2:$U$4999,3,FALSE)),0) ->  | U133: =IFERROR(IF(A133="","",VLOOKUP(A133,[1]Hoja1!$B$2:$U$4999,10,FALSE)),0) ->  | V133: =IFERROR(IF(Q133="","",VLOOKUP(Q133,[1]Hoja1!$D$2:$AF$4999,29,FALSE)),"NO EXISTE CUENTA") -> 
B134: =IFERROR(IF(A134="","",VLOOKUP(A134,[1]Hoja1!$B$2:$U$4999,9,FALSE)),0) ->  | C134: =IFERROR(IF(A134="","",VLOOKUP(A134,[1]Hoja1!$B$2:$U$4999,2,FALSE))," --- NO EXISTE TRABAJADOR --- ") ->  | L134: =IFERROR(IF(A134="","",VLOOKUP(A134,[1]Hoja1!$B$2:$U$4999,18,FALSE)),0) ->  | M134: =IFERROR(IF(A134="","",VLOOKUP(A134,[1]Hoja1!$B$2:$U$4999,19,FALSE)),0) ->  | P134: =IFERROR(IF(O134="","",VLOOKUP(O134,JORNADA!$A$19:$B$20,2,FALSE)),"") ->  | Q134: =IFERROR(IF(A134="","",VLOOKUP(A134,[1]Hoja1!$B$2:$U$4999,3,FALSE)),0) ->  | U134: =IFERROR(IF(A134="","",VLOOKUP(A134,[1]Hoja1!$B$2:$U$4999,10,FALSE)),0) ->  | V134: =IFERROR(IF(Q134="","",VLOOKUP(Q134,[1]Hoja1!$D$2:$AF$4999,29,FALSE)),"NO EXISTE CUENTA") -> 
B135: =IFERROR(IF(A135="","",VLOOKUP(A135,[1]Hoja1!$B$2:$U$4999,9,FALSE)),0) ->  | C135: =IFERROR(IF(A135="","",VLOOKUP(A135,[1]Hoja1!$B$2:$U$4999,2,FALSE))," --- NO EXISTE TRABAJADOR --- ") ->  | L135: =IFERROR(IF(A135="","",VLOOKUP(A135,[1]Hoja1!$B$2:$U$4999,18,FALSE)),0) ->  | M135: =IFERROR(IF(A135="","",VLOOKUP(A135,[1]Hoja1!$B$2:$U$4999,19,FALSE)),0) ->  | P135: =IFERROR(IF(O135="","",VLOOKUP(O135,JORNADA!$A$19:$B$20,2,FALSE)),"") ->  | Q135: =IFERROR(IF(A135="","",VLOOKUP(A135,[1]Hoja1!$B$2:$U$4999,3,FALSE)),0) ->  | U135: =IFERROR(IF(A135="","",VLOOKUP(A135,[1]Hoja1!$B$2:$U$4999,10,FALSE)),0) ->  | V135: =IFERROR(IF(Q135="","",VLOOKUP(Q135,[1]Hoja1!$D$2:$AF$4999,29,FALSE)),"NO EXISTE CUENTA") -> 
B136: =IFERROR(IF(A136="","",VLOOKUP(A136,[1]Hoja1!$B$2:$U$4999,9,FALSE)),0) ->  | C136: =IFERROR(IF(A136="","",VLOOKUP(A136,[1]Hoja1!$B$2:$U$4999,2,FALSE))," --- NO EXISTE TRABAJADOR --- ") ->  | L136: =IFERROR(IF(A136="","",VLOOKUP(A136,[1]Hoja1!$B$2:$U$4999,18,FALSE)),0) ->  | M136: =IFERROR(IF(A136="","",VLOOKUP(A136,[1]Hoja1!$B$2:$U$4999,19,FALSE)),0) ->  | P136: =IFERROR(IF(O136="","",VLOOKUP(O136,JORNADA!$A$19:$B$20,2,FALSE)),"") ->  | Q136: =IFERROR(IF(A136="","",VLOOKUP(A136,[1]Hoja1!$B$2:$U$4999,3,FALSE)),0) ->  | U136: =IFERROR(IF(A136="","",VLOOKUP(A136,[1]Hoja1!$B$2:$U$4999,10,FALSE)),0) ->  | V136: =IFERROR(IF(Q136="","",VLOOKUP(Q136,[1]Hoja1!$D$2:$AF$4999,29,FALSE)),"NO EXISTE CUENTA") -> 
B137: =IFERROR(IF(A137="","",VLOOKUP(A137,[1]Hoja1!$B$2:$U$4999,9,FALSE)),0) ->  | C137: =IFERROR(IF(A137="","",VLOOKUP(A137,[1]Hoja1!$B$2:$U$4999,2,FALSE))," --- NO EXISTE TRABAJADOR --- ") ->  | L137: =IFERROR(IF(A137="","",VLOOKUP(A137,[1]Hoja1!$B$2:$U$4999,18,FALSE)),0) ->  | M137: =IFERROR(IF(A137="","",VLOOKUP(A137,[1]Hoja1!$B$2:$U$4999,19,FALSE)),0) ->  | P137: =IFERROR(IF(O137="","",VLOOKUP(O137,JORNADA!$A$19:$B$20,2,FALSE)),"") ->  | Q137: =IFERROR(IF(A137="","",VLOOKUP(A137,[1]Hoja1!$B$2:$U$4999,3,FALSE)),0) ->  | U137: =IFERROR(IF(A137="","",VLOOKUP(A137,[1]Hoja1!$B$2:$U$4999,10,FALSE)),0) ->  | V137: =IFERROR(IF(Q137="","",VLOOKUP(Q137,[1]Hoja1!$D$2:$AF$4999,29,FALSE)),"NO EXISTE CUENTA") -> 
B138: =IFERROR(IF(A138="","",VLOOKUP(A138,[1]Hoja1!$B$2:$U$4999,9,FALSE)),0) ->  | C138: =IFERROR(IF(A138="","",VLOOKUP(A138,[1]Hoja1!$B$2:$U$4999,2,FALSE))," --- NO EXISTE TRABAJADOR --- ") ->  | L138: =IFERROR(IF(A138="","",VLOOKUP(A138,[1]Hoja1!$B$2:$U$4999,18,FALSE)),0) ->  | M138: =IFERROR(IF(A138="","",VLOOKUP(A138,[1]Hoja1!$B$2:$U$4999,19,FALSE)),0) ->  | P138: =IFERROR(IF(O138="","",VLOOKUP(O138,JORNADA!$A$19:$B$20,2,FALSE)),"") ->  | Q138: =IFERROR(IF(A138="","",VLOOKUP(A138,[1]Hoja1!$B$2:$U$4999,3,FALSE)),0) ->  | U138: =IFERROR(IF(A138="","",VLOOKUP(A138,[1]Hoja1!$B$2:$U$4999,10,FALSE)),0) ->  | V138: =IFERROR(IF(Q138="","",VLOOKUP(Q138,[1]Hoja1!$D$2:$AF$4999,29,FALSE)),"NO EXISTE CUENTA") -> 
B139: =IFERROR(IF(A139="","",VLOOKUP(A139,[1]Hoja1!$B$2:$U$4999,9,FALSE)),0) ->  | C139: =IFERROR(IF(A139="","",VLOOKUP(A139,[1]Hoja1!$B$2:$U$4999,2,FALSE))," --- NO EXISTE TRABAJADOR --- ") ->  | L139: =IFERROR(IF(A139="","",VLOOKUP(A139,[1]Hoja1!$B$2:$U$4999,18,FALSE)),0) ->  | M139: =IFERROR(IF(A139="","",VLOOKUP(A139,[1]Hoja1!$B$2:$U$4999,19,FALSE)),0) ->  | P139: =IFERROR(IF(O139="","",VLOOKUP(O139,JORNADA!$A$19:$B$20,2,FALSE)),"") ->  | Q139: =IFERROR(IF(A139="","",VLOOKUP(A139,[1]Hoja1!$B$2:$U$4999,3,FALSE)),0) ->  | U139: =IFERROR(IF(A139="","",VLOOKUP(A139,[1]Hoja1!$B$2:$U$4999,10,FALSE)),0) ->  | V139: =IFERROR(IF(Q139="","",VLOOKUP(Q139,[1]Hoja1!$D$2:$AF$4999,29,FALSE)),"NO EXISTE CUENTA") -> 
B140: =IFERROR(IF(A140="","",VLOOKUP(A140,[1]Hoja1!$B$2:$U$4999,9,FALSE)),0) ->  | C140: =IFERROR(IF(A140="","",VLOOKUP(A140,[1]Hoja1!$B$2:$U$4999,2,FALSE))," --- NO EXISTE TRABAJADOR --- ") ->  | L140: =IFERROR(IF(A140="","",VLOOKUP(A140,[1]Hoja1!$B$2:$U$4999,18,FALSE)),0) ->  | M140: =IFERROR(IF(A140="","",VLOOKUP(A140,[1]Hoja1!$B$2:$U$4999,19,FALSE)),0) ->  | P140: =IFERROR(IF(O140="","",VLOOKUP(O140,JORNADA!$A$19:$B$20,2,FALSE)),"") ->  | Q140: =IFERROR(IF(A140="","",VLOOKUP(A140,[1]Hoja1!$B$2:$U$4999,3,FALSE)),0) ->  | U140: =IFERROR(IF(A140="","",VLOOKUP(A140,[1]Hoja1!$B$2:$U$4999,10,FALSE)),0) ->  | V140: =IFERROR(IF(Q140="","",VLOOKUP(Q140,[1]Hoja1!$D$2:$AF$4999,29,FALSE)),"NO EXISTE CUENTA") -> 
B141: =IFERROR(IF(A141="","",VLOOKUP(A141,[1]Hoja1!$B$2:$U$4999,9,FALSE)),0) ->  | C141: =IFERROR(IF(A141="","",VLOOKUP(A141,[1]Hoja1!$B$2:$U$4999,2,FALSE))," --- NO EXISTE TRABAJADOR --- ") ->  | L141: =IFERROR(IF(A141="","",VLOOKUP(A141,[1]Hoja1!$B$2:$U$4999,18,FALSE)),0) ->  | M141: =IFERROR(IF(A141="","",VLOOKUP(A141,[1]Hoja1!$B$2:$U$4999,19,FALSE)),0) ->  | P141: =IFERROR(IF(O141="","",VLOOKUP(O141,JORNADA!$A$19:$B$20,2,FALSE)),"") ->  | Q141: =IFERROR(IF(A141="","",VLOOKUP(A141,[1]Hoja1!$B$2:$U$4999,3,FALSE)),0) ->  | U141: =IFERROR(IF(A141="","",VLOOKUP(A141,[1]Hoja1!$B$2:$U$4999,10,FALSE)),0) ->  | V141: =IFERROR(IF(Q141="","",VLOOKUP(Q141,[1]Hoja1!$D$2:$AF$4999,29,FALSE)),"NO EXISTE CUENTA") -> 
B142: =IFERROR(IF(A142="","",VLOOKUP(A142,[1]Hoja1!$B$2:$U$4999,9,FALSE)),0) ->  | C142: =IFERROR(IF(A142="","",VLOOKUP(A142,[1]Hoja1!$B$2:$U$4999,2,FALSE))," --- NO EXISTE TRABAJADOR --- ") ->  | L142: =IFERROR(IF(A142="","",VLOOKUP(A142,[1]Hoja1!$B$2:$U$4999,18,FALSE)),0) ->  | M142: =IFERROR(IF(A142="","",VLOOKUP(A142,[1]Hoja1!$B$2:$U$4999,19,FALSE)),0) ->  | P142: =IFERROR(IF(O142="","",VLOOKUP(O142,JORNADA!$A$19:$B$20,2,FALSE)),"") ->  | Q142: =IFERROR(IF(A142="","",VLOOKUP(A142,[1]Hoja1!$B$2:$U$4999,3,FALSE)),0) ->  | U142: =IFERROR(IF(A142="","",VLOOKUP(A142,[1]Hoja1!$B$2:$U$4999,10,FALSE)),0) ->  | V142: =IFERROR(IF(Q142="","",VLOOKUP(Q142,[1]Hoja1!$D$2:$AF$4999,29,FALSE)),"NO EXISTE CUENTA") -> 
B143: =IFERROR(IF(A143="","",VLOOKUP(A143,[1]Hoja1!$B$2:$U$4999,9,FALSE)),0) ->  | C143: =IFERROR(IF(A143="","",VLOOKUP(A143,[1]Hoja1!$B$2:$U$4999,2,FALSE))," --- NO EXISTE TRABAJADOR --- ") ->  | L143: =IFERROR(IF(A143="","",VLOOKUP(A143,[1]Hoja1!$B$2:$U$4999,18,FALSE)),0) ->  | M143: =IFERROR(IF(A143="","",VLOOKUP(A143,[1]Hoja1!$B$2:$U$4999,19,FALSE)),0) ->  | P143: =IFERROR(IF(O143="","",VLOOKUP(O143,JORNADA!$A$19:$B$20,2,FALSE)),"") ->  | Q143: =IFERROR(IF(A143="","",VLOOKUP(A143,[1]Hoja1!$B$2:$U$4999,3,FALSE)),0) ->  | U143: =IFERROR(IF(A143="","",VLOOKUP(A143,[1]Hoja1!$B$2:$U$4999,10,FALSE)),0) ->  | V143: =IFERROR(IF(Q143="","",VLOOKUP(Q143,[1]Hoja1!$D$2:$AF$4999,29,FALSE)),"NO EXISTE CUENTA") -> 
B144: =IFERROR(IF(A144="","",VLOOKUP(A144,[1]Hoja1!$B$2:$U$4999,9,FALSE)),0) ->  | C144: =IFERROR(IF(A144="","",VLOOKUP(A144,[1]Hoja1!$B$2:$U$4999,2,FALSE))," --- NO EXISTE TRABAJADOR --- ") ->  | L144: =IFERROR(IF(A144="","",VLOOKUP(A144,[1]Hoja1!$B$2:$U$4999,18,FALSE)),0) ->  | M144: =IFERROR(IF(A144="","",VLOOKUP(A144,[1]Hoja1!$B$2:$U$4999,19,FALSE)),0) ->  | P144: =IFERROR(IF(O144="","",VLOOKUP(O144,JORNADA!$A$19:$B$20,2,FALSE)),"") ->  | Q144: =IFERROR(IF(A144="","",VLOOKUP(A144,[1]Hoja1!$B$2:$U$4999,3,FALSE)),0) ->  | U144: =IFERROR(IF(A144="","",VLOOKUP(A144,[1]Hoja1!$B$2:$U$4999,10,FALSE)),0) ->  | V144: =IFERROR(IF(Q144="","",VLOOKUP(Q144,[1]Hoja1!$D$2:$AF$4999,29,FALSE)),"NO EXISTE CUENTA") -> 
B145: =IFERROR(IF(A145="","",VLOOKUP(A145,[1]Hoja1!$B$2:$U$4999,9,FALSE)),0) ->  | C145: =IFERROR(IF(A145="","",VLOOKUP(A145,[1]Hoja1!$B$2:$U$4999,2,FALSE))," --- NO EXISTE TRABAJADOR --- ") ->  | L145: =IFERROR(IF(A145="","",VLOOKUP(A145,[1]Hoja1!$B$2:$U$4999,18,FALSE)),0) ->  | M145: =IFERROR(IF(A145="","",VLOOKUP(A145,[1]Hoja1!$B$2:$U$4999,19,FALSE)),0) ->  | P145: =IFERROR(IF(O145="","",VLOOKUP(O145,JORNADA!$A$19:$B$20,2,FALSE)),"") ->  | Q145: =IFERROR(IF(A145="","",VLOOKUP(A145,[1]Hoja1!$B$2:$U$4999,3,FALSE)),0) ->  | U145: =IFERROR(IF(A145="","",VLOOKUP(A145,[1]Hoja1!$B$2:$U$4999,10,FALSE)),0) ->  | V145: =IFERROR(IF(Q145="","",VLOOKUP(Q145,[1]Hoja1!$D$2:$AF$4999,29,FALSE)),"NO EXISTE CUENTA") -> 
B146: =IFERROR(IF(A146="","",VLOOKUP(A146,[1]Hoja1!$B$2:$U$4999,9,FALSE)),0) ->  | C146: =IFERROR(IF(A146="","",VLOOKUP(A146,[1]Hoja1!$B$2:$U$4999,2,FALSE))," --- NO EXISTE TRABAJADOR --- ") ->  | L146: =IFERROR(IF(A146="","",VLOOKUP(A146,[1]Hoja1!$B$2:$U$4999,18,FALSE)),0) ->  | M146: =IFERROR(IF(A146="","",VLOOKUP(A146,[1]Hoja1!$B$2:$U$4999,19,FALSE)),0) ->  | P146: =IFERROR(IF(O146="","",VLOOKUP(O146,JORNADA!$A$19:$B$20,2,FALSE)),"") ->  | Q146: =IFERROR(IF(A146="","",VLOOKUP(A146,[1]Hoja1!$B$2:$U$4999,3,FALSE)),0) ->  | U146: =IFERROR(IF(A146="","",VLOOKUP(A146,[1]Hoja1!$B$2:$U$4999,10,FALSE)),0) ->  | V146: =IFERROR(IF(Q146="","",VLOOKUP(Q146,[1]Hoja1!$D$2:$AF$4999,29,FALSE)),"NO EXISTE CUENTA") -> 
B147: =IFERROR(IF(A147="","",VLOOKUP(A147,[1]Hoja1!$B$2:$U$4999,9,FALSE)),0) ->  | C147: =IFERROR(IF(A147="","",VLOOKUP(A147,[1]Hoja1!$B$2:$U$4999,2,FALSE))," --- NO EXISTE TRABAJADOR --- ") ->  | L147: =IFERROR(IF(A147="","",VLOOKUP(A147,[1]Hoja1!$B$2:$U$4999,18,FALSE)),0) ->  | M147: =IFERROR(IF(A147="","",VLOOKUP(A147,[1]Hoja1!$B$2:$U$4999,19,FALSE)),0) ->  | P147: =IFERROR(IF(O147="","",VLOOKUP(O147,JORNADA!$A$19:$B$20,2,FALSE)),"") ->  | Q147: =IFERROR(IF(A147="","",VLOOKUP(A147,[1]Hoja1!$B$2:$U$4999,3,FALSE)),0) ->  | U147: =IFERROR(IF(A147="","",VLOOKUP(A147,[1]Hoja1!$B$2:$U$4999,10,FALSE)),0) ->  | V147: =IFERROR(IF(Q147="","",VLOOKUP(Q147,[1]Hoja1!$D$2:$AF$4999,29,FALSE)),"NO EXISTE CUENTA") -> 
B148: =IFERROR(IF(A148="","",VLOOKUP(A148,[1]Hoja1!$B$2:$U$4999,9,FALSE)),0) ->  | C148: =IFERROR(IF(A148="","",VLOOKUP(A148,[1]Hoja1!$B$2:$U$4999,2,FALSE))," --- NO EXISTE TRABAJADOR --- ") ->  | L148: =IFERROR(IF(A148="","",VLOOKUP(A148,[1]Hoja1!$B$2:$U$4999,18,FALSE)),0) ->  | M148: =IFERROR(IF(A148="","",VLOOKUP(A148,[1]Hoja1!$B$2:$U$4999,19,FALSE)),0) ->  | P148: =IFERROR(IF(O148="","",VLOOKUP(O148,JORNADA!$A$19:$B$20,2,FALSE)),"") ->  | Q148: =IFERROR(IF(A148="","",VLOOKUP(A148,[1]Hoja1!$B$2:$U$4999,3,FALSE)),0) ->  | U148: =IFERROR(IF(A148="","",VLOOKUP(A148,[1]Hoja1!$B$2:$U$4999,10,FALSE)),0) ->  | V148: =IFERROR(IF(Q148="","",VLOOKUP(Q148,[1]Hoja1!$D$2:$AF$4999,29,FALSE)),"NO EXISTE CUENTA") -> 
B149: =IFERROR(IF(A149="","",VLOOKUP(A149,[1]Hoja1!$B$2:$U$4999,9,FALSE)),0) ->  | C149: =IFERROR(IF(A149="","",VLOOKUP(A149,[1]Hoja1!$B$2:$U$4999,2,FALSE))," --- NO EXISTE TRABAJADOR --- ") ->  | L149: =IFERROR(IF(A149="","",VLOOKUP(A149,[1]Hoja1!$B$2:$U$4999,18,FALSE)),0) ->  | M149: =IFERROR(IF(A149="","",VLOOKUP(A149,[1]Hoja1!$B$2:$U$4999,19,FALSE)),0) ->  | P149: =IFERROR(IF(O149="","",VLOOKUP(O149,JORNADA!$A$19:$B$20,2,FALSE)),"") ->  | Q149: =IFERROR(IF(A149="","",VLOOKUP(A149,[1]Hoja1!$B$2:$U$4999,3,FALSE)),0) ->  | U149: =IFERROR(IF(A149="","",VLOOKUP(A149,[1]Hoja1!$B$2:$U$4999,10,FALSE)),0) ->  | V149: =IFERROR(IF(Q149="","",VLOOKUP(Q149,[1]Hoja1!$D$2:$AF$4999,29,FALSE)),"NO EXISTE CUENTA") -> 
B150: =IFERROR(IF(A150="","",VLOOKUP(A150,[1]Hoja1!$B$2:$U$4999,9,FALSE)),0) ->  | C150: =IFERROR(IF(A150="","",VLOOKUP(A150,[1]Hoja1!$B$2:$U$4999,2,FALSE))," --- NO EXISTE TRABAJADOR --- ") ->  | L150: =IFERROR(IF(A150="","",VLOOKUP(A150,[1]Hoja1!$B$2:$U$4999,18,FALSE)),0) ->  | M150: =IFERROR(IF(A150="","",VLOOKUP(A150,[1]Hoja1!$B$2:$U$4999,19,FALSE)),0) ->  | P150: =IFERROR(IF(O150="","",VLOOKUP(O150,JORNADA!$A$19:$B$20,2,FALSE)),"") ->  | Q150: =IFERROR(IF(A150="","",VLOOKUP(A150,[1]Hoja1!$B$2:$U$4999,3,FALSE)),0) ->  | U150: =IFERROR(IF(A150="","",VLOOKUP(A150,[1]Hoja1!$B$2:$U$4999,10,FALSE)),0) ->  | V150: =IFERROR(IF(Q150="","",VLOOKUP(Q150,[1]Hoja1!$D$2:$AF$4999,29,FALSE)),"NO EXISTE CUENTA") -> 
B151: =IFERROR(IF(A151="","",VLOOKUP(A151,[1]Hoja1!$B$2:$U$4999,9,FALSE)),0) ->  | C151: =IFERROR(IF(A151="","",VLOOKUP(A151,[1]Hoja1!$B$2:$U$4999,2,FALSE))," --- NO EXISTE TRABAJADOR --- ") ->  | L151: =IFERROR(IF(A151="","",VLOOKUP(A151,[1]Hoja1!$B$2:$U$4999,18,FALSE)),0) ->  | M151: =IFERROR(IF(A151="","",VLOOKUP(A151,[1]Hoja1!$B$2:$U$4999,19,FALSE)),0) ->  | P151: =IFERROR(IF(O151="","",VLOOKUP(O151,JORNADA!$A$19:$B$20,2,FALSE)),"") ->  | Q151: =IFERROR(IF(A151="","",VLOOKUP(A151,[1]Hoja1!$B$2:$U$4999,3,FALSE)),0) ->  | U151: =IFERROR(IF(A151="","",VLOOKUP(A151,[1]Hoja1!$B$2:$U$4999,10,FALSE)),0) ->  | V151: =IFERROR(IF(Q151="","",VLOOKUP(Q151,[1]Hoja1!$D$2:$AF$4999,29,FALSE)),"NO EXISTE CUENTA") -> 
B152: =IFERROR(IF(A152="","",VLOOKUP(A152,[1]Hoja1!$B$2:$U$4999,9,FALSE)),0) ->  | C152: =IFERROR(IF(A152="","",VLOOKUP(A152,[1]Hoja1!$B$2:$U$4999,2,FALSE))," --- NO EXISTE TRABAJADOR --- ") ->  | L152: =IFERROR(IF(A152="","",VLOOKUP(A152,[1]Hoja1!$B$2:$U$4999,18,FALSE)),0) ->  | M152: =IFERROR(IF(A152="","",VLOOKUP(A152,[1]Hoja1!$B$2:$U$4999,19,FALSE)),0) ->  | P152: =IFERROR(IF(O152="","",VLOOKUP(O152,JORNADA!$A$19:$B$20,2,FALSE)),"") ->  | Q152: =IFERROR(IF(A152="","",VLOOKUP(A152,[1]Hoja1!$B$2:$U$4999,3,FALSE)),0) ->  | U152: =IFERROR(IF(A152="","",VLOOKUP(A152,[1]Hoja1!$B$2:$U$4999,10,FALSE)),0) ->  | V152: =IFERROR(IF(Q152="","",VLOOKUP(Q152,[1]Hoja1!$D$2:$AF$4999,29,FALSE)),"NO EXISTE CUENTA") -> 
B153: =IFERROR(IF(A153="","",VLOOKUP(A153,[1]Hoja1!$B$2:$U$4999,9,FALSE)),0) ->  | C153: =IFERROR(IF(A153="","",VLOOKUP(A153,[1]Hoja1!$B$2:$U$4999,2,FALSE))," --- NO EXISTE TRABAJADOR --- ") ->  | L153: =IFERROR(IF(A153="","",VLOOKUP(A153,[1]Hoja1!$B$2:$U$4999,18,FALSE)),0) ->  | M153: =IFERROR(IF(A153="","",VLOOKUP(A153,[1]Hoja1!$B$2:$U$4999,19,FALSE)),0) ->  | P153: =IFERROR(IF(O153="","",VLOOKUP(O153,JORNADA!$A$19:$B$20,2,FALSE)),"") ->  | Q153: =IFERROR(IF(A153="","",VLOOKUP(A153,[1]Hoja1!$B$2:$U$4999,3,FALSE)),0) ->  | U153: =IFERROR(IF(A153="","",VLOOKUP(A153,[1]Hoja1!$B$2:$U$4999,10,FALSE)),0) ->  | V153: =IFERROR(IF(Q153="","",VLOOKUP(Q153,[1]Hoja1!$D$2:$AF$4999,29,FALSE)),"NO EXISTE CUENTA") -> 
B154: =IFERROR(IF(A154="","",VLOOKUP(A154,[1]Hoja1!$B$2:$U$4999,9,FALSE)),0) ->  | C154: =IFERROR(IF(A154="","",VLOOKUP(A154,[1]Hoja1!$B$2:$U$4999,2,FALSE))," --- NO EXISTE TRABAJADOR --- ") ->  | L154: =IFERROR(IF(A154="","",VLOOKUP(A154,[1]Hoja1!$B$2:$U$4999,18,FALSE)),0) ->  | M154: =IFERROR(IF(A154="","",VLOOKUP(A154,[1]Hoja1!$B$2:$U$4999,19,FALSE)),0) ->  | P154: =IFERROR(IF(O154="","",VLOOKUP(O154,JORNADA!$A$19:$B$20,2,FALSE)),"") ->  | Q154: =IFERROR(IF(A154="","",VLOOKUP(A154,[1]Hoja1!$B$2:$U$4999,3,FALSE)),0) ->  | U154: =IFERROR(IF(A154="","",VLOOKUP(A154,[1]Hoja1!$B$2:$U$4999,10,FALSE)),0) ->  | V154: =IFERROR(IF(Q154="","",VLOOKUP(Q154,[1]Hoja1!$D$2:$AF$4999,29,FALSE)),"NO EXISTE CUENTA") -> 
B155: =IFERROR(IF(A155="","",VLOOKUP(A155,[1]Hoja1!$B$2:$U$4999,9,FALSE)),0) ->  | C155: =IFERROR(IF(A155="","",VLOOKUP(A155,[1]Hoja1!$B$2:$U$4999,2,FALSE))," --- NO EXISTE TRABAJADOR --- ") ->  | L155: =IFERROR(IF(A155="","",VLOOKUP(A155,[1]Hoja1!$B$2:$U$4999,18,FALSE)),0) ->  | M155: =IFERROR(IF(A155="","",VLOOKUP(A155,[1]Hoja1!$B$2:$U$4999,19,FALSE)),0) ->  | P155: =IFERROR(IF(O155="","",VLOOKUP(O155,JORNADA!$A$19:$B$20,2,FALSE)),"") ->  | Q155: =IFERROR(IF(A155="","",VLOOKUP(A155,[1]Hoja1!$B$2:$U$4999,3,FALSE)),0) ->  | U155: =IFERROR(IF(A155="","",VLOOKUP(A155,[1]Hoja1!$B$2:$U$4999,10,FALSE)),0) ->  | V155: =IFERROR(IF(Q155="","",VLOOKUP(Q155,[1]Hoja1!$D$2:$AF$4999,29,FALSE)),"NO EXISTE CUENTA") -> 
B156: =IFERROR(IF(A156="","",VLOOKUP(A156,[1]Hoja1!$B$2:$U$4999,9,FALSE)),0) ->  | C156: =IFERROR(IF(A156="","",VLOOKUP(A156,[1]Hoja1!$B$2:$U$4999,2,FALSE))," --- NO EXISTE TRABAJADOR --- ") ->  | L156: =IFERROR(IF(A156="","",VLOOKUP(A156,[1]Hoja1!$B$2:$U$4999,18,FALSE)),0) ->  | M156: =IFERROR(IF(A156="","",VLOOKUP(A156,[1]Hoja1!$B$2:$U$4999,19,FALSE)),0) ->  | P156: =IFERROR(IF(O156="","",VLOOKUP(O156,JORNADA!$A$19:$B$20,2,FALSE)),"") ->  | Q156: =IFERROR(IF(A156="","",VLOOKUP(A156,[1]Hoja1!$B$2:$U$4999,3,FALSE)),0) ->  | U156: =IFERROR(IF(A156="","",VLOOKUP(A156,[1]Hoja1!$B$2:$U$4999,10,FALSE)),0) ->  | V156: =IFERROR(IF(Q156="","",VLOOKUP(Q156,[1]Hoja1!$D$2:$AF$4999,29,FALSE)),"NO EXISTE CUENTA") -> 
B157: =IFERROR(IF(A157="","",VLOOKUP(A157,[1]Hoja1!$B$2:$U$4999,9,FALSE)),0) ->  | C157: =IFERROR(IF(A157="","",VLOOKUP(A157,[1]Hoja1!$B$2:$U$4999,2,FALSE))," --- NO EXISTE TRABAJADOR --- ") ->  | L157: =IFERROR(IF(A157="","",VLOOKUP(A157,[1]Hoja1!$B$2:$U$4999,18,FALSE)),0) ->  | M157: =IFERROR(IF(A157="","",VLOOKUP(A157,[1]Hoja1!$B$2:$U$4999,19,FALSE)),0) ->  | P157: =IFERROR(IF(O157="","",VLOOKUP(O157,JORNADA!$A$19:$B$20,2,FALSE)),"") ->  | Q157: =IFERROR(IF(A157="","",VLOOKUP(A157,[1]Hoja1!$B$2:$U$4999,3,FALSE)),0) ->  | U157: =IFERROR(IF(A157="","",VLOOKUP(A157,[1]Hoja1!$B$2:$U$4999,10,FALSE)),0) ->  | V157: =IFERROR(IF(Q157="","",VLOOKUP(Q157,[1]Hoja1!$D$2:$AF$4999,29,FALSE)),"NO EXISTE CUENTA") -> 
B158: =IFERROR(IF(A158="","",VLOOKUP(A158,[1]Hoja1!$B$2:$U$4999,9,FALSE)),0) ->  | C158: =IFERROR(IF(A158="","",VLOOKUP(A158,[1]Hoja1!$B$2:$U$4999,2,FALSE))," --- NO EXISTE TRABAJADOR --- ") ->  | L158: =IFERROR(IF(A158="","",VLOOKUP(A158,[1]Hoja1!$B$2:$U$4999,18,FALSE)),0) ->  | M158: =IFERROR(IF(A158="","",VLOOKUP(A158,[1]Hoja1!$B$2:$U$4999,19,FALSE)),0) ->  | P158: =IFERROR(IF(O158="","",VLOOKUP(O158,JORNADA!$A$19:$B$20,2,FALSE)),"") ->  | Q158: =IFERROR(IF(A158="","",VLOOKUP(A158,[1]Hoja1!$B$2:$U$4999,3,FALSE)),0) ->  | U158: =IFERROR(IF(A158="","",VLOOKUP(A158,[1]Hoja1!$B$2:$U$4999,10,FALSE)),0) ->  | V158: =IFERROR(IF(Q158="","",VLOOKUP(Q158,[1]Hoja1!$D$2:$AF$4999,29,FALSE)),"NO EXISTE CUENTA") -> 
B159: =IFERROR(IF(A159="","",VLOOKUP(A159,[1]Hoja1!$B$2:$U$4999,9,FALSE)),0) ->  | C159: =IFERROR(IF(A159="","",VLOOKUP(A159,[1]Hoja1!$B$2:$U$4999,2,FALSE))," --- NO EXISTE TRABAJADOR --- ") ->  | L159: =IFERROR(IF(A159="","",VLOOKUP(A159,[1]Hoja1!$B$2:$U$4999,18,FALSE)),0) ->  | M159: =IFERROR(IF(A159="","",VLOOKUP(A159,[1]Hoja1!$B$2:$U$4999,19,FALSE)),0) ->  | P159: =IFERROR(IF(O159="","",VLOOKUP(O159,JORNADA!$A$19:$B$20,2,FALSE)),"") ->  | Q159: =IFERROR(IF(A159="","",VLOOKUP(A159,[1]Hoja1!$B$2:$U$4999,3,FALSE)),0) ->  | U159: =IFERROR(IF(A159="","",VLOOKUP(A159,[1]Hoja1!$B$2:$U$4999,10,FALSE)),0) ->  | V159: =IFERROR(IF(Q159="","",VLOOKUP(Q159,[1]Hoja1!$D$2:$AF$4999,29,FALSE)),"NO EXISTE CUENTA") -> 
B160: =IFERROR(IF(A160="","",VLOOKUP(A160,[1]Hoja1!$B$2:$U$4999,9,FALSE)),0) ->  | C160: =IFERROR(IF(A160="","",VLOOKUP(A160,[1]Hoja1!$B$2:$U$4999,2,FALSE))," --- NO EXISTE TRABAJADOR --- ") ->  | L160: =IFERROR(IF(A160="","",VLOOKUP(A160,[1]Hoja1!$B$2:$U$4999,18,FALSE)),0) ->  | M160: =IFERROR(IF(A160="","",VLOOKUP(A160,[1]Hoja1!$B$2:$U$4999,19,FALSE)),0) ->  | P160: =IFERROR(IF(O160="","",VLOOKUP(O160,JORNADA!$A$19:$B$20,2,FALSE)),"") ->  | Q160: =IFERROR(IF(A160="","",VLOOKUP(A160,[1]Hoja1!$B$2:$U$4999,3,FALSE)),0) ->  | U160: =IFERROR(IF(A160="","",VLOOKUP(A160,[1]Hoja1!$B$2:$U$4999,10,FALSE)),0) ->  | V160: =IFERROR(IF(Q160="","",VLOOKUP(Q160,[1]Hoja1!$D$2:$AF$4999,29,FALSE)),"NO EXISTE CUENTA") -> 
B161: =IFERROR(IF(A161="","",VLOOKUP(A161,[1]Hoja1!$B$2:$U$4999,9,FALSE)),0) ->  | C161: =IFERROR(IF(A161="","",VLOOKUP(A161,[1]Hoja1!$B$2:$U$4999,2,FALSE))," --- NO EXISTE TRABAJADOR --- ") ->  | L161: =IFERROR(IF(A161="","",VLOOKUP(A161,[1]Hoja1!$B$2:$U$4999,18,FALSE)),0) ->  | M161: =IFERROR(IF(A161="","",VLOOKUP(A161,[1]Hoja1!$B$2:$U$4999,19,FALSE)),0) ->  | P161: =IFERROR(IF(O161="","",VLOOKUP(O161,JORNADA!$A$19:$B$20,2,FALSE)),"") ->  | Q161: =IFERROR(IF(A161="","",VLOOKUP(A161,[1]Hoja1!$B$2:$U$4999,3,FALSE)),0) ->  | U161: =IFERROR(IF(A161="","",VLOOKUP(A161,[1]Hoja1!$B$2:$U$4999,10,FALSE)),0) ->  | V161: =IFERROR(IF(Q161="","",VLOOKUP(Q161,[1]Hoja1!$D$2:$AF$4999,29,FALSE)),"NO EXISTE CUENTA") -> 
B162: =IFERROR(IF(A162="","",VLOOKUP(A162,[1]Hoja1!$B$2:$U$4999,9,FALSE)),0) ->  | C162: =IFERROR(IF(A162="","",VLOOKUP(A162,[1]Hoja1!$B$2:$U$4999,2,FALSE))," --- NO EXISTE TRABAJADOR --- ") ->  | L162: =IFERROR(IF(A162="","",VLOOKUP(A162,[1]Hoja1!$B$2:$U$4999,18,FALSE)),0) ->  | M162: =IFERROR(IF(A162="","",VLOOKUP(A162,[1]Hoja1!$B$2:$U$4999,19,FALSE)),0) ->  | P162: =IFERROR(IF(O162="","",VLOOKUP(O162,JORNADA!$A$19:$B$20,2,FALSE)),"") ->  | Q162: =IFERROR(IF(A162="","",VLOOKUP(A162,[1]Hoja1!$B$2:$U$4999,3,FALSE)),0) ->  | U162: =IFERROR(IF(A162="","",VLOOKUP(A162,[1]Hoja1!$B$2:$U$4999,10,FALSE)),0) ->  | V162: =IFERROR(IF(Q162="","",VLOOKUP(Q162,[1]Hoja1!$D$2:$AF$4999,29,FALSE)),"NO EXISTE CUENTA") -> 
B163: =IFERROR(IF(A163="","",VLOOKUP(A163,[1]Hoja1!$B$2:$U$4999,9,FALSE)),0) ->  | C163: =IFERROR(IF(A163="","",VLOOKUP(A163,[1]Hoja1!$B$2:$U$4999,2,FALSE))," --- NO EXISTE TRABAJADOR --- ") ->  | L163: =IFERROR(IF(A163="","",VLOOKUP(A163,[1]Hoja1!$B$2:$U$4999,18,FALSE)),0) ->  | M163: =IFERROR(IF(A163="","",VLOOKUP(A163,[1]Hoja1!$B$2:$U$4999,19,FALSE)),0) ->  | P163: =IFERROR(IF(O163="","",VLOOKUP(O163,JORNADA!$A$19:$B$20,2,FALSE)),"") ->  | Q163: =IFERROR(IF(A163="","",VLOOKUP(A163,[1]Hoja1!$B$2:$U$4999,3,FALSE)),0) ->  | U163: =IFERROR(IF(A163="","",VLOOKUP(A163,[1]Hoja1!$B$2:$U$4999,10,FALSE)),0) ->  | V163: =IFERROR(IF(Q163="","",VLOOKUP(Q163,[1]Hoja1!$D$2:$AF$4999,29,FALSE)),"NO EXISTE CUENTA") -> 
B164: =IFERROR(IF(A164="","",VLOOKUP(A164,[1]Hoja1!$B$2:$U$4999,9,FALSE)),0) ->  | C164: =IFERROR(IF(A164="","",VLOOKUP(A164,[1]Hoja1!$B$2:$U$4999,2,FALSE))," --- NO EXISTE TRABAJADOR --- ") ->  | L164: =IFERROR(IF(A164="","",VLOOKUP(A164,[1]Hoja1!$B$2:$U$4999,18,FALSE)),0) ->  | M164: =IFERROR(IF(A164="","",VLOOKUP(A164,[1]Hoja1!$B$2:$U$4999,19,FALSE)),0) ->  | P164: =IFERROR(IF(O164="","",VLOOKUP(O164,JORNADA!$A$19:$B$20,2,FALSE)),"") ->  | Q164: =IFERROR(IF(A164="","",VLOOKUP(A164,[1]Hoja1!$B$2:$U$4999,3,FALSE)),0) ->  | U164: =IFERROR(IF(A164="","",VLOOKUP(A164,[1]Hoja1!$B$2:$U$4999,10,FALSE)),0) ->  | V164: =IFERROR(IF(Q164="","",VLOOKUP(Q164,[1]Hoja1!$D$2:$AF$4999,29,FALSE)),"NO EXISTE CUENTA") -> 
B165: =IFERROR(IF(A165="","",VLOOKUP(A165,[1]Hoja1!$B$2:$U$4999,9,FALSE)),0) ->  | C165: =IFERROR(IF(A165="","",VLOOKUP(A165,[1]Hoja1!$B$2:$U$4999,2,FALSE))," --- NO EXISTE TRABAJADOR --- ") ->  | L165: =IFERROR(IF(A165="","",VLOOKUP(A165,[1]Hoja1!$B$2:$U$4999,18,FALSE)),0) ->  | M165: =IFERROR(IF(A165="","",VLOOKUP(A165,[1]Hoja1!$B$2:$U$4999,19,FALSE)),0) ->  | P165: =IFERROR(IF(O165="","",VLOOKUP(O165,JORNADA!$A$19:$B$20,2,FALSE)),"") ->  | Q165: =IFERROR(IF(A165="","",VLOOKUP(A165,[1]Hoja1!$B$2:$U$4999,3,FALSE)),0) ->  | U165: =IFERROR(IF(A165="","",VLOOKUP(A165,[1]Hoja1!$B$2:$U$4999,10,FALSE)),0) ->  | V165: =IFERROR(IF(Q165="","",VLOOKUP(Q165,[1]Hoja1!$D$2:$AF$4999,29,FALSE)),"NO EXISTE CUENTA") -> 
B166: =IFERROR(IF(A166="","",VLOOKUP(A166,[1]Hoja1!$B$2:$U$4999,9,FALSE)),0) ->  | C166: =IFERROR(IF(A166="","",VLOOKUP(A166,[1]Hoja1!$B$2:$U$4999,2,FALSE))," --- NO EXISTE TRABAJADOR --- ") ->  | L166: =IFERROR(IF(A166="","",VLOOKUP(A166,[1]Hoja1!$B$2:$U$4999,18,FALSE)),0) ->  | M166: =IFERROR(IF(A166="","",VLOOKUP(A166,[1]Hoja1!$B$2:$U$4999,19,FALSE)),0) ->  | P166: =IFERROR(IF(O166="","",VLOOKUP(O166,JORNADA!$A$19:$B$20,2,FALSE)),"") ->  | Q166: =IFERROR(IF(A166="","",VLOOKUP(A166,[1]Hoja1!$B$2:$U$4999,3,FALSE)),0) ->  | U166: =IFERROR(IF(A166="","",VLOOKUP(A166,[1]Hoja1!$B$2:$U$4999,10,FALSE)),0) ->  | V166: =IFERROR(IF(Q166="","",VLOOKUP(Q166,[1]Hoja1!$D$2:$AF$4999,29,FALSE)),"NO EXISTE CUENTA") -> 
B167: =IFERROR(IF(A167="","",VLOOKUP(A167,[1]Hoja1!$B$2:$U$4999,9,FALSE)),0) ->  | C167: =IFERROR(IF(A167="","",VLOOKUP(A167,[1]Hoja1!$B$2:$U$4999,2,FALSE))," --- NO EXISTE TRABAJADOR --- ") ->  | L167: =IFERROR(IF(A167="","",VLOOKUP(A167,[1]Hoja1!$B$2:$U$4999,18,FALSE)),0) ->  | M167: =IFERROR(IF(A167="","",VLOOKUP(A167,[1]Hoja1!$B$2:$U$4999,19,FALSE)),0) ->  | P167: =IFERROR(IF(O167="","",VLOOKUP(O167,JORNADA!$A$19:$B$20,2,FALSE)),"") ->  | Q167: =IFERROR(IF(A167="","",VLOOKUP(A167,[1]Hoja1!$B$2:$U$4999,3,FALSE)),0) ->  | U167: =IFERROR(IF(A167="","",VLOOKUP(A167,[1]Hoja1!$B$2:$U$4999,10,FALSE)),0) ->  | V167: =IFERROR(IF(Q167="","",VLOOKUP(Q167,[1]Hoja1!$D$2:$AF$4999,29,FALSE)),"NO EXISTE CUENTA") -> 
B168: =IFERROR(IF(A168="","",VLOOKUP(A168,[1]Hoja1!$B$2:$U$4999,9,FALSE)),0) ->  | C168: =IFERROR(IF(A168="","",VLOOKUP(A168,[1]Hoja1!$B$2:$U$4999,2,FALSE))," --- NO EXISTE TRABAJADOR --- ") ->  | L168: =IFERROR(IF(A168="","",VLOOKUP(A168,[1]Hoja1!$B$2:$U$4999,18,FALSE)),0) ->  | M168: =IFERROR(IF(A168="","",VLOOKUP(A168,[1]Hoja1!$B$2:$U$4999,19,FALSE)),0) ->  | P168: =IFERROR(IF(O168="","",VLOOKUP(O168,JORNADA!$A$19:$B$20,2,FALSE)),"") ->  | Q168: =IFERROR(IF(A168="","",VLOOKUP(A168,[1]Hoja1!$B$2:$U$4999,3,FALSE)),0) ->  | U168: =IFERROR(IF(A168="","",VLOOKUP(A168,[1]Hoja1!$B$2:$U$4999,10,FALSE)),0) ->  | V168: =IFERROR(IF(Q168="","",VLOOKUP(Q168,[1]Hoja1!$D$2:$AF$4999,29,FALSE)),"NO EXISTE CUENTA") -> 
B169: =IFERROR(IF(A169="","",VLOOKUP(A169,[1]Hoja1!$B$2:$U$4999,9,FALSE)),0) ->  | C169: =IFERROR(IF(A169="","",VLOOKUP(A169,[1]Hoja1!$B$2:$U$4999,2,FALSE))," --- NO EXISTE TRABAJADOR --- ") ->  | L169: =IFERROR(IF(A169="","",VLOOKUP(A169,[1]Hoja1!$B$2:$U$4999,18,FALSE)),0) ->  | M169: =IFERROR(IF(A169="","",VLOOKUP(A169,[1]Hoja1!$B$2:$U$4999,19,FALSE)),0) ->  | P169: =IFERROR(IF(O169="","",VLOOKUP(O169,JORNADA!$A$19:$B$20,2,FALSE)),"") ->  | Q169: =IFERROR(IF(A169="","",VLOOKUP(A169,[1]Hoja1!$B$2:$U$4999,3,FALSE)),0) ->  | U169: =IFERROR(IF(A169="","",VLOOKUP(A169,[1]Hoja1!$B$2:$U$4999,10,FALSE)),0) ->  | V169: =IFERROR(IF(Q169="","",VLOOKUP(Q169,[1]Hoja1!$D$2:$AF$4999,29,FALSE)),"NO EXISTE CUENTA") -> 
B170: =IFERROR(IF(A170="","",VLOOKUP(A170,[1]Hoja1!$B$2:$U$4999,9,FALSE)),0) ->  | C170: =IFERROR(IF(A170="","",VLOOKUP(A170,[1]Hoja1!$B$2:$U$4999,2,FALSE))," --- NO EXISTE TRABAJADOR --- ") ->  | L170: =IFERROR(IF(A170="","",VLOOKUP(A170,[1]Hoja1!$B$2:$U$4999,18,FALSE)),0) ->  | M170: =IFERROR(IF(A170="","",VLOOKUP(A170,[1]Hoja1!$B$2:$U$4999,19,FALSE)),0) ->  | P170: =IFERROR(IF(O170="","",VLOOKUP(O170,JORNADA!$A$19:$B$20,2,FALSE)),"") ->  | Q170: =IFERROR(IF(A170="","",VLOOKUP(A170,[1]Hoja1!$B$2:$U$4999,3,FALSE)),0) ->  | U170: =IFERROR(IF(A170="","",VLOOKUP(A170,[1]Hoja1!$B$2:$U$4999,10,FALSE)),0) ->  | V170: =IFERROR(IF(Q170="","",VLOOKUP(Q170,[1]Hoja1!$D$2:$AF$4999,29,FALSE)),"NO EXISTE CUENTA") -> 
B171: =IFERROR(IF(A171="","",VLOOKUP(A171,[1]Hoja1!$B$2:$U$4999,9,FALSE)),0) ->  | C171: =IFERROR(IF(A171="","",VLOOKUP(A171,[1]Hoja1!$B$2:$U$4999,2,FALSE))," --- NO EXISTE TRABAJADOR --- ") ->  | L171: =IFERROR(IF(A171="","",VLOOKUP(A171,[1]Hoja1!$B$2:$U$4999,18,FALSE)),0) ->  | M171: =IFERROR(IF(A171="","",VLOOKUP(A171,[1]Hoja1!$B$2:$U$4999,19,FALSE)),0) ->  | P171: =IFERROR(IF(O171="","",VLOOKUP(O171,JORNADA!$A$19:$B$20,2,FALSE)),"") ->  | Q171: =IFERROR(IF(A171="","",VLOOKUP(A171,[1]Hoja1!$B$2:$U$4999,3,FALSE)),0) ->  | U171: =IFERROR(IF(A171="","",VLOOKUP(A171,[1]Hoja1!$B$2:$U$4999,10,FALSE)),0) ->  | V171: =IFERROR(IF(Q171="","",VLOOKUP(Q171,[1]Hoja1!$D$2:$AF$4999,29,FALSE)),"NO EXISTE CUENTA") -> 
B172: =IFERROR(IF(A172="","",VLOOKUP(A172,[1]Hoja1!$B$2:$U$4999,9,FALSE)),0) ->  | C172: =IFERROR(IF(A172="","",VLOOKUP(A172,[1]Hoja1!$B$2:$U$4999,2,FALSE))," --- NO EXISTE TRABAJADOR --- ") ->  | L172: =IFERROR(IF(A172="","",VLOOKUP(A172,[1]Hoja1!$B$2:$U$4999,18,FALSE)),0) ->  | M172: =IFERROR(IF(A172="","",VLOOKUP(A172,[1]Hoja1!$B$2:$U$4999,19,FALSE)),0) ->  | P172: =IFERROR(IF(O172="","",VLOOKUP(O172,JORNADA!$A$19:$B$20,2,FALSE)),"") ->  | Q172: =IFERROR(IF(A172="","",VLOOKUP(A172,[1]Hoja1!$B$2:$U$4999,3,FALSE)),0) ->  | U172: =IFERROR(IF(A172="","",VLOOKUP(A172,[1]Hoja1!$B$2:$U$4999,10,FALSE)),0) ->  | V172: =IFERROR(IF(Q172="","",VLOOKUP(Q172,[1]Hoja1!$D$2:$AF$4999,29,FALSE)),"NO EXISTE CUENTA") -> 
B173: =IFERROR(IF(A173="","",VLOOKUP(A173,[1]Hoja1!$B$2:$U$4999,9,FALSE)),0) ->  | C173: =IFERROR(IF(A173="","",VLOOKUP(A173,[1]Hoja1!$B$2:$U$4999,2,FALSE))," --- NO EXISTE TRABAJADOR --- ") ->  | L173: =IFERROR(IF(A173="","",VLOOKUP(A173,[1]Hoja1!$B$2:$U$4999,18,FALSE)),0) ->  | M173: =IFERROR(IF(A173="","",VLOOKUP(A173,[1]Hoja1!$B$2:$U$4999,19,FALSE)),0) ->  | P173: =IFERROR(IF(O173="","",VLOOKUP(O173,JORNADA!$A$19:$B$20,2,FALSE)),"") ->  | Q173: =IFERROR(IF(A173="","",VLOOKUP(A173,[1]Hoja1!$B$2:$U$4999,3,FALSE)),0) ->  | U173: =IFERROR(IF(A173="","",VLOOKUP(A173,[1]Hoja1!$B$2:$U$4999,10,FALSE)),0) ->  | V173: =IFERROR(IF(Q173="","",VLOOKUP(Q173,[1]Hoja1!$D$2:$AF$4999,29,FALSE)),"NO EXISTE CUENTA") -> 
B174: =IFERROR(IF(A174="","",VLOOKUP(A174,[1]Hoja1!$B$2:$U$4999,9,FALSE)),0) ->  | C174: =IFERROR(IF(A174="","",VLOOKUP(A174,[1]Hoja1!$B$2:$U$4999,2,FALSE))," --- NO EXISTE TRABAJADOR --- ") ->  | L174: =IFERROR(IF(A174="","",VLOOKUP(A174,[1]Hoja1!$B$2:$U$4999,18,FALSE)),0) ->  | M174: =IFERROR(IF(A174="","",VLOOKUP(A174,[1]Hoja1!$B$2:$U$4999,19,FALSE)),0) ->  | P174: =IFERROR(IF(O174="","",VLOOKUP(O174,JORNADA!$A$19:$B$20,2,FALSE)),"") ->  | Q174: =IFERROR(IF(A174="","",VLOOKUP(A174,[1]Hoja1!$B$2:$U$4999,3,FALSE)),0) ->  | U174: =IFERROR(IF(A174="","",VLOOKUP(A174,[1]Hoja1!$B$2:$U$4999,10,FALSE)),0) ->  | V174: =IFERROR(IF(Q174="","",VLOOKUP(Q174,[1]Hoja1!$D$2:$AF$4999,29,FALSE)),"NO EXISTE CUENTA") -> 
B175: =IFERROR(IF(A175="","",VLOOKUP(A175,[1]Hoja1!$B$2:$U$4999,9,FALSE)),0) ->  | C175: =IFERROR(IF(A175="","",VLOOKUP(A175,[1]Hoja1!$B$2:$U$4999,2,FALSE))," --- NO EXISTE TRABAJADOR --- ") ->  | L175: =IFERROR(IF(A175="","",VLOOKUP(A175,[1]Hoja1!$B$2:$U$4999,18,FALSE)),0) ->  | M175: =IFERROR(IF(A175="","",VLOOKUP(A175,[1]Hoja1!$B$2:$U$4999,19,FALSE)),0) ->  | P175: =IFERROR(IF(O175="","",VLOOKUP(O175,JORNADA!$A$19:$B$20,2,FALSE)),"") ->  | Q175: =IFERROR(IF(A175="","",VLOOKUP(A175,[1]Hoja1!$B$2:$U$4999,3,FALSE)),0) ->  | U175: =IFERROR(IF(A175="","",VLOOKUP(A175,[1]Hoja1!$B$2:$U$4999,10,FALSE)),0) ->  | V175: =IFERROR(IF(Q175="","",VLOOKUP(Q175,[1]Hoja1!$D$2:$AF$4999,29,FALSE)),"NO EXISTE CUENTA") -> 
B176: =IFERROR(IF(A176="","",VLOOKUP(A176,[1]Hoja1!$B$2:$U$4999,9,FALSE)),0) ->  | C176: =IFERROR(IF(A176="","",VLOOKUP(A176,[1]Hoja1!$B$2:$U$4999,2,FALSE))," --- NO EXISTE TRABAJADOR --- ") ->  | L176: =IFERROR(IF(A176="","",VLOOKUP(A176,[1]Hoja1!$B$2:$U$4999,18,FALSE)),0) ->  | M176: =IFERROR(IF(A176="","",VLOOKUP(A176,[1]Hoja1!$B$2:$U$4999,19,FALSE)),0) ->  | P176: =IFERROR(IF(O176="","",VLOOKUP(O176,JORNADA!$A$19:$B$20,2,FALSE)),"") ->  | Q176: =IFERROR(IF(A176="","",VLOOKUP(A176,[1]Hoja1!$B$2:$U$4999,3,FALSE)),0) ->  | U176: =IFERROR(IF(A176="","",VLOOKUP(A176,[1]Hoja1!$B$2:$U$4999,10,FALSE)),0) ->  | V176: =IFERROR(IF(Q176="","",VLOOKUP(Q176,[1]Hoja1!$D$2:$AF$4999,29,FALSE)),"NO EXISTE CUENTA") -> 
B177: =IFERROR(IF(A177="","",VLOOKUP(A177,[1]Hoja1!$B$2:$U$4999,9,FALSE)),0) ->  | C177: =IFERROR(IF(A177="","",VLOOKUP(A177,[1]Hoja1!$B$2:$U$4999,2,FALSE))," --- NO EXISTE TRABAJADOR --- ") ->  | L177: =IFERROR(IF(A177="","",VLOOKUP(A177,[1]Hoja1!$B$2:$U$4999,18,FALSE)),0) ->  | M177: =IFERROR(IF(A177="","",VLOOKUP(A177,[1]Hoja1!$B$2:$U$4999,19,FALSE)),0) ->  | P177: =IFERROR(IF(O177="","",VLOOKUP(O177,JORNADA!$A$19:$B$20,2,FALSE)),"") ->  | Q177: =IFERROR(IF(A177="","",VLOOKUP(A177,[1]Hoja1!$B$2:$U$4999,3,FALSE)),0) ->  | U177: =IFERROR(IF(A177="","",VLOOKUP(A177,[1]Hoja1!$B$2:$U$4999,10,FALSE)),0) ->  | V177: =IFERROR(IF(Q177="","",VLOOKUP(Q177,[1]Hoja1!$D$2:$AF$4999,29,FALSE)),"NO EXISTE CUENTA") -> 
B178: =IFERROR(IF(A178="","",VLOOKUP(A178,[1]Hoja1!$B$2:$U$4999,9,FALSE)),0) ->  | C178: =IFERROR(IF(A178="","",VLOOKUP(A178,[1]Hoja1!$B$2:$U$4999,2,FALSE))," --- NO EXISTE TRABAJADOR --- ") ->  | L178: =IFERROR(IF(A178="","",VLOOKUP(A178,[1]Hoja1!$B$2:$U$4999,18,FALSE)),0) ->  | M178: =IFERROR(IF(A178="","",VLOOKUP(A178,[1]Hoja1!$B$2:$U$4999,19,FALSE)),0) ->  | P178: =IFERROR(IF(O178="","",VLOOKUP(O178,JORNADA!$A$19:$B$20,2,FALSE)),"") ->  | Q178: =IFERROR(IF(A178="","",VLOOKUP(A178,[1]Hoja1!$B$2:$U$4999,3,FALSE)),0) ->  | U178: =IFERROR(IF(A178="","",VLOOKUP(A178,[1]Hoja1!$B$2:$U$4999,10,FALSE)),0) ->  | V178: =IFERROR(IF(Q178="","",VLOOKUP(Q178,[1]Hoja1!$D$2:$AF$4999,29,FALSE)),"NO EXISTE CUENTA") -> 
B179: =IFERROR(IF(A179="","",VLOOKUP(A179,[1]Hoja1!$B$2:$U$4999,9,FALSE)),0) ->  | C179: =IFERROR(IF(A179="","",VLOOKUP(A179,[1]Hoja1!$B$2:$U$4999,2,FALSE))," --- NO EXISTE TRABAJADOR --- ") ->  | L179: =IFERROR(IF(A179="","",VLOOKUP(A179,[1]Hoja1!$B$2:$U$4999,18,FALSE)),0) ->  | M179: =IFERROR(IF(A179="","",VLOOKUP(A179,[1]Hoja1!$B$2:$U$4999,19,FALSE)),0) ->  | P179: =IFERROR(IF(O179="","",VLOOKUP(O179,JORNADA!$A$19:$B$20,2,FALSE)),"") ->  | Q179: =IFERROR(IF(A179="","",VLOOKUP(A179,[1]Hoja1!$B$2:$U$4999,3,FALSE)),0) ->  | U179: =IFERROR(IF(A179="","",VLOOKUP(A179,[1]Hoja1!$B$2:$U$4999,10,FALSE)),0) ->  | V179: =IFERROR(IF(Q179="","",VLOOKUP(Q179,[1]Hoja1!$D$2:$AF$4999,29,FALSE)),"NO EXISTE CUENTA") -> 
B180: =IFERROR(IF(A180="","",VLOOKUP(A180,[1]Hoja1!$B$2:$U$4999,9,FALSE)),0) ->  | C180: =IFERROR(IF(A180="","",VLOOKUP(A180,[1]Hoja1!$B$2:$U$4999,2,FALSE))," --- NO EXISTE TRABAJADOR --- ") ->  | L180: =IFERROR(IF(A180="","",VLOOKUP(A180,[1]Hoja1!$B$2:$U$4999,18,FALSE)),0) ->  | M180: =IFERROR(IF(A180="","",VLOOKUP(A180,[1]Hoja1!$B$2:$U$4999,19,FALSE)),0) ->  | P180: =IFERROR(IF(O180="","",VLOOKUP(O180,JORNADA!$A$19:$B$20,2,FALSE)),"") ->  | Q180: =IFERROR(IF(A180="","",VLOOKUP(A180,[1]Hoja1!$B$2:$U$4999,3,FALSE)),0) ->  | U180: =IFERROR(IF(A180="","",VLOOKUP(A180,[1]Hoja1!$B$2:$U$4999,10,FALSE)),0) ->  | V180: =IFERROR(IF(Q180="","",VLOOKUP(Q180,[1]Hoja1!$D$2:$AF$4999,29,FALSE)),"NO EXISTE CUENTA") -> 
B181: =IFERROR(IF(A181="","",VLOOKUP(A181,[1]Hoja1!$B$2:$U$4999,9,FALSE)),0) ->  | C181: =IFERROR(IF(A181="","",VLOOKUP(A181,[1]Hoja1!$B$2:$U$4999,2,FALSE))," --- NO EXISTE TRABAJADOR --- ") ->  | L181: =IFERROR(IF(A181="","",VLOOKUP(A181,[1]Hoja1!$B$2:$U$4999,18,FALSE)),0) ->  | M181: =IFERROR(IF(A181="","",VLOOKUP(A181,[1]Hoja1!$B$2:$U$4999,19,FALSE)),0) ->  | P181: =IFERROR(IF(O181="","",VLOOKUP(O181,JORNADA!$A$19:$B$20,2,FALSE)),"") ->  | Q181: =IFERROR(IF(A181="","",VLOOKUP(A181,[1]Hoja1!$B$2:$U$4999,3,FALSE)),0) ->  | U181: =IFERROR(IF(A181="","",VLOOKUP(A181,[1]Hoja1!$B$2:$U$4999,10,FALSE)),0) ->  | V181: =IFERROR(IF(Q181="","",VLOOKUP(Q181,[1]Hoja1!$D$2:$AF$4999,29,FALSE)),"NO EXISTE CUENTA") -> 
B182: =IFERROR(IF(A182="","",VLOOKUP(A182,[1]Hoja1!$B$2:$U$4999,9,FALSE)),0) ->  | C182: =IFERROR(IF(A182="","",VLOOKUP(A182,[1]Hoja1!$B$2:$U$4999,2,FALSE))," --- NO EXISTE TRABAJADOR --- ") ->  | L182: =IFERROR(IF(A182="","",VLOOKUP(A182,[1]Hoja1!$B$2:$U$4999,18,FALSE)),0) ->  | M182: =IFERROR(IF(A182="","",VLOOKUP(A182,[1]Hoja1!$B$2:$U$4999,19,FALSE)),0) ->  | P182: =IFERROR(IF(O182="","",VLOOKUP(O182,JORNADA!$A$19:$B$20,2,FALSE)),"") ->  | Q182: =IFERROR(IF(A182="","",VLOOKUP(A182,[1]Hoja1!$B$2:$U$4999,3,FALSE)),0) ->  | U182: =IFERROR(IF(A182="","",VLOOKUP(A182,[1]Hoja1!$B$2:$U$4999,10,FALSE)),0) ->  | V182: =IFERROR(IF(Q182="","",VLOOKUP(Q182,[1]Hoja1!$D$2:$AF$4999,29,FALSE)),"NO EXISTE CUENTA") -> 
B183: =IFERROR(IF(A183="","",VLOOKUP(A183,[1]Hoja1!$B$2:$U$4999,9,FALSE)),0) ->  | C183: =IFERROR(IF(A183="","",VLOOKUP(A183,[1]Hoja1!$B$2:$U$4999,2,FALSE))," --- NO EXISTE TRABAJADOR --- ") ->  | L183: =IFERROR(IF(A183="","",VLOOKUP(A183,[1]Hoja1!$B$2:$U$4999,18,FALSE)),0) ->  | M183: =IFERROR(IF(A183="","",VLOOKUP(A183,[1]Hoja1!$B$2:$U$4999,19,FALSE)),0) ->  | P183: =IFERROR(IF(O183="","",VLOOKUP(O183,JORNADA!$A$19:$B$20,2,FALSE)),"") ->  | Q183: =IFERROR(IF(A183="","",VLOOKUP(A183,[1]Hoja1!$B$2:$U$4999,3,FALSE)),0) ->  | U183: =IFERROR(IF(A183="","",VLOOKUP(A183,[1]Hoja1!$B$2:$U$4999,10,FALSE)),0) ->  | V183: =IFERROR(IF(Q183="","",VLOOKUP(Q183,[1]Hoja1!$D$2:$AF$4999,29,FALSE)),"NO EXISTE CUENTA") -> 
B184: =IFERROR(IF(A184="","",VLOOKUP(A184,[1]Hoja1!$B$2:$U$4999,9,FALSE)),0) ->  | C184: =IFERROR(IF(A184="","",VLOOKUP(A184,[1]Hoja1!$B$2:$U$4999,2,FALSE))," --- NO EXISTE TRABAJADOR --- ") ->  | L184: =IFERROR(IF(A184="","",VLOOKUP(A184,[1]Hoja1!$B$2:$U$4999,18,FALSE)),0) ->  | M184: =IFERROR(IF(A184="","",VLOOKUP(A184,[1]Hoja1!$B$2:$U$4999,19,FALSE)),0) ->  | P184: =IFERROR(IF(O184="","",VLOOKUP(O184,JORNADA!$A$19:$B$20,2,FALSE)),"") ->  | Q184: =IFERROR(IF(A184="","",VLOOKUP(A184,[1]Hoja1!$B$2:$U$4999,3,FALSE)),0) ->  | U184: =IFERROR(IF(A184="","",VLOOKUP(A184,[1]Hoja1!$B$2:$U$4999,10,FALSE)),0) ->  | V184: =IFERROR(IF(Q184="","",VLOOKUP(Q184,[1]Hoja1!$D$2:$AF$4999,29,FALSE)),"NO EXISTE CUENTA") -> 
B185: =IFERROR(IF(A185="","",VLOOKUP(A185,[1]Hoja1!$B$2:$U$4999,9,FALSE)),0) ->  | C185: =IFERROR(IF(A185="","",VLOOKUP(A185,[1]Hoja1!$B$2:$U$4999,2,FALSE))," --- NO EXISTE TRABAJADOR --- ") ->  | L185: =IFERROR(IF(A185="","",VLOOKUP(A185,[1]Hoja1!$B$2:$U$4999,18,FALSE)),0) ->  | M185: =IFERROR(IF(A185="","",VLOOKUP(A185,[1]Hoja1!$B$2:$U$4999,19,FALSE)),0) ->  | P185: =IFERROR(IF(O185="","",VLOOKUP(O185,JORNADA!$A$19:$B$20,2,FALSE)),"") ->  | Q185: =IFERROR(IF(A185="","",VLOOKUP(A185,[1]Hoja1!$B$2:$U$4999,3,FALSE)),0) ->  | U185: =IFERROR(IF(A185="","",VLOOKUP(A185,[1]Hoja1!$B$2:$U$4999,10,FALSE)),0) ->  | V185: =IFERROR(IF(Q185="","",VLOOKUP(Q185,[1]Hoja1!$D$2:$AF$4999,29,FALSE)),"NO EXISTE CUENTA") -> 
B186: =IFERROR(IF(A186="","",VLOOKUP(A186,[1]Hoja1!$B$2:$U$4999,9,FALSE)),0) ->  | C186: =IFERROR(IF(A186="","",VLOOKUP(A186,[1]Hoja1!$B$2:$U$4999,2,FALSE))," --- NO EXISTE TRABAJADOR --- ") ->  | L186: =IFERROR(IF(A186="","",VLOOKUP(A186,[1]Hoja1!$B$2:$U$4999,18,FALSE)),0) ->  | M186: =IFERROR(IF(A186="","",VLOOKUP(A186,[1]Hoja1!$B$2:$U$4999,19,FALSE)),0) ->  | P186: =IFERROR(IF(O186="","",VLOOKUP(O186,JORNADA!$A$19:$B$20,2,FALSE)),"") ->  | Q186: =IFERROR(IF(A186="","",VLOOKUP(A186,[1]Hoja1!$B$2:$U$4999,3,FALSE)),0) ->  | U186: =IFERROR(IF(A186="","",VLOOKUP(A186,[1]Hoja1!$B$2:$U$4999,10,FALSE)),0) ->  | V186: =IFERROR(IF(Q186="","",VLOOKUP(Q186,[1]Hoja1!$D$2:$AF$4999,29,FALSE)),"NO EXISTE CUENTA") -> 
B187: =IFERROR(IF(A187="","",VLOOKUP(A187,[1]Hoja1!$B$2:$U$4999,9,FALSE)),0) ->  | C187: =IFERROR(IF(A187="","",VLOOKUP(A187,[1]Hoja1!$B$2:$U$4999,2,FALSE))," --- NO EXISTE TRABAJADOR --- ") ->  | L187: =IFERROR(IF(A187="","",VLOOKUP(A187,[1]Hoja1!$B$2:$U$4999,18,FALSE)),0) ->  | M187: =IFERROR(IF(A187="","",VLOOKUP(A187,[1]Hoja1!$B$2:$U$4999,19,FALSE)),0) ->  | P187: =IFERROR(IF(O187="","",VLOOKUP(O187,JORNADA!$A$19:$B$20,2,FALSE)),"") ->  | Q187: =IFERROR(IF(A187="","",VLOOKUP(A187,[1]Hoja1!$B$2:$U$4999,3,FALSE)),0) ->  | U187: =IFERROR(IF(A187="","",VLOOKUP(A187,[1]Hoja1!$B$2:$U$4999,10,FALSE)),0) ->  | V187: =IFERROR(IF(Q187="","",VLOOKUP(Q187,[1]Hoja1!$D$2:$AF$4999,29,FALSE)),"NO EXISTE CUENTA") -> 
B188: =IFERROR(IF(A188="","",VLOOKUP(A188,[1]Hoja1!$B$2:$U$4999,9,FALSE)),0) ->  | C188: =IFERROR(IF(A188="","",VLOOKUP(A188,[1]Hoja1!$B$2:$U$4999,2,FALSE))," --- NO EXISTE TRABAJADOR --- ") ->  | L188: =IFERROR(IF(A188="","",VLOOKUP(A188,[1]Hoja1!$B$2:$U$4999,18,FALSE)),0) ->  | M188: =IFERROR(IF(A188="","",VLOOKUP(A188,[1]Hoja1!$B$2:$U$4999,19,FALSE)),0) ->  | P188: =IFERROR(IF(O188="","",VLOOKUP(O188,JORNADA!$A$19:$B$20,2,FALSE)),"") ->  | Q188: =IFERROR(IF(A188="","",VLOOKUP(A188,[1]Hoja1!$B$2:$U$4999,3,FALSE)),0) ->  | U188: =IFERROR(IF(A188="","",VLOOKUP(A188,[1]Hoja1!$B$2:$U$4999,10,FALSE)),0) ->  | V188: =IFERROR(IF(Q188="","",VLOOKUP(Q188,[1]Hoja1!$D$2:$AF$4999,29,FALSE)),"NO EXISTE CUENTA") -> 
B189: =IFERROR(IF(A189="","",VLOOKUP(A189,[1]Hoja1!$B$2:$U$4999,9,FALSE)),0) ->  | C189: =IFERROR(IF(A189="","",VLOOKUP(A189,[1]Hoja1!$B$2:$U$4999,2,FALSE))," --- NO EXISTE TRABAJADOR --- ") ->  | L189: =IFERROR(IF(A189="","",VLOOKUP(A189,[1]Hoja1!$B$2:$U$4999,18,FALSE)),0) ->  | M189: =IFERROR(IF(A189="","",VLOOKUP(A189,[1]Hoja1!$B$2:$U$4999,19,FALSE)),0) ->  | P189: =IFERROR(IF(O189="","",VLOOKUP(O189,JORNADA!$A$19:$B$20,2,FALSE)),"") ->  | Q189: =IFERROR(IF(A189="","",VLOOKUP(A189,[1]Hoja1!$B$2:$U$4999,3,FALSE)),0) ->  | U189: =IFERROR(IF(A189="","",VLOOKUP(A189,[1]Hoja1!$B$2:$U$4999,10,FALSE)),0) ->  | V189: =IFERROR(IF(Q189="","",VLOOKUP(Q189,[1]Hoja1!$D$2:$AF$4999,29,FALSE)),"NO EXISTE CUENTA") -> 
B190: =IFERROR(IF(A190="","",VLOOKUP(A190,[1]Hoja1!$B$2:$U$4999,9,FALSE)),0) ->  | C190: =IFERROR(IF(A190="","",VLOOKUP(A190,[1]Hoja1!$B$2:$U$4999,2,FALSE))," --- NO EXISTE TRABAJADOR --- ") ->  | L190: =IFERROR(IF(A190="","",VLOOKUP(A190,[1]Hoja1!$B$2:$U$4999,18,FALSE)),0) ->  | M190: =IFERROR(IF(A190="","",VLOOKUP(A190,[1]Hoja1!$B$2:$U$4999,19,FALSE)),0) ->  | P190: =IFERROR(IF(O190="","",VLOOKUP(O190,JORNADA!$A$19:$B$20,2,FALSE)),"") ->  | Q190: =IFERROR(IF(A190="","",VLOOKUP(A190,[1]Hoja1!$B$2:$U$4999,3,FALSE)),0) ->  | U190: =IFERROR(IF(A190="","",VLOOKUP(A190,[1]Hoja1!$B$2:$U$4999,10,FALSE)),0) ->  | V190: =IFERROR(IF(Q190="","",VLOOKUP(Q190,[1]Hoja1!$D$2:$AF$4999,29,FALSE)),"NO EXISTE CUENTA") -> 
B191: =IFERROR(IF(A191="","",VLOOKUP(A191,[1]Hoja1!$B$2:$U$4999,9,FALSE)),0) ->  | C191: =IFERROR(IF(A191="","",VLOOKUP(A191,[1]Hoja1!$B$2:$U$4999,2,FALSE))," --- NO EXISTE TRABAJADOR --- ") ->  | L191: =IFERROR(IF(A191="","",VLOOKUP(A191,[1]Hoja1!$B$2:$U$4999,18,FALSE)),0) ->  | M191: =IFERROR(IF(A191="","",VLOOKUP(A191,[1]Hoja1!$B$2:$U$4999,19,FALSE)),0) ->  | P191: =IFERROR(IF(O191="","",VLOOKUP(O191,JORNADA!$A$19:$B$20,2,FALSE)),"") ->  | Q191: =IFERROR(IF(A191="","",VLOOKUP(A191,[1]Hoja1!$B$2:$U$4999,3,FALSE)),0) ->  | U191: =IFERROR(IF(A191="","",VLOOKUP(A191,[1]Hoja1!$B$2:$U$4999,10,FALSE)),0) ->  | V191: =IFERROR(IF(Q191="","",VLOOKUP(Q191,[1]Hoja1!$D$2:$AF$4999,29,FALSE)),"NO EXISTE CUENTA") -> 
B192: =IFERROR(IF(A192="","",VLOOKUP(A192,[1]Hoja1!$B$2:$U$4999,9,FALSE)),0) ->  | C192: =IFERROR(IF(A192="","",VLOOKUP(A192,[1]Hoja1!$B$2:$U$4999,2,FALSE))," --- NO EXISTE TRABAJADOR --- ") ->  | L192: =IFERROR(IF(A192="","",VLOOKUP(A192,[1]Hoja1!$B$2:$U$4999,18,FALSE)),0) ->  | M192: =IFERROR(IF(A192="","",VLOOKUP(A192,[1]Hoja1!$B$2:$U$4999,19,FALSE)),0) ->  | P192: =IFERROR(IF(O192="","",VLOOKUP(O192,JORNADA!$A$19:$B$20,2,FALSE)),"") ->  | Q192: =IFERROR(IF(A192="","",VLOOKUP(A192,[1]Hoja1!$B$2:$U$4999,3,FALSE)),0) ->  | U192: =IFERROR(IF(A192="","",VLOOKUP(A192,[1]Hoja1!$B$2:$U$4999,10,FALSE)),0) ->  | V192: =IFERROR(IF(Q192="","",VLOOKUP(Q192,[1]Hoja1!$D$2:$AF$4999,29,FALSE)),"NO EXISTE CUENTA") -> 
B193: =IFERROR(IF(A193="","",VLOOKUP(A193,[1]Hoja1!$B$2:$U$4999,9,FALSE)),0) ->  | C193: =IFERROR(IF(A193="","",VLOOKUP(A193,[1]Hoja1!$B$2:$U$4999,2,FALSE))," --- NO EXISTE TRABAJADOR --- ") ->  | L193: =IFERROR(IF(A193="","",VLOOKUP(A193,[1]Hoja1!$B$2:$U$4999,18,FALSE)),0) ->  | M193: =IFERROR(IF(A193="","",VLOOKUP(A193,[1]Hoja1!$B$2:$U$4999,19,FALSE)),0) ->  | P193: =IFERROR(IF(O193="","",VLOOKUP(O193,JORNADA!$A$19:$B$20,2,FALSE)),"") ->  | Q193: =IFERROR(IF(A193="","",VLOOKUP(A193,[1]Hoja1!$B$2:$U$4999,3,FALSE)),0) ->  | U193: =IFERROR(IF(A193="","",VLOOKUP(A193,[1]Hoja1!$B$2:$U$4999,10,FALSE)),0) ->  | V193: =IFERROR(IF(Q193="","",VLOOKUP(Q193,[1]Hoja1!$D$2:$AF$4999,29,FALSE)),"NO EXISTE CUENTA") -> 
B194: =IFERROR(IF(A194="","",VLOOKUP(A194,[1]Hoja1!$B$2:$U$4999,9,FALSE)),0) ->  | C194: =IFERROR(IF(A194="","",VLOOKUP(A194,[1]Hoja1!$B$2:$U$4999,2,FALSE))," --- NO EXISTE TRABAJADOR --- ") ->  | L194: =IFERROR(IF(A194="","",VLOOKUP(A194,[1]Hoja1!$B$2:$U$4999,18,FALSE)),0) ->  | M194: =IFERROR(IF(A194="","",VLOOKUP(A194,[1]Hoja1!$B$2:$U$4999,19,FALSE)),0) ->  | P194: =IFERROR(IF(O194="","",VLOOKUP(O194,JORNADA!$A$19:$B$20,2,FALSE)),"") ->  | Q194: =IFERROR(IF(A194="","",VLOOKUP(A194,[1]Hoja1!$B$2:$U$4999,3,FALSE)),0) ->  | U194: =IFERROR(IF(A194="","",VLOOKUP(A194,[1]Hoja1!$B$2:$U$4999,10,FALSE)),0) ->  | V194: =IFERROR(IF(Q194="","",VLOOKUP(Q194,[1]Hoja1!$D$2:$AF$4999,29,FALSE)),"NO EXISTE CUENTA") -> 
A195: =+S195 ->  | B195: =IFERROR(IF(A195="","",VLOOKUP(A195,[1]Hoja1!$B$2:$U$4999,9,FALSE)),0) ->  | C195: =IFERROR(IF(A195="","",VLOOKUP(A195,[1]Hoja1!$B$2:$U$4999,2,FALSE))," --- NO EXISTE TRABAJADOR --- ") ->  | I195: =IFERROR(IF(G195="","",VLOOKUP(G195,JORNADA,2,FALSE)),0) ->  | J195: =IFERROR(IF(H195="","",VLOOKUP(H195,ACTIVIDAD,2,FALSE)),0) ->  | K195: =CONCATENATE(J195,G195) ->  | L195: =IFERROR(IF(A195="","",VLOOKUP(A195,[1]Hoja1!$B$2:$U$4999,18,FALSE)),0) ->  | M195: =IFERROR(IF(A195="","",VLOOKUP(A195,[1]Hoja1!$B$2:$U$4999,19,FALSE)),0) ->  | N195: =IFERROR(IF(W195="","",VLOOKUP(W195,LICENCIA,2,FALSE)),"") ->  | P195: =IFERROR(IF(O195="","",VLOOKUP(O195,JORNADA!$A$19:$B$20,2,FALSE)),"") ->  | Q195: =IFERROR(IF(A195="","",VLOOKUP(A195,[1]Hoja1!$B$2:$U$4999,3,FALSE)),0) ->  | S195: =IFERROR(IF(R195="","",VLOOKUP(R195,DNI,2,FALSE)),0) ->  | T195: =IF(D195<>"",COUNTA(INDIRECT("D2:D"&ROW()-1)),"") ->  | U195: =IFERROR(IF(A195="","",VLOOKUP(A195,[1]Hoja1!$B$2:$U$4999,10,FALSE)),0) ->  | V195: =IFERROR(IF(Q195="","",VLOOKUP(Q195,[1]Hoja1!$D$2:$AF$4999,29,FALSE)),"NO EXISTE CUENTA") ->  | Y195: =+C195 -> 
B196: =IFERROR(IF(A196="","",VLOOKUP(A196,[1]Hoja1!$B$2:$U$4999,9,FALSE)),0) ->  | C196: =IFERROR(IF(A196="","",VLOOKUP(A196,[1]Hoja1!$B$2:$U$4999,2,FALSE))," --- NO EXISTE TRABAJADOR --- ") ->  | L196: =IFERROR(IF(A196="","",VLOOKUP(A196,[1]Hoja1!$B$2:$U$4999,18,FALSE)),0) ->  | M196: =IFERROR(IF(A196="","",VLOOKUP(A196,[1]Hoja1!$B$2:$U$4999,19,FALSE)),0) ->  | P196: =IFERROR(IF(O196="","",VLOOKUP(O196,JORNADA!$A$19:$B$20,2,FALSE)),"") ->  | Q196: =IFERROR(IF(A196="","",VLOOKUP(A196,[1]Hoja1!$B$2:$U$4999,3,FALSE)),0) ->  | U196: =IFERROR(IF(A196="","",VLOOKUP(A196,[1]Hoja1!$B$2:$U$4999,10,FALSE)),0) ->  | V196: =IFERROR(IF(Q196="","",VLOOKUP(Q196,[1]Hoja1!$D$2:$AF$4999,29,FALSE)),"NO EXISTE CUENTA") -> 
B197: =IFERROR(IF(A197="","",VLOOKUP(A197,[1]Hoja1!$B$2:$U$4999,9,FALSE)),0) ->  | C197: =IFERROR(IF(A197="","",VLOOKUP(A197,[1]Hoja1!$B$2:$U$4999,2,FALSE))," --- NO EXISTE TRABAJADOR --- ") ->  | L197: =IFERROR(IF(A197="","",VLOOKUP(A197,[1]Hoja1!$B$2:$U$4999,18,FALSE)),0) ->  | M197: =IFERROR(IF(A197="","",VLOOKUP(A197,[1]Hoja1!$B$2:$U$4999,19,FALSE)),0) ->  | P197: =IFERROR(IF(O197="","",VLOOKUP(O197,JORNADA!$A$19:$B$20,2,FALSE)),"") ->  | Q197: =IFERROR(IF(A197="","",VLOOKUP(A197,[1]Hoja1!$B$2:$U$4999,3,FALSE)),0) ->  | U197: =IFERROR(IF(A197="","",VLOOKUP(A197,[1]Hoja1!$B$2:$U$4999,10,FALSE)),0) ->  | V197: =IFERROR(IF(Q197="","",VLOOKUP(Q197,[1]Hoja1!$D$2:$AF$4999,29,FALSE)),"NO EXISTE CUENTA") -> 
B198: =IFERROR(IF(A198="","",VLOOKUP(A198,[1]Hoja1!$B$2:$U$4999,9,FALSE)),0) ->  | C198: =IFERROR(IF(A198="","",VLOOKUP(A198,[1]Hoja1!$B$2:$U$4999,2,FALSE))," --- NO EXISTE TRABAJADOR --- ") ->  | L198: =IFERROR(IF(A198="","",VLOOKUP(A198,[1]Hoja1!$B$2:$U$4999,18,FALSE)),0) ->  | M198: =IFERROR(IF(A198="","",VLOOKUP(A198,[1]Hoja1!$B$2:$U$4999,19,FALSE)),0) ->  | P198: =IFERROR(IF(O198="","",VLOOKUP(O198,JORNADA!$A$19:$B$20,2,FALSE)),"") ->  | Q198: =IFERROR(IF(A198="","",VLOOKUP(A198,[1]Hoja1!$B$2:$U$4999,3,FALSE)),0) ->  | U198: =IFERROR(IF(A198="","",VLOOKUP(A198,[1]Hoja1!$B$2:$U$4999,10,FALSE)),0) ->  | V198: =IFERROR(IF(Q198="","",VLOOKUP(Q198,[1]Hoja1!$D$2:$AF$4999,29,FALSE)),"NO EXISTE CUENTA") -> 
B199: =IFERROR(IF(A199="","",VLOOKUP(A199,[1]Hoja1!$B$2:$U$4999,9,FALSE)),0) ->  | C199: =IFERROR(IF(A199="","",VLOOKUP(A199,[1]Hoja1!$B$2:$U$4999,2,FALSE))," --- NO EXISTE TRABAJADOR --- ") ->  | L199: =IFERROR(IF(A199="","",VLOOKUP(A199,[1]Hoja1!$B$2:$U$4999,18,FALSE)),0) ->  | M199: =IFERROR(IF(A199="","",VLOOKUP(A199,[1]Hoja1!$B$2:$U$4999,19,FALSE)),0) ->  | P199: =IFERROR(IF(O199="","",VLOOKUP(O199,JORNADA!$A$19:$B$20,2,FALSE)),"") ->  | Q199: =IFERROR(IF(A199="","",VLOOKUP(A199,[1]Hoja1!$B$2:$U$4999,3,FALSE)),0) ->  | U199: =IFERROR(IF(A199="","",VLOOKUP(A199,[1]Hoja1!$B$2:$U$4999,10,FALSE)),0) ->  | V199: =IFERROR(IF(Q199="","",VLOOKUP(Q199,[1]Hoja1!$D$2:$AF$4999,29,FALSE)),"NO EXISTE CUENTA") -> 
B200: =IFERROR(IF(A200="","",VLOOKUP(A200,[1]Hoja1!$B$2:$U$4999,9,FALSE)),0) ->  | C200: =IFERROR(IF(A200="","",VLOOKUP(A200,[1]Hoja1!$B$2:$U$4999,2,FALSE))," --- NO EXISTE TRABAJADOR --- ") ->  | L200: =IFERROR(IF(A200="","",VLOOKUP(A200,[1]Hoja1!$B$2:$U$4999,18,FALSE)),0) ->  | M200: =IFERROR(IF(A200="","",VLOOKUP(A200,[1]Hoja1!$B$2:$U$4999,19,FALSE)),0) ->  | P200: =IFERROR(IF(O200="","",VLOOKUP(O200,JORNADA!$A$19:$B$20,2,FALSE)),"") ->  | Q200: =IFERROR(IF(A200="","",VLOOKUP(A200,[1]Hoja1!$B$2:$U$4999,3,FALSE)),0) ->  | U200: =IFERROR(IF(A200="","",VLOOKUP(A200,[1]Hoja1!$B$2:$U$4999,10,FALSE)),0) ->  | V200: =IFERROR(IF(Q200="","",VLOOKUP(Q200,[1]Hoja1!$D$2:$AF$4999,29,FALSE)),"NO EXISTE CUENTA") -> 
... 800 more rows

Sheet JORNADA
A1: 1 | B1: 06.00 / 12.00 | E1: =+[1]Hoja1!D2 -> 4623141 | F1: =+[1]Hoja1!B2 -> 103
A2: 2 | B2: 12.00 / 18.00 | E2: =+[1]Hoja1!D3 -> 4622938 | F2: =+[1]Hoja1!B3 -> 108
A3: 3 | B3: 18.00 / 24.00 | E3: =+[1]Hoja1!D4 -> 4632679 | F3: =+[1]Hoja1!B4 -> 109
A4: 4 | B4: 24.00 / 06.00 | E4: =+[1]Hoja1!D5 -> 4629398 | F4: =+[1]Hoja1!B5 -> 130
E5: =+[1]Hoja1!D6 -> 4653102 | F5: =+[1]Hoja1!B6 -> 164
E6: =+[1]Hoja1!D7 -> 4633135 | F6: =+[1]Hoja1!B7 -> 238
E7: =+[1]Hoja1!D8 -> 4628758 | F7: =+[1]Hoja1!B8 -> 149
A8: 1 | B8: WE | E8: =+[1]Hoja1!D9 -> 4636044 | F8: =+[1]Hoja1!B9 -> 160
A9: 2 | B9: PE | E9: =+[1]Hoja1!D10 -> 4630841 | F9: =+[1]Hoja1!B10 -> 82
A10: 3 | B10: TE | E10: =+[1]Hoja1!D11 -> 4635899 | F10: =+[1]Hoja1!B11 -> 85
A11: 4 | B11: BE | E11: =+[1]Hoja1!D12 -> 4630455 | F11: =+[1]Hoja1!B12 -> 88
A12: 5 | B12: ME | E12: =+[1]Hoja1!D13 -> 4629461 | F12: =+[1]Hoja1!B13 -> 107
A13: 6 | E13: =+[1]Hoja1!D14 -> 4620462 | F13: =+[1]Hoja1!B14 -> 110
A14: 7 | E14: =+[1]Hoja1!D15 -> 4634953 | F14: =+[1]Hoja1!B15 -> 117
A15: 8 | E15: =+[1]Hoja1!D16 -> 4625495 | F15: =+[1]Hoja1!B16 -> 118
A16: 9 | E16: =+[1]Hoja1!D17 -> 4629906 | F16: =+[1]Hoja1!B17 -> 121
A17: 10 | E17: =+[1]Hoja1!D18 -> 4648194 | F17: =+[1]Hoja1!B18 -> 122
E18: =+[1]Hoja1!D19 -> 4632115 | F18: =+[1]Hoja1!B19 -> 123
A19: 1 | B19: ABORDO | E19: =+[1]Hoja1!D20 -> 4620716 | F19: =+[1]Hoja1!B20 -> 129
A20: 2 | B20: MURO | E20: =+[1]Hoja1!D21 -> 4644450 | F20: =+[1]Hoja1!B21 -> 133
E21: =+[1]Hoja1!D22 -> 4625839 | F21: =+[1]Hoja1!B22 -> 136
A22: 1 | B22: LICENCIA SINDICAL | E22: =+[1]Hoja1!D23 -> 4626490 | F22: =+[1]Hoja1!B23 -> 140
E23: =+[1]Hoja1!D24 -> 4629383 | F23: =+[1]Hoja1!B24 -> 151
E24: =+[1]Hoja1!D25 -> 4624200 | F24: =+[1]Hoja1!B25 -> 158
E25: =+[1]Hoja1!D26 -> 4626103 | F25: =+[1]Hoja1!B26 -> 162
E26: =+[1]Hoja1!D27 -> 4629214 | F26: =+[1]Hoja1!B27 -> 167
E27: =+[1]Hoja1!D28 -> 4633760 | F27: =+[1]Hoja1!B28 -> 172
E28: =+[1]Hoja1!D29 -> 2360101 | F28: =+[1]Hoja1!B29 -> 177
E29: =+[1]Hoja1!D30 -> 4632873 | F29: =+[1]Hoja1!B30 -> 259
E30: =+[1]Hoja1!D31 -> 4633197 | F30: =+[1]Hoja1!B31 -> 48
E31: =+[1]Hoja1!D32 -> 4632456 | F31: =+[1]Hoja1!B32 -> 69
E32: =+[1]Hoja1!D33 -> 4630509 | F32: =+[1]Hoja1!B33 -> 79
E33: =+[1]Hoja1!D34 -> 4622603 | F33: =+[1]Hoja1!B34 -> 7
E34: =+[1]Hoja1!D35 -> 4629462 | F34: =+[1]Hoja1!B35 -> 8
E35: =+[1]Hoja1!D36 -> 4629118 | F35: =+[1]Hoja1!B36 -> 232
E36: =+[1]Hoja1!D37 -> 4625417 | F36: =+[1]Hoja1!B37 -> 348
E37: =+[1]Hoja1!D38 -> 4627296 | F37: =+[1]Hoja1!B38 -> 364
E38: =+[1]Hoja1!D39 -> 4749255 | F38: =+[1]Hoja1!B39 -> 367
E39: =+[1]Hoja1!D40 -> 43843885 | F39: =+[1]Hoja1!B40 -> 368
E40: =+[1]Hoja1!D41 -> 44551325 | F40: =+[1]Hoja1!B41 -> 373
E41: =+[1]Hoja1!D42 -> 4646669 | F41: =+[1]Hoja1!B42 -> 378
E42: =+[1]Hoja1!D43 -> 80687547 | F42: =+[1]Hoja1!B43 -> 379
E43: =+[1]Hoja1!D44 -> 4635172 | F43: =+[1]Hoja1!B44 -> 16
E44: =+[1]Hoja1!D45 -> 4621353 | F44: =+[1]Hoja1!B45 -> 18
E45: =+[1]Hoja1!D46 -> 4620375 | F45: =+[1]Hoja1!B46 -> 19
E46: =+[1]Hoja1!D47 -> 29611012 | F46: =+[1]Hoja1!B47 -> 20
E47: =+[1]Hoja1!D48 -> 4635835 | F47: =+[1]Hoja1!B48 -> 26
E48: =+[1]Hoja1!D49 -> 4636548 | F48: =+[1]Hoja1!B49 -> 28
E49: =+[1]Hoja1!D50 -> 40040443 | F49: =+[1]Hoja1!B50 -> 32
E50: =+[1]Hoja1!D51 -> 4623932 | F50: =+[1]Hoja1!B51 -> 33
E51: =+[1]Hoja1!D52 -> 4621667 | F51: =+[1]Hoja1!B52 -> 35
E52: =+[1]Hoja1!D53 -> 40400533 | F52: =+[1]Hoja1!B53 -> 36
E53: =+[1]Hoja1!D54 -> 4625431 | F53: =+[1]Hoja1!B54 -> 42
E54: =+[1]Hoja1!D55 -> 4623352 | F54: =+[1]Hoja1!B55 -> 43
E55: =+[1]Hoja1!D56 -> 4748729 | F55: =+[1]Hoja1!B56 -> 47
E56: =+[1]Hoja1!D57 -> 4627196 | F56: =+[1]Hoja1!B57 -> 52
E57: =+[1]Hoja1!D58 -> 4627551 | F57: =+[1]Hoja1!B58 -> 55
E58: =+[1]Hoja1!D59 -> 4620974 | F58: =+[1]Hoja1!B59 -> 57
E59: =+[1]Hoja1!D60 -> 4625162 | F59: =+[1]Hoja1!B60 -> 113
E60: =+[1]Hoja1!D61 -> 4629739 | F60: =+[1]Hoja1!B61 -> 119
E61: =+[1]Hoja1!D62 -> 4651901 | F61: =+[1]Hoja1!B62 -> 10
E62: =+[1]Hoja1!D63 -> 4643290 | F62: =+[1]Hoja1!B63 -> 13
E63: =+[1]Hoja1!D64 -> 4437139 | F63: =+[1]Hoja1!B64 -> 21
E64: =+[1]Hoja1!D65 -> 29245541 | F64: =+[1]Hoja1!B65 -> 24
E65: =+[1]Hoja1!D66 -> 4652099 | F65: =+[1]Hoja1!B66 -> 127
E66: =+[1]Hoja1!D67 -> 4646267 | F66: =+[1]Hoja1!B67 -> 141
E67: =+[1]Hoja1!D68 -> 29537518 | F67: =+[1]Hoja1!B68 -> 147
E68: =+[1]Hoja1!D69 -> 667528 | F68: =+[1]Hoja1!B69 -> 196
E69: =+[1]Hoja1!D70 -> 4646748 | F69: =+[1]Hoja1!B70 -> 199
E70: =+[1]Hoja1!D71 -> 2414377 | F70: =+[1]Hoja1!B71 -> 229
E71: =+[1]Hoja1!D72 -> 4652901 | F71: =+[1]Hoja1!B72 -> 255
E72: =+[1]Hoja1!D73 -> 4646697 | F72: =+[1]Hoja1!B73 -> 266
E73: =+[1]Hoja1!D74 -> 4749521 | F73: =+[1]Hoja1!B74 -> 273
E74: =+[1]Hoja1!D75 -> 4631490 | F74: =+[1]Hoja1!B75 -> 153
E75: =+[1]Hoja1!D76 -> 4622086 | F75: =+[1]Hoja1!B76 -> 170
E76: =+[1]Hoja1!D77 -> 4622117 | F76: =+[1]Hoja1!B77 -> 41
E77: =+[1]Hoja1!D78 -> 4628381 | F77: =+[1]Hoja1!B78 -> 144
E78: =+[1]Hoja1!D79 -> 4621336 | F78: =+[1]Hoja1!B79 -> 9
E79: =+[1]Hoja1!D80 -> 4626888 | F79: =+[1]Hoja1!B80 -> 84
E80: =+[1]Hoja1!D81 -> 4642785 | F80: =+[1]Hoja1!B81 -> 161
E81: =+[1]Hoja1!D82 -> 4628015 | F81: =+[1]Hoja1!B82 -> 186
E82: =+[1]Hoja1!D83 -> 4626677 | F82: =+[1]Hoja1!B83 -> 131
E83: =+[1]Hoja1!D84 -> 4631678 | F83: =+[1]Hoja1!B84 -> 138
E84: =+[1]Hoja1!D85 -> 4625771 | F84: =+[1]Hoja1!B85 -> 64
E85: =+[1]Hoja1!D86 -> 4649039 | F85: =+[1]Hoja1!B86 -> 70
E86: =+[1]Hoja1!D87 -> 40241723 | F86: =+[1]Hoja1!B87 -> 357
E87: =+[1]Hoja1!D88 -> 4625947 | F87: =+[1]Hoja1!B88 -> 37
E88: =+[1]Hoja1!D89 -> 4632145 | F88: =+[1]Hoja1!B89 -> 53
E89: =+[1]Hoja1!D90 -> 4624886 | F89: =+[1]Hoja1!B90 -> 66
E90: =+[1]Hoja1!D91 -> 4620521 | F90: =+[1]Hoja1!B91 -> 74
E91: =+[1]Hoja1!D92 -> 4631626 | F91: =+[1]Hoja1!B92 -> 102
E92: =+[1]Hoja1!D93 -> 4623806 | F92: =+[1]Hoja1!B93 -> 80
E93: =+[1]Hoja1!D94 -> 4635505 | F93: =+[1]Hoja1!B94 -> 83
E94: =+[1]Hoja1!D95 -> 4633691 | F94: =+[1]Hoja1!B95 -> 78
E95: =+[1]Hoja1!D96 -> 4643178 | F95: =+[1]Hoja1!B96 -> 279
E96: =+[1]Hoja1!D97 -> 4748137 | F96: =+[1]Hoja1!B97 -> 331
E97: =+[1]Hoja1!D98 -> 42908430 | F97: =+[1]Hoja1!B98 -> 336
E98: =+[1]Hoja1!D99 -> 40329928 | F98: =+[1]Hoja1!B99 -> 338
E99: =+[1]Hoja1!D100 -> 4651359 | F99: =+[1]Hoja1!B100 -> 341
E100: =+[1]Hoja1!D101 -> 4622923 | F100: =+[1]Hoja1!B101 -> 342
E101: =+[1]Hoja1!D102 -> 45077426 | F101: =+[1]Hoja1!B102 -> 346
E102: =+[1]Hoja1!D103 -> 40948134 | F102: =+[1]Hoja1!B103 -> 347
E103: =+[1]Hoja1!D104 -> 22301110 | F103: =+[1]Hoja1!B104 -> 352
E104: =+[1]Hoja1!D105 -> 30825812 | F104: =+[1]Hoja1!B105 -> 361
E105: =+[1]Hoja1!D106 -> 4621123 | F105: =+[1]Hoja1!B106 -> 120
E106: =+[1]Hoja1!D107 -> 4628158 | F106: =+[1]Hoja1!B107 -> 181
E107: =+[1]Hoja1!D108 -> 4634102 | F107: =+[1]Hoja1!B108 -> 73
E108: =+[1]Hoja1!D109 -> 4625448 | F108: =+[1]Hoja1!B109 -> 105
E109: =+[1]Hoja1!D110 -> 4628754 | F109: =+[1]Hoja1!B110 -> 40
E110: =+[1]Hoja1!D111 -> 42461564 | F110: =+[1]Hoja1!B111 -> 339
E111: =+[1]Hoja1!D112 -> 4625467 | F111: =+[1]Hoja1!B112 -> 142
E112: =+[1]Hoja1!D113 -> 4631821 | F112: =+[1]Hoja1!B113 -> 125
E113: =+[1]Hoja1!D114 -> 4628860 | F113: =+[1]Hoja1!B114 -> 111
E114: =+[1]Hoja1!D115 -> 4644960 | F114: =+[1]Hoja1!B115 -> 3
E115: =+[1]Hoja1!D116 -> 47704530 | F115: =+[1]Hoja1!B116 -> 386
E116: =+[1]Hoja1!D117 -> 4632634 | F116: =+[1]Hoja1!B117 -> AB1
E117: =+[1]Hoja1!D118 -> 42908436 | F117: =+[1]Hoja1!B118 -> AB2
E118: =+[1]Hoja1!D119 -> 4629488 | F118: =+[1]Hoja1!B119 -> AB3
E119: =+[1]Hoja1!D120 -> 30825449 | F119: =+[1]Hoja1!B120 -> XXXXXXX
E120: =+[1]Hoja1!D121 -> 46322486 | F120: =+[1]Hoja1!B121 -> A1
E121: =+[1]Hoja1!D122 -> 30961524 | F121: =+[1]Hoja1!B122 -> A2
E122: =+[1]Hoja1!D123 -> 40250927 | F122: =+[1]Hoja1!B123 -> A3
E123: =+[1]Hoja1!D124 -> 30823294 | F123: =+[1]Hoja1!B124 -> A4
E124: =+[1]Hoja1!D125 -> 44685373 | F124: =+[1]Hoja1!B125 -> A5
E125: =+[1]Hoja1!D126 -> 43898878 | F125: =+[1]Hoja1!B126 -> A6
E126: =+[1]Hoja1!D127 -> 10555151 | F126: =+[1]Hoja1!B127 -> A7
E127: =+[1]Hoja1!D128 -> 30831164 | F127: =+[1]Hoja1!B128 -> A8
E128: =+[1]Hoja1!D129 -> 4417223 | F128: =+[1]Hoja1!B129 -> A9
E129: =+[1]Hoja1!D130 -> 30829137 | F129: =+[1]Hoja1!B130 -> A10
E130: =+[1]Hoja1!D131 -> 45823830 | F130: =+[1]Hoja1!B131 -> A11
E131: =+[1]Hoja1!D132 -> 46612058 | F131: =+[1]Hoja1!B132 -> A12
E132: =+[1]Hoja1!D133 -> 30828355 | F132: =+[1]Hoja1!B133 -> A13
E133: =+[1]Hoja1!D134 -> 30823451 | F133: =+[1]Hoja1!B134 -> A14
E134: =+[1]Hoja1!D135 -> 44293612 | F134: =+[1]Hoja1!B135 -> A15
E135: =+[1]Hoja1!D136 -> 80281118 | F135: =+[1]Hoja1!B136 -> A16
E136: =+[1]Hoja1!D137 -> 43707689 | F136: =+[1]Hoja1!B137 -> A17
E137: =+[1]Hoja1!D138 -> 71491093 | F137: =+[1]Hoja1!B138 -> A18
E138: =+[1]Hoja1!D139 -> 45434083 | F138: =+[1]Hoja1!B139 -> A19
E139: =+[1]Hoja1!D140 -> 4634053 | F139: =+[1]Hoja1!B140 -> A20
E140: =+[1]Hoja1!D141 -> 43766389 | F140: =+[1]Hoja1!B141 -> A21
E141: =+[1]Hoja1!D142 -> 44397485 | F141: =+[1]Hoja1!B142 -> A22
E142: =+[1]Hoja1!D143 -> 4647544 | F142: =+[1]Hoja1!B143 -> A23
E143: =+[1]Hoja1!D144 -> 40011147 | F143: =+[1]Hoja1!B144 -> A24
E144: =+[1]Hoja1!D145 -> 4647106 | F144: =+[1]Hoja1!B145 -> A25
E145: =+[1]Hoja1!D146 -> 4627023 | F145: =+[1]Hoja1!B146 -> A26
E146: =+[1]Hoja1!D147 -> 30837818 | F146: =+[1]Hoja1!B147 -> A27
E147: =+[1]Hoja1!D148 -> 76590196 | F147: =+[1]Hoja1!B148 -> A28
E148: =+[1]Hoja1!D149 -> 44051691 | F148: =+[1]Hoja1!B149 -> A29
E149: =+[1]Hoja1!D150 -> 4645084 | F149: =+[1]Hoja1!B150 -> 51
E150: =+[1]Hoja1!D151 -> 30835968 | F150: =+[1]Hoja1!B151 -> A30
E151: =+[1]Hoja1!D152 -> 72114472 | F151: =+[1]Hoja1!B152 -> A31
E152: =+[1]Hoja1!D153 -> 30849341 | F152: =+[1]Hoja1!B153 -> A32
E153: =+[1]Hoja1!D154 -> 30831249 | F153: =+[1]Hoja1!B154 -> A33
E154: =+[1]Hoja1!D155 -> 70806153 | F154: =+[1]Hoja1!B155 -> A34
E155: =+[1]Hoja1!D156 -> 25800155 | F155: =+[1]Hoja1!B156 -> A35
E156: =+[1]Hoja1!D157 -> 4626202 | F156: =+[1]Hoja1!B157 -> A36
E157: =+[1]Hoja1!D158 -> 4653318 | F157: =+[1]Hoja1!B158 -> A37
E158: =+[1]Hoja1!D159 -> 43897312 | F158: =+[1]Hoja1!B159 -> A38
E159: =+[1]Hoja1!D160 -> 1874456 | F159: =+[1]Hoja1!B160 -> A39
E160: =+[1]Hoja1!D161 -> 48288361 | F160: =+[1]Hoja1!B161 -> A40
E161: =+[1]Hoja1!D162 -> 30837251 | F161: =+[1]Hoja1!B162 -> A41
E162: =+[1]Hoja1!D163 -> 30833823 | F162: =+[1]Hoja1!B163 -> A42
E163: =+[1]Hoja1!D164 -> 42814539 | F163: =+[1]Hoja1!B164 -> A43
E164: =+[1]Hoja1!D165 -> 30826051 | F164: =+[1]Hoja1!B165 -> A44
E165: =+[1]Hoja1!D166 -> 30824455 | F165: =+[1]Hoja1!B166 -> A45
E166: =+[1]Hoja1!D167 -> 47848503 | F166: =+[1]Hoja1!B167 -> A46
E167: =+[1]Hoja1!D168 -> 30820958 | F167: =+[1]Hoja1!B168 -> A47
E168: =+[1]Hoja1!D169 -> 40755700 | F168: =+[1]Hoja1!B169 -> A48
E169: =+[1]Hoja1!D170 -> 45703400 | F169: =+[1]Hoja1!B170 -> A49
E170: =+[1]Hoja1!D171 -> 30863603 | F170: =+[1]Hoja1!B171 -> A50
E171: =+[1]Hoja1!D172 -> 40182294 | F171: =+[1]Hoja1!B172 -> A51
E172: =+[1]Hoja1!D173 -> 30825395 | F172: =+[1]Hoja1!B173 -> A52
E173: =+[1]Hoja1!D174 -> 71986286 | F173: =+[1]Hoja1!B174 -> A53
E174: =+[1]Hoja1!D175 -> 46832249 | F174: =+[1]Hoja1!B175 -> A54
E175: =+[1]Hoja1!D176 -> 29328219 | F175: =+[1]Hoja1!B176 -> A55
E176: =+[1]Hoja1!D177 -> 47662269 | F176: =+[1]Hoja1!B177 -> A56
E177: =+[1]Hoja1!D178 -> 30822243 | F177: =+[1]Hoja1!B178 -> A57
E178: =+[1]Hoja1!D179 -> 29467312 | F178: =+[1]Hoja1!B179 -> A58
E179: =+[1]Hoja1!D180 -> 30835181 | F179: =+[1]Hoja1!B180 -> A59
E180: =+[1]Hoja1!D181 -> 30831803 | F180: =+[1]Hoja1!B181 -> A60
E181: =+[1]Hoja1!D182 -> 43553476 | F181: =+[1]Hoja1!B182 -> A61
E182: =+[1]Hoja1!D183 -> 71449186 | F182: =+[1]Hoja1!B183 -> A62
E183: =+[1]Hoja1!D184 -> 4623515 | F183: =+[1]Hoja1!B184 -> A63
E184: =+[1]Hoja1!D185 -> 30824442 | F184: =+[1]Hoja1!B185 -> A64
E185: =+[1]Hoja1!D186 -> 4639878 | F185: =+[1]Hoja1!B186 -> A65
E186: =+[1]Hoja1!D187 -> 30827628 | F186: =+[1]Hoja1!B187 -> A66
E187: =+[1]Hoja1!D188 -> 40049181 | F187: =+[1]Hoja1!B188 -> A67
E188: =+[1]Hoja1!D189 -> 40374952 | F188: =+[1]Hoja1!B189 -> A68
E189: =+[1]Hoja1!D190 -> 44755241 | F189: =+[1]Hoja1!B190 -> A69
E190: =+[1]Hoja1!D191 -> 30822408 | F190: =+[1]Hoja1!B191 -> A70
E191: =+[1]Hoja1!D192 -> 30830702 | F191: =+[1]Hoja1!B192 -> A71
E192: =+[1]Hoja1!D193 -> 30837494 | F192: =+[1]Hoja1!B193 -> A72
E193: =+[1]Hoja1!D194 -> 30863268 | F193: =+[1]Hoja1!B194 -> A73
E194: =+[1]Hoja1!D195 -> 30835740 | F194: =+[1]Hoja1!B195 -> A74
E195: =+[1]Hoja1!D196 -> 30852617 | F195: =+[1]Hoja1!B196 -> A75
E196: =+[1]Hoja1!D197 -> 30824725 | F196: =+[1]Hoja1!B197 -> A76
E197: =+[1]Hoja1!D198 -> 80384817 | F197: =+[1]Hoja1!B198 -> A77
E198: =+[1]Hoja1!D199 -> 30830389 | F198: =+[1]Hoja1!B199 -> A78
E199: =+[1]Hoja1!D200 -> 30836557 | F199: =+[1]Hoja1!B200 -> A79
E200: =+[1]Hoja1!D201 -> 43095587 | F200: =+[1]Hoja1!B201 -> A80
... 852 more rows
